Workbook

Sheet Main
B10: 2020-09-14
B12: Sheet No. | C12: Template Name | D12: Summary
B13: 1 | C13: Future Intra | D13: For Intraday trading in F&O segment
B14: 2 | C14: Cash Intra | D14: For Intraday trading in cash market segment
B15: 3 | C15: Mid-cap Intra | D15: For Intraday trading in Mid-cap stocks
B16: 4 | C16: Bulk Deals | D16: Reveals Bulk Deals carried on NSE & BSE
B17: 5 | C17: Call Tracker
K27: `

Sheet Future Intra
M5: Back to Main Page
A6: FOR INTRA DAY TRADING | L6: =Main!B10 -> 2020-09-14
A9: Sr.no | B9: Sector | C9: Scrip | D9: CLOSE RATE | E9: Pivot Point | F9: Supports | I9: Resistances
B10: Sector | D10: Point | E10: Point | F10: S1 | G10: S2 | H10: S3 | I10: R1 | J10: R2 | K10: R3 | L10: HIGH | M10: LOW | N10: OI | O10: % Change in OI
A11: 1 | B11: Index | C11: BANKNIFTY | D11: 22538.95 | E11: 22480.32 | F11: 22284.63 | G11: 22030.32 | H11: 21834.63 | I11: 22734.63 | J11: 22930.32 | K11: 23184.63 | L11: 22676 | M11: 22226 | N11: 1685750 | O11: 5.92%
A12: 2 | B12: Index | C12: NIFTY | D12: 11467.10 | E12: 11456.58 | F12: 11425.77 | G12: 11384.43 | H12: 11353.62 | I12: 11497.92 | J12: 11528.73 | K12: 11570.07 | L12: 11487.4 | M12: 11415.25 | N12: 11557050 | O12: 7.04%
A13: 3 | B13: Cement | C13: ACC | D13: 1326.65 | E13: 1334.55 | F13: 1313.10 | G13: 1299.55 | H13: 1278.10 | I13: 1348.10 | J13: 1369.55 | K13: 1383.10 | L13: 1356 | M13: 1321 | N13: 2348000 | O13: 8.75%
A14: 4 | B14: Others | C14: ADANIENT | D14: 297.20 | E14: 298.48 | F14: 292.47 | G14: 287.73 | H14: 281.72 | I14: 303.22 | J14: 309.23 | K14: 313.97 | L14: 304.5 | M14: 293.75 | N14: 19348000 | O14: 10.74%
A15: 5 | B15: Others | C15: ADANIPORTS | D15: 342.90 | E15: 340.60 | F15: 336.80 | G15: 330.70 | H15: 326.90 | I15: 346.70 | J15: 350.50 | K15: 356.60 | L15: 344.4 | M15: 334.5 | N15: 29347500 | O15: -0.34%
A16: 6 | B16: Automobile | C16: AMARAJABAT | D16: 748.05 | E16: 745.33 | F16: 738.87 | G16: 729.68 | H16: 723.22 | I16: 754.52 | J16: 760.98 | K16: 770.17 | L16: 751.8 | M16: 736.15 | N16: 1082000 | O16: 0.84%
A17: 7 | B17: Cement | C17: AMBUJACEM | D17: 212.90 | E17: 213.10 | F17: 211.45 | G17: 210.00 | H17: 208.35 | I17: 214.55 | J17: 216.20 | K17: 217.65 | L17: 214.75 | M17: 211.65 | N17: 13893000 | O17: 3.76%
A18: 8 | B18: Others | C18: APOLLOHOSP | D18: 1616.30 | E18: 1619.70 | F18: 1592.70 | G18: 1569.10 | H18: 1542.10 | I18: 1643.30 | J18: 1670.30 | K18: 1693.90 | L18: 1646.7 | M18: 1596.1 | N18: 1115500 | O18: 2.29%
A19: 9 | B19: Automobile | C19: APOLLOTYRE | D19: 116.70 | E19: 116.42 | F19: 115.33 | G19: 113.97 | H19: 112.88 | I19: 117.78 | J19: 118.87 | K19: 120.23 | L19: 117.5 | M19: 115.05 | N19: 12725000 | O19: -8.49%
A20: 10 | B20: Automobile | C20: ASHOKLEY | D20: 68.45 | E20: 68.28 | F20: 67.07 | G20: 65.68 | H20: 64.47 | I20: 69.67 | J20: 70.88 | K20: 72.27 | L20: 69.5 | M20: 66.9 | N20: 37503000 | O20: 1.98%
A21: 11 | B21: FMCG | C21: ASIANPAINT | D21: 2038.80 | E21: 2045.38 | F21: 2018.97 | G21: 1999.13 | H21: 1972.72 | I21: 2065.22 | J21: 2091.63 | K21: 2111.47 | L21: 2071.8 | M21: 2025.55 | N21: 3743100 | O21: -4.94%
A22: 12 | B22: Pharma | C22: AUROPHARMA | D22: 806.30 | E22: 803.27 | F22: 795.53 | G22: 784.77 | H22: 777.03 | I22: 814.03 | J22: 821.77 | K22: 832.53 | L22: 811 | M22: 792.5 | N22: 14744600 | O22: -0.11%
A23: 13 | B23: Banking | C23: AXISBANK | D23: 448.50 | E23: 446.40 | F23: 442.50 | G23: 436.50 | H23: 432.60 | I23: 452.40 | J23: 456.30 | K23: 462.30 | L23: 450.3 | M23: 440.4 | N23: 53575200 | O23: 0.92%
A24: 14 | B24: Automobile | C24: BAJAJ-AUTO | D24: 2924.25 | E24: 2928.43 | F24: 2909.77 | G24: 2895.28 | H24: 2876.62 | I24: 2942.92 | J24: 2961.58 | K24: 2976.07 | L24: 2947.1 | M24: 2913.95 | N24: 1657500 | O24: -0.30%
A25: 15 | B25: Finance | C25: BAJAJFINSV | D25: 6153.35 | E25: 6166.52 | F25: 6082.03 | G25: 6010.72 | H25: 5926.23 | I25: 6237.83 | J25: 6322.32 | K25: 6393.63 | L25: 6251 | M25: 6095.2 | N25: 773250 | O25: 4.41%
A26: 16 | B26: Finance | C26: BAJFINANCE | D26: 3549.10 | E26: 3520.65 | F26: 3478.45 | G26: 3407.80 | H26: 3365.60 | I26: 3591.30 | J26: 3633.50 | K26: 3704.15 | L26: 3562.85 | M26: 3450 | N26: 5091750 | O26: -4.97%
A27: 17 | B27: Automobile | C27: BALKRISIND | D27: 1302.60 | E27: 1288.47 | F27: 1267.13 | G27: 1231.67 | H27: 1210.33 | I27: 1323.93 | J27: 1345.27 | K27: 1380.73 | L27: 1309.8 | M27: 1253 | N27: 1856000 | O27: -3.85%
A28: 18 | B28: Banking | C28: BANDHANBNK | D28: 313.30 | E28: 310.57 | F28: 305.68 | G28: 298.07 | H28: 293.18 | I28: 318.18 | J28: 323.07 | K28: 330.68 | L28: 315.45 | M28: 302.95 | N28: 18822600 | O28: 0.82%
A29: 19 | B29: Banking | C29: BANKBARODA | D29: 46.05 | E29: 45.25 | F29: 44.35 | G29: 42.65 | H29: 41.75 | I29: 46.95 | J29: 47.85 | K29: 49.55 | L29: 46.15 | M29: 43.55 | N29: 53439400 | O29: -1.33%
A30: 20 | B30: FMCG | C30: BATAINDIA | D30: 1271.40 | E30: 1277.13 | F30: 1260.27 | G30: 1249.13 | H30: 1232.27 | I30: 1288.27 | J30: 1305.13 | K30: 1316.27 | L30: 1294 | M30: 1266 | N30: 2310000 | O30: 4.01%
A31: 21 | B31: Capital_Goods | C31: BEL | D31: 101.35 | E31: 101.08 | F31: 100.52 | G31: 99.68 | H31: 99.12 | I31: 101.92 | J31: 102.48 | K31: 103.32 | L31: 101.65 | M31: 100.25 | N31: 38098800 | O31: -1.03%
A32: 22 | B32: FMCG | C32: BERGEPAINT | D32: 573.90 | E32: 573.67 | F32: 567.33 | G32: 560.77 | H32: 554.43 | I32: 580.23 | J32: 586.57 | K32: 593.13 | L32: 580 | M32: 567.1 | N32: 2985400 | O32: -3.14%
A33: 23 | B33: Automobile | C33: BHARATFORG | D33: 465.40 | E33: 463.97 | F33: 459.68 | G33: 453.97 | H33: 449.68 | I33: 469.68 | J33: 473.97 | K33: 479.68 | L33: 468.25 | M33: 458.25 | N33: 6147000 | O33: 3.64%
A34: 24 | B34: Telecom | C34: BHARTIARTL | D34: 494.00 | E34: 496.18 | F34: 488.37 | G34: 482.73 | H34: 474.92 | I34: 501.82 | J34: 509.63 | K34: 515.27 | L34: 504 | M34: 490.55 | N34: 126391833 | O34: 2.33%
A35: 25 | B35: Capital_Goods | C35: BHEL | D35: 37.05 | E35: 37.30 | F35: 36.75 | G35: 36.45 | H35: 35.90 | I35: 37.60 | J35: 38.15 | K35: 38.45 | L35: 37.85 | M35: 37 | N35: 60228000 | O35: -1.68%
A36: 26 | B36: Pharma | C36: BIOCON | D36: 433.75 | E36: 434.35 | F36: 428.00 | G36: 422.25 | H36: 415.90 | I36: 440.10 | J36: 446.45 | K36: 452.20 | L36: 440.7 | M36: 428.6 | N36: 13882800 | O36: -1.95%
A37: 27 | B37: Automobile | C37: BOSCHLTD | D37: 12897.30 | E37: 12910.12 | F37: 12747.18 | G37: 12597.07 | H37: 12434.13 | I37: 13060.23 | J37: 13223.17 | K37: 13373.28 | L37: 13073.05 | M37: 12760 | N37: 94050 | O37: 1.62%
A38: 28 | B38: Oil_Gas | C38: BPCL | D38: 428.80 | E38: 430.02 | F38: 422.33 | G38: 415.87 | H38: 408.18 | I38: 436.48 | J38: 444.17 | K38: 450.63 | L38: 437.7 | M38: 423.55 | N38: 23781600 | O38: 3.21%
A39: 29 | B39: FMCG | C39: BRITANNIA | D39: 3772.75 | E39: 3781.38 | F39: 3733.02 | G39: 3693.28 | H39: 3644.92 | I39: 3821.12 | J39: 3869.48 | K39: 3909.22 | L39: 3829.75 | M39: 3741.65 | N39: 1050200 | O39: -2.38%
A40: 30 | B40: Pharma | C40: CADILAHC | D40: 371.30 | E40: 368.07 | F40: 362.23 | G40: 353.17 | H40: 347.33 | I40: 377.13 | J40: 382.97 | K40: 392.03 | L40: 373.9 | M40: 359 | N40: 10681000 | O40: 5.00%
A41: 31 | B41: Banking | C41: CANBK | D41: 101.20 | E41: 100.97 | F41: 98.98 | G41: 96.77 | H41: 94.78 | I41: 103.18 | J41: 105.17 | K41: 107.38 | L41: 102.95 | M41: 98.75 | N41: 13285000 | O41: 21.94%
A42: 32 | B42: Finance | C42: CHOLAFIN | D42: 225.30 | E42: 224.47 | F42: 222.18 | G42: 219.07 | H42: 216.78 | I42: 227.58 | J42: 229.87 | K42: 232.98 | L42: 226.75 | M42: 221.35 | N42: 5550000 | O42: -2.25%
A43: 33 | B43: Pharma | C43: CIPLA | D43: 728.70 | E43: 727.35 | F43: 722.35 | G43: 716.00 | H43: 711.00 | I43: 733.70 | J43: 738.70 | K43: 745.05 | L43: 732.35 | M43: 721 | N43: 14770600 | O43: 1.60%
A44: 34 | B44: Others | C44: COALINDIA | D44: 125.60 | E44: 125.92 | F44: 124.58 | G44: 123.57 | H44: 122.23 | I44: 126.93 | J44: 128.27 | K44: 129.28 | L44: 127.25 | M44: 124.9 | N44: 38265400 | O44: 7.83%
A45: 35 | B45: Technology | C45: COFORGE | D45: 2098.55 | E45: 2041.95 | F45: 1972.05 | G45: 1845.55 | H45: 1775.65 | I45: 2168.45 | J45: 2238.35 | K45: 2364.85 | L45: 2111.85 | M45: 1915.45 | N45: 582000 | O45: 68.70%
A46: 36 | B46: FMCG | C46: COLPAL | D46: 1420.50 | E46: 1411.85 | F46: 1398.70 | G46: 1376.90 | H46: 1363.75 | I46: 1433.65 | J46: 1446.80 | K46: 1468.60 | L46: 1425 | M46: 1390.05 | N46: 2875600 | O46: -7.21%
A47: 37 | B47: Others | C47: CONCOR | D47: 382.60 | E47: 378.45 | F47: 372.90 | G47: 363.20 | H47: 357.65 | I47: 388.15 | J47: 393.70 | K47: 403.40 | L47: 384 | M47: 368.75 | N47: 7160103 | O47: 2.37%
A48: 38 | B48: Capital_Goods | C48: CUMMINSIND | D48: 452.25 | E48: 456.87 | F48: 445.73 | G48: 439.22 | H48: 428.08 | I48: 463.38 | J48: 474.52 | K48: 481.03 | L48: 468 | M48: 450.35 | N48: 2013600 | O48: 13.76%
A49: 39 | B49: FMCG | C49: DABUR | D49: 508.55 | E49: 504.67 | F49: 497.58 | G49: 486.62 | H49: 479.53 | I49: 515.63 | J49: 522.72 | K49: 533.68 | L49: 511.75 | M49: 493.7 | N49: 10218750 | O49: 0.02%
A50: 40 | B50: Pharma | C50: DIVISLAB | D50: 3159.20 | E50: 3168.17 | F50: 3120.93 | G50: 3082.67 | H50: 3035.43 | I50: 3206.43 | J50: 3253.67 | K50: 3291.93 | L50: 3215.4 | M50: 3129.9 | N50: 3148400 | O50: 3.46%
A51: 41 | B51: Realty | C51: DLF | D51: 153.85 | E51: 153.25 | F51: 150.05 | G51: 146.25 | H51: 143.05 | I51: 157.05 | J51: 160.25 | K51: 164.05 | L51: 156.45 | M51: 149.45 | N51: 30254400 | O51: -0.13%
A52: 42 | B52: Pharma | C52: DRREDDY | D52: 4413.95 | E52: 4419.67 | F52: 4384.33 | G52: 4354.72 | H52: 4319.38 | I52: 4449.28 | J52: 4484.62 | K52: 4514.23 | L52: 4455 | M52: 4390.05 | N52: 2837250 | O52: 0.46%
A53: 43 | B53: Automobile | C53: EICHERMOT | D53: 2169.25 | E53: 2166.62 | F53: 2148.63 | G53: 2128.02 | H53: 2110.03 | I53: 2187.23 | J53: 2205.22 | K53: 2225.83 | L53: 2184.6 | M53: 2146 | N53: 2306150 | O53: 0.20%
A54: 44 | B54: Automobile | C54: ESCORTS | D54: 1202.60 | E54: 1200.70 | F54: 1186.95 | G54: 1171.30 | H54: 1157.55 | I54: 1216.35 | J54: 1230.10 | K54: 1245.75 | L54: 1214.45 | M54: 1185.05 | N54: 2574000 | O54: -9.48%
A55: 45 | B55: Automobile | C55: EXIDEIND | D55: 156.05 | E55: 156.22 | F55: 154.23 | G55: 152.42 | H55: 150.43 | I55: 158.03 | J55: 160.02 | K55: 161.83 | L55: 158.2 | M55: 154.4 | N55: 9838800 | O55: 4.07%
A56: 46 | B56: Banking | C56: FEDERALBNK | D56: 52.00 | E56: 51.73 | F56: 51.22 | G56: 50.43 | H56: 49.92 | I56: 52.52 | J56: 53.03 | K56: 53.82 | L56: 52.25 | M56: 50.95 | N56: 91655500 | O56: -0.12%
A57: 47 | B57: Oil_Gas | C57: GAIL | D57: 91.15 | E57: 91.05 | F57: 90.30 | G57: 89.45 | H57: 88.70 | I57: 91.90 | J57: 92.65 | K57: 93.50 | L57: 91.8 | M57: 90.2 | N57: 26833900 | O57: 3.92%
A58: 48 | B58: Pharma | C58: GLENMARK | D58: 484.20 | E58: 479.12 | F58: 471.48 | G58: 458.77 | H58: 451.13 | I58: 491.83 | J58: 499.47 | K58: 512.18 | L58: 486.75 | M58: 466.4 | N58: 7102400 | O58: 4.04%
A59: 49 | B59: Infrastructure | C59: GMRINFRA | D59: 23.50 | E59: 23.38 | F59: 23.12 | G59: 22.73 | H59: 22.47 | I59: 23.77 | J59: 24.03 | K59: 24.42 | L59: 23.65 | M59: 23 | N59: 81270000 | O59: 0.22%
A60: 50 | B60: FMCG | C60: GODREJCP | D60: 686.50 | E60: 681.97 | F60: 675.53 | G60: 664.57 | H60: 658.13 | I60: 692.93 | J60: 699.37 | K60: 710.33 | L60: 688.4 | M60: 671 | N60: 4419000 | O60: -1.34%
A61: 51 | B61: Others | C61: GODREJPROP | D61: 879.95 | E61: 887.17 | F61: 867.78 | G61: 855.62 | H61: 836.23 | I61: 899.33 | J61: 918.72 | K61: 930.88 | L61: 906.55 | M61: 875 | N61: 820950 | O61: 1.61%
A62: 52 | B62: Cement | C62: GRASIM | D62: 721.20 | E62: 718.33 | F62: 709.67 | G62: 698.13 | H62: 689.47 | I62: 729.87 | J62: 738.53 | K62: 750.07 | L62: 727 | M62: 706.8 | N62: 18872700 | O62: -5.58%
A63: 53 | B63: Others | C63: HAVELLS | D63: 654.90 | E63: 653.88 | F63: 648.87 | G63: 642.83 | H63: 637.82 | I63: 659.92 | J63: 664.93 | K63: 670.97 | L63: 658.9 | M63: 647.85 | N63: 5251000 | O63: 0.48%
A64: 54 | B64: Technology | C64: HCLTECH | D64: 722.50 | E64: 722.58 | F64: 711.02 | G64: 699.53 | H64: 687.97 | I64: 734.07 | J64: 745.63 | K64: 757.12 | L64: 734.15 | M64: 711.1 | N64: 14758800 | O64: 7.78%
A65: 55 | B65: Finance | C65: HDFC | D65: 1770.75 | E65: 1773.57 | F65: 1758.73 | G65: 1746.72 | H65: 1731.88 | I65: 1785.58 | J65: 1800.42 | K65: 1812.43 | L65: 1788.4 | M65: 1761.55 | N65: 27034500 | O65: 1.19%
A66: 56 | B66: Banking | C66: HDFCBANK | D66: 1081.10 | E66: 1085.78 | F66: 1067.87 | G66: 1054.63 | H66: 1036.72 | I66: 1099.02 | J66: 1116.93 | K66: 1130.17 | L66: 1103.7 | M66: 1072.55 | N66: 43272350 | O66: 3.01%
A67: 57 | B67: Finance | C67: HDFCLIFE | D67: 605.95 | E67: 607.43 | F67: 601.37 | G67: 596.78 | H67: 590.72 | I67: 612.02 | J67: 618.08 | K67: 622.67 | L67: 613.5 | M67: 602.85 | N67: 10380700 | O67: -0.52%
A68: 58 | B68: Automobile | C68: HEROMOTOCO | D68: 2991.80 | E68: 2983.90 | F68: 2959.80 | G68: 2927.80 | H68: 2903.70 | I68: 3015.90 | J68: 3040.00 | K68: 3072.00 | L68: 3008 | M68: 2951.9 | N68: 1838400 | O68: -5.27%
A69: 59 | B69: Metals | C69: HINDALCO | D69: 179.40 | E69: 178.55 | F69: 176.25 | G69: 173.10 | H69: 170.80 | I69: 181.70 | J69: 184.00 | K69: 187.15 | L69: 180.85 | M69: 175.4 | N69: 27545800 | O69: 4.35%
A70: 60 | B70: Oil_Gas | C70: HINDPETRO | D70: 199.70 | E70: 200.67 | F70: 196.63 | G70: 193.57 | H70: 189.53 | I70: 203.73 | J70: 207.77 | K70: 210.83 | L70: 204.7 | M70: 197.6 | N70: 33658200 | O70: 0.83%
A71: 61 | B71: FMCG | C71: HINDUNILVR | D71: 2166.00 | E71: 2159.90 | F71: 2143.80 | G71: 2121.60 | H71: 2105.50 | I71: 2182.10 | J71: 2198.20 | K71: 2220.40 | L71: 2176 | M71: 2137.7 | N71: 14403000 | O71: 1.71%
A72: 62 | B72: Finance | C72: IBULHSGFIN | D72: 198.80 | E72: 197.87 | F72: 195.78 | G72: 192.77 | H72: 190.68 | I72: 200.88 | J72: 202.97 | K72: 205.98 | L72: 199.95 | M72: 194.85 | N72: 16166500 | O72: -5.42%
A73: 63 | B73: Banking | C73: ICICIBANK | D73: 371.90 | E73: 370.65 | F73: 367.10 | G73: 362.30 | H73: 358.75 | I73: 375.45 | J73: 379.00 | K73: 383.80 | L73: 374.2 | M73: 365.85 | N73: 118472750 | O73: 2.16%
A74: 64 | B74: Finance | C74: ICICIPRULI | D74: 441.00 | E74: 443.58 | F74: 434.57 | G74: 428.13 | H74: 419.12 | I74: 450.02 | J74: 459.03 | K74: 465.47 | L74: 452.6 | M74: 437.15 | N74: 7893000 | O74: 0.71%
A75: 65 | B75: Telecom | C75: IDEA | D75: 11.15 | E75: 11.22 | F75: 11.08 | G75: 11.02 | H75: 10.88 | I75: 11.28 | J75: 11.42 | K75: 11.48 | L75: 11.35 | M75: 11.15 | N75: 343560000 | O75: -0.49%
A76: 66 | B76: Banking | C76: IDFCFIRSTB | D76: 31.00 | E76: 30.80 | F76: 30.45 | G76: 29.90 | H76: 29.55 | I76: 31.35 | J76: 31.70 | K76: 32.25 | L76: 31.15 | M76: 30.25 | N76: 171912000 | O76: -0.25%
A77: 67 | B77: Oil_Gas | C77: IGL | D77: 401.00 | E77: 397.33 | F77: 391.87 | G77: 382.73 | H77: 377.27 | I77: 406.47 | J77: 411.93 | K77: 421.07 | L77: 402.8 | M77: 388.2 | N77: 7654625 | O77: -2.16%
A78: 68 | B78: Others | C78: INDIGO | D78: 1285.05 | E78: 1269.48 | F78: 1249.57 | G78: 1214.08 | H78: 1194.17 | I78: 1304.97 | J78: 1324.88 | K78: 1360.37 | L78: 1289.4 | M78: 1234 | N78: 2747500 | O78: 2.83%
A79: 69 | B79: Banking | C79: INDUSINDBK | D79: 612.90 | E79: 613.12 | F79: 603.33 | G79: 593.77 | H79: 583.98 | I79: 622.68 | J79: 632.47 | K79: 642.03 | L79: 622.9 | M79: 603.55 | N79: 29260800 | O79: 2.78%
A80: 70 | B80: Telecom | C80: INFRATEL | D80: 202.50 | E80: 204.23 | F80: 199.57 | G80: 196.63 | H80: 191.97 | I80: 207.17 | J80: 211.83 | K80: 214.77 | L80: 208.9 | M80: 201.3 | N80: 16984800 | O80: -2.82%
A81: 71 | B81: Technology | C81: INFY | D81: 946.20 | E81: 944.33 | F81: 934.17 | G81: 922.13 | H81: 911.97 | I81: 956.37 | J81: 966.53 | K81: 978.57 | L81: 954.5 | M81: 932.3 | N81: 42847200 | O81: 3.04%
A82: 72 | B82: Oil_Gas | C82: IOC | D82: 83.30 | E82: 83.25 | F82: 82.20 | G82: 81.10 | H82: 80.05 | I82: 84.35 | J82: 85.40 | K82: 86.50 | L82: 84.3 | M82: 82.15 | N82: 64193400 | O82: 1.41%
A83: 73 | B83: FMCG | C83: ITC | D83: 184.65 | E83: 184.85 | F83: 182.85 | G83: 181.05 | H83: 179.05 | I83: 186.65 | J83: 188.65 | K83: 190.45 | L83: 186.85 | M83: 183.05 | N83: 101478400 | O83: 4.17%
A84: 74 | B84: Metals | C84: JINDALSTEL | D84: 201.90 | E84: 200.58 | F84: 198.32 | G84: 194.73 | H84: 192.47 | I84: 204.17 | J84: 206.43 | K84: 210.02 | L84: 202.85 | M84: 197 | N84: 23000000 | O84: -0.58%
A85: 75 | B85: Metals | C85: JSWSTEEL | D85: 288.05 | E85: 286.90 | F85: 284.60 | G85: 281.15 | H85: 278.85 | I85: 290.35 | J85: 292.65 | K85: 296.10 | L85: 289.2 | M85: 283.45 | N85: 43316100 | O85: -0.29%
A86: 76 | B86: Others | C86: JUBLFOOD | D86: 2326.95 | E86: 2325.28 | F86: 2276.57 | G86: 2226.18 | H86: 2177.47 | I86: 2375.67 | J86: 2424.38 | K86: 2474.77 | L86: 2374 | M86: 2274.9 | N86: 2374000 | O86: 0.64%
A87: 77 | B87: Banking | C87: KOTAKBANK | D87: 1329.80 | E87: 1326.00 | F87: 1315.85 | G87: 1301.90 | H87: 1291.75 | I87: 1339.95 | J87: 1350.10 | K87: 1364.05 | L87: 1336.15 | M87: 1312.05 | N87: 12706800 | O87: 3.84%
A88: 78 | B88: Finance | C88: L&TFH | D88: 63.35 | E88: 63.05 | F88: 62.45 | G88: 61.55 | H88: 60.95 | I88: 63.95 | J88: 64.55 | K88: 65.45 | L88: 63.65 | M88: 62.15 | N88: 29892800 | O88: -1.26%
A89: 79 | B89: Finance | C89: LICHSGFIN | D89: 289.10 | E89: 288.28 | F89: 285.42 | G89: 281.73 | H89: 278.87 | I89: 291.97 | J89: 294.83 | K89: 298.52 | L89: 291.15 | M89: 284.6 | N89: 10228000 | O89: -3.09%
A90: 80 | B90: Capital_Goods | C90: LT | D90: 917.90 | E90: 917.98 | F90: 912.12 | G90: 906.33 | H90: 900.47 | I90: 923.77 | J90: 929.63 | K90: 935.42 | L90: 923.85 | M90: 912.2 | N90: 13885300 | O90: 4.31%
A91: 81 | B91: Pharma | C91: LUPIN | D91: 967.40 | E91: 965.68 | F91: 956.97 | G91: 946.53 | H91: 937.82 | I91: 976.12 | J91: 984.83 | K91: 995.27 | L91: 974.4 | M91: 955.25 | N91: 6851850 | O91: -2.14%
A92: 82 | B92: Automobile | C92: M&M | D92: 616.05 | E92: 617.55 | F92: 611.60 | G92: 607.15 | H92: 601.20 | I92: 622.00 | J92: 627.95 | K92: 632.40 | L92: 623.5 | M92: 613.1 | N92: 14245000 | O92: 1.84%
A93: 83 | B93: Finance | C93: M&MFIN | D93: 131.40 | E93: 131.02 | F93: 129.93 | G93: 128.47 | H93: 127.38 | I93: 132.48 | J93: 133.57 | K93: 135.03 | L93: 132.1 | M93: 129.55 | N93: 15900948 | O93: 3.20%
A94: 84 | B94: Finance | C94: MANAPPURAM | D94: 157.90 | E94: 154.43 | F94: 150.32 | G94: 142.73 | H94: 138.62 | I94: 162.02 | J94: 166.13 | K94: 173.72 | L94: 158.55 | M94: 146.85 | N94: 16680000 | O94: -8.25%
A95: 85 | B95: FMCG | C95: MARICO | D95: 367.95 | E95: 366.78 | F95: 364.67 | G95: 361.38 | H95: 359.27 | I95: 370.07 | J95: 372.18 | K95: 375.47 | L95: 368.9 | M95: 363.5 | N95: 8912000 | O95: -3.09%
A96: 86 | B96: Automobile | C96: MARUTI | D96: 7221.75 | E96: 7267.87 | F96: 7159.43 | G96: 7097.12 | H96: 6988.68 | I96: 7330.18 | J96: 7438.62 | K96: 7500.93 | L96: 7376.3 | M96: 7205.55 | N96: 2014900 | O96: 4.76%
A97: 87 | B97: FMCG | C97: MCDOWELL-N | D97: 549.00 | E97: 550.12 | F97: 543.18 | G97: 537.37 | H97: 530.43 | I97: 555.93 | J97: 562.87 | K97: 568.68 | L97: 557.05 | M97: 544.3 | N97: 15881250 | O97: 1.38%
A98: 88 | B98: Finance | C98: MFSL | D98: 598.95 | E98: 594.42 | F98: 587.48 | G98: 576.02 | H98: 569.08 | I98: 605.88 | J98: 612.82 | K98: 624.28 | L98: 601.35 | M98: 582.95 | N98: 1909700 | O98: -2.78%
A99: 89 | B99: Oil_Gas | C99: MGL | D99: 882.45 | E99: 879.20 | F99: 873.25 | G99: 864.05 | H99: 858.10 | I99: 888.40 | J99: 894.35 | K99: 903.55 | L99: 885.15 | M99: 870 | N99: 2040600 | O99: -0.64%
A100: 90 | B100: Technology | C100: MINDTREE | D100: 1188.25 | E100: 1193.02 | F100: 1168.08 | G100: 1147.92 | H100: 1122.98 | I100: 1213.18 | J100: 1238.12 | K100: 1258.28 | L100: 1217.95 | M100: 1172.85 | N100: 1861600 | O100: 1.53%
A101: 91 | B101: Automobile | C101: MOTHERSUMI | D101: 112.65 | E101: 112.48 | F101: 111.32 | G101: 109.98 | H101: 108.82 | I101: 113.82 | J101: 114.98 | K101: 116.32 | L101: 113.65 | M101: 111.15 | N101: 24101000 | O101: -0.84%
A102: 92 | B102: Automobile | C102: MRF | D102: 59255.10 | E102: 59028.42 | F102: 58606.83 | G102: 57958.57 | H102: 57536.98 | I102: 59676.68 | J102: 60098.27 | K102: 60746.53 | L102: 59450 | M102: 58380.15 | N102: 43000 | O102: -2.34%
A103: 93 | B103: Finance | C103: MUTHOOTFIN | D103: 1132.80 | E103: 1120.60 | F103: 1103.40 | G103: 1074.00 | H103: 1056.80 | I103: 1150.00 | J103: 1167.20 | K103: 1196.60 | L103: 1137.8 | M103: 1091.2 | N103: 4174500 | O103: 4.76%
A104: 94 | B104: Metals | C104: NATIONALUM | D104: 35.00 | E104: 34.82 | F104: 34.53 | G104: 34.07 | H104: 33.78 | I104: 35.28 | J104: 35.57 | K104: 36.03 | L104: 35.1 | M104: 34.35 | N104: 40137000 | O104: 1.72%
A105: 95 | B105: Others | C105: NAUKRI | D105: 3393.80 | E105: 3396.72 | F105: 3349.33 | G105: 3304.87 | H105: 3257.48 | I105: 3441.18 | J105: 3488.57 | K105: 3533.03 | L105: 3444.1 | M105: 3352.25 | N105: 635000 | O105: 2.71%
A106: 96 | B106: FMCG | C106: NESTLEIND | D106: 16386.00 | E106: 16350.37 | F106: 16266.33 | G106: 16146.67 | H106: 16062.63 | I106: 16470.03 | J106: 16554.07 | K106: 16673.73 | L106: 16434.4 | M106: 16230.7 | N106: 436700 | O106: 2.73%
A107: 97 | B107: Metals | C107: NMDC | D107: 90.20 | E107: 90.05 | F107: 89.20 | G107: 88.20 | H107: 87.35 | I107: 91.05 | J107: 91.90 | K107: 92.90 | L107: 90.9 | M107: 89.05 | N107: 33305700 | O107: 1.26%
A108: 98 | B108: Power | C108: NTPC | D108: 90.35 | E108: 90.33 | F108: 89.57 | G108: 88.78 | H108: 88.02 | I108: 91.12 | J108: 91.88 | K108: 92.67 | L108: 91.1 | M108: 89.55 | N108: 50262600 | O108: -1.10%
A109: 99 | B109: Oil_Gas | C109: ONGC | D109: 73.55 | E109: 73.40 | F109: 72.90 | G109: 72.25 | H109: 71.75 | I109: 74.05 | J109: 74.55 | K109: 75.20 | L109: 73.9 | M109: 72.75 | N109: 61730900 | O109: 0.51%
A110: 100 | B110: Textile | C110: PAGEIND | D110: 18502.00 | E110: 18555.18 | F110: 18333.47 | G110: 18164.93 | H110: 17943.22 | I110: 18723.72 | J110: 18945.43 | K110: 19113.97 | L110: 18776.9 | M110: 18386.65 | N110: 142020 | O110: -0.15%
A111: 101 | B111: Pharma | C111: PEL | D111: 1339.25 | E111: 1336.72 | F111: 1314.78 | G111: 1290.32 | H111: 1268.38 | I111: 1361.18 | J111: 1383.12 | K111: 1407.58 | L111: 1358.65 | M111: 1312.25 | N111: 3339600 | O111: 2.14%
A112: 102 | B112: Oil_Gas | C112: PETRONET | D112: 236.85 | E112: 236.57 | F112: 234.28 | G112: 231.72 | H112: 229.43 | I112: 239.13 | J112: 241.42 | K112: 243.98 | L112: 238.85 | M112: 234 | N112: 10377000 | O112: 1.26%
A113: 103 | B113: Finance | C113: PFC | D113: 92.40 | E113: 92.07 | F113: 91.33 | G113: 90.27 | H113: 89.53 | I113: 93.13 | J113: 93.87 | K113: 94.93 | L113: 92.8 | M113: 91 | N113: 47380400 | O113: -1.57%
A114: 104 | B114: FMCG | C114: PIDILITIND | D114: 1490.55 | E114: 1491.13 | F114: 1481.37 | G114: 1472.18 | H114: 1462.42 | I114: 1500.32 | J114: 1510.08 | K114: 1519.27 | L114: 1500.9 | M114: 1481.95 | N114: 3085000 | O114: -1.20%
A115: 105 | B115: Banking | C115: PNB | D115: 33.80 | E115: 33.68 | F115: 33.42 | G115: 33.03 | H115: 32.77 | I115: 34.07 | J115: 34.33 | K115: 34.72 | L115: 33.95 | M115: 33.3 | N115: 50876000 | O115: -0.82%
A116: 106 | B116: Power | C116: POWERGRID | D116: 175.55 | E116: 176.15 | F116: 173.65 | G116: 171.75 | H116: 169.25 | I116: 178.05 | J116: 180.55 | K116: 182.45 | L116: 178.65 | M116: 174.25 | N116: 12708000 | O116: 6.68%
A117: 107 | B117: Media | C117: PVR | D117: 1250.00 | E117: 1257.12 | F117: 1227.88 | G117: 1205.77 | H117: 1176.53 | I117: 1279.23 | J117: 1308.47 | K117: 1330.58 | L117: 1286.35 | M117: 1235 | N117: 1761496 | O117: 8.20%
A118: 108 | B118: Cement | C118: RAMCOCEM | D118: 705.10 | E118: 703.22 | F118: 694.93 | G118: 684.77 | H118: 676.48 | I118: 713.38 | J118: 721.67 | K118: 731.83 | L118: 711.5 | M118: 693.05 | N118: 1258000 | O118: -2.70%
A119: 109 | B119: Banking | C119: RBLBANK | D119: 183.30 | E119: 182.12 | F119: 179.58 | G119: 175.87 | H119: 173.33 | I119: 185.83 | J119: 188.37 | K119: 192.08 | L119: 184.65 | M119: 178.4 | N119: 21351200 | O119: 1.92%
A120: 110 | B120: Power | C120: RECLTD | D120: 107.65 | E120: 107.27 | F120: 106.33 | G120: 105.02 | H120: 104.08 | I120: 108.58 | J120: 109.52 | K120: 110.83 | L120: 108.2 | M120: 105.95 | N120: 17070000 | O120: 1.25%
A121: 111 | B121: Oil_Gas | C121: RELIANCE | D121: 2320.10 | E121: 2316.78 | F121: 2294.07 | G121: 2268.03 | H121: 2245.32 | I121: 2342.82 | J121: 2365.53 | K121: 2391.57 | L121: 2339.5 | M121: 2290.75 | N121: 34471805 | O121: -3.91%
A122: 112 | B122: Metals | C122: SAIL | D122: 39.10 | E122: 38.85 | F122: 38.30 | G122: 37.50 | H122: 36.95 | I122: 39.65 | J122: 40.20 | K122: 41.00 | L122: 39.4 | M122: 38.05 | N122: 45353000 | O122: 0.25%
A123: 113 | B123: Finance | C123: SBILIFE | D123: 867.20 | E123: 861.68 | F123: 853.42 | G123: 839.63 | H123: 831.37 | I123: 875.47 | J123: 883.73 | K123: 897.52 | L123: 869.95 | M123: 847.9 | N123: 6557250 | O123: 0.55%
A124: 114 | B124: Banking | C124: SBIN | D124: 203.50 | E124: 201.77 | F124: 198.93 | G124: 194.37 | H124: 191.53 | I124: 206.33 | J124: 209.17 | K124: 213.73 | L124: 204.6 | M124: 197.2 | N124: 114882000 | O124: 2.49%
A125: 115 | B125: Cement | C125: SHREECEM | D125: 19544.10 | E125: 19575.02 | F125: 19394.38 | G125: 19244.67 | H125: 19064.03 | I125: 19724.73 | J125: 19905.37 | K125: 20055.08 | L125: 19755.65 | M125: 19425.3 | N125: 194600 | O125: 0.21%
A126: 116 | B126: Capital_Goods | C126: SIEMENS | D126: 1225.00 | E126: 1223.50 | F126: 1213.10 | G126: 1201.20 | H126: 1190.80 | I126: 1235.40 | J126: 1245.80 | K126: 1257.70 | L126: 1233.9 | M126: 1211.6 | N126: 1661550 | O126: 0.23%
A127: 117 | B127: Textile | C127: SRF | D127: 4224.25 | E127: 4195.43 | F127: 4154.87 | G127: 4085.48 | H127: 4044.92 | I127: 4264.82 | J127: 4305.38 | K127: 4374.77 | L127: 4236 | M127: 4126.05 | N127: 638750 | O127: 0.67%
A128: 118 | B128: Finance | C128: SRTRANSFIN | D128: 646.30 | E128: 641.57 | F128: 633.13 | G128: 619.97 | H128: 611.53 | I128: 654.73 | J128: 663.17 | K128: 676.33 | L128: 650 | M128: 628.4 | N128: 5257294 | O128: 0.99%
A129: 119 | B129: Pharma | C129: SUNPHARMA | D129: 507.35 | E129: 508.30 | F129: 503.20 | G129: 499.05 | H129: 493.95 | I129: 512.45 | J129: 517.55 | K129: 521.70 | L129: 513.4 | M129: 504.15 | N129: 36044400 | O129: -0.44%
A130: 120 | B130: Media | C130: SUNTV | D130: 487.40 | E130: 486.22 | F130: 479.53 | G130: 471.67 | H130: 464.98 | I130: 494.08 | J130: 500.77 | K130: 508.63 | L130: 492.9 | M130: 478.35 | N130: 4978500 | O130: -1.60%
A131: 121 | B131: Fertilisers | C131: TATACHEM | D131: 293.65 | E131: 292.17 | F131: 289.43 | G131: 285.22 | H131: 282.48 | I131: 296.38 | J131: 299.12 | K131: 303.33 | L131: 294.9 | M131: 287.95 | N131: 7896000 | O131: 1.54%
A132: 122 | B132: Others | C132: TATACONSUM | D132: 550.40 | E132: 549.05 | F132: 544.35 | G132: 538.30 | H132: 533.60 | I132: 555.10 | J132: 559.80 | K132: 565.85 | L132: 553.75 | M132: 543 | N132: 13813200 | O132: 2.88%
A133: 123 | B133: Automobile | C133: TATAMOTORS | D133: 144.75 | E133: 144.73 | F133: 142.07 | G133: 139.38 | H133: 136.72 | I133: 147.42 | J133: 150.08 | K133: 152.77 | L133: 147.4 | M133: 142.05 | N133: 77451600 | O133: 5.26%
A134: 124 | B134: Power | C134: TATAPOWER | D134: 56.75 | E134: 56.25 | F134: 55.45 | G134: 54.15 | H134: 53.35 | I134: 57.55 | J134: 58.35 | K134: 59.65 | L134: 57.05 | M134: 54.95 | N134: 76977000 | O134: -3.21%
A135: 125 | B135: Metals | C135: TATASTEEL | D135: 408.80 | E135: 408.35 | F135: 403.75 | G135: 398.70 | H135: 394.10 | I135: 413.40 | J135: 418.00 | K135: 423.05 | L135: 412.95 | M135: 403.3 | N135: 23597700 | O135: -0.44%
A136: 126 | B136: Technology | C136: TCS | D136: 2375.50 | E136: 2364.92 | F136: 2343.13 | G136: 2310.77 | H136: 2288.98 | I136: 2397.28 | J136: 2419.07 | K136: 2451.43 | L136: 2386.7 | M136: 2332.55 | N136: 10451700 | O136: 0.99%
A137: 127 | B137: Technology | C137: TECHM | D137: 767.70 | E137: 763.38 | F137: 753.97 | G137: 740.23 | H137: 730.82 | I137: 777.12 | J137: 786.53 | K137: 800.27 | L137: 772.8 | M137: 749.65 | N137: 9822000 | O137: 2.63%
A138: 128 | B138: FMCG | C138: TITAN | D138: 1168.40 | E138: 1173.27 | F138: 1152.53 | G138: 1136.67 | H138: 1115.93 | I138: 1189.13 | J138: 1209.87 | K138: 1225.73 | L138: 1194 | M138: 1157.4 | N138: 5802750 | O138: 10.09%
A139: 129 | B139: Pharma | C139: TORNTPHARM | D139: 2843.40 | E139: 2836.37 | F139: 2822.73 | G139: 2802.07 | H139: 2788.43 | I139: 2857.03 | J139: 2870.67 | K139: 2891.33 | L139: 2850 | M139: 2815.7 | N139: 930000 | O139: 1.31%
A140: 130 | B140: Power | C140: TORNTPOWER | D140: 325.80 | E140: 325.27 | F140: 323.83 | G140: 321.87 | H140: 320.43 | I140: 327.23 | J140: 328.67 | K140: 330.63 | L140: 326.7 | M140: 323.3 | N140: 2232000 | O140: 1.36%
A141: 131 | B141: Automobile | C141: TVSMOTOR | D141: 444.35 | E141: 442.32 | F141: 438.13 | G141: 431.92 | H141: 427.73 | I141: 448.53 | J141: 452.72 | K141: 458.93 | L141: 446.5 | M141: 436.1 | N141: 5712000 | O141: 4.29%
A142: 132 | B142: FMCG | C142: UBL | D142: 1063.85 | E142: 1063.70 | F142: 1051.65 | G142: 1039.45 | H142: 1027.40 | I142: 1075.90 | J142: 1087.95 | K142: 1100.15 | L142: 1075.75 | M142: 1051.5 | N142: 1136100 | O142: -0.73%
A143: 133 | B143: Cement | C143: ULTRACEMCO | D143: 3906.40 | E143: 3916.30 | F143: 3880.15 | G143: 3853.90 | H143: 3817.75 | I143: 3942.55 | J143: 3978.70 | K143: 4004.95 | L143: 3952.45 | M143: 3890.05 | N143: 1960400 | O143: -0.59%
A144: 134 | B144: Fertilisers | C144: UPL | D144: 501.00 | E144: 497.85 | F144: 492.70 | G144: 484.40 | H144: 479.25 | I144: 506.15 | J144: 511.30 | K144: 519.60 | L144: 503 | M144: 489.55 | N144: 10077600 | O144: 3.03%
A145: 135 | B145: Metals | C145: VEDL | D145: 132.30 | E145: 130.98 | F145: 129.02 | G145: 125.73 | H145: 123.77 | I145: 134.27 | J145: 136.23 | K145: 139.52 | L145: 132.95 | M145: 127.7 | N145: 131322200 | O145: 8.24%
A146: 136 | B146: Capital_Goods | C146: VOLTAS | D146: 658.55 | E146: 656.30 | F146: 650.00 | G146: 641.45 | H146: 635.15 | I146: 664.85 | J146: 671.15 | K146: 679.70 | L146: 662.6 | M146: 647.75 | N146: 2097000 | O146: 0.24%
A147: 137 | B147: Technology | C147: WIPRO | D147: 294.25 | E147: 292.50 | F147: 285.70 | G147: 277.15 | H147: 270.35 | I147: 301.05 | J147: 307.85 | K147: 316.40 | L147: 299.3 | M147: 283.95 | N147: 28339200 | O147: 11.09%
A148: 138 | B148: Media | C148: ZEEL | D148: 218.85 | E148: 220.13 | F148: 215.47 | G148: 212.08 | H148: 207.42 | I148: 223.52 | J148: 228.18 | K148: 231.57 | L148: 224.8 | M148: 216.75 | N148: 28020000 | O148: 0.11%
A149: 139
A150: 140
A151: 141
A152: 142
A153: 143
A154: 144
A155: 145
A156: 146
A157: 147
A175: Pivot Point: This is trigger point for intra day buy/sell based on the price range of the previous day
A176: As per the tool,the trader should take BUY position just above Pivot and keep the stop loss of pivot point and the first target would be Resistance 1(R1)
A177: If R1 is crossed then R2 becomes the next target with stop loss of at R1
A178: Similarly if price goes below pivot point then the trader should sell and keep a stop loss of pivot point and the first target would be S1
A179: If S1 is crossed then S2 becomes the next target with stop loss of at S1
A181: Disclaimer:
A182: This document has been prepared by the Retail Research Desk of Asit C Mehta
A183: Investment Intermediates Ltd. and is meant for use of the recipient only
A184: and is not for circulation. This document is not to be reported or
A185: copied or made available to others. It should not be considered to be
A186: taken as an offer to sell or a solicitation to buy any security. The
A187: information contained herein is from sources believed reliable. We do
A188: not represent that it is accurate or complete and it should not be
A189: relied upon as such. We may from time to time have positions in and buy
A190: and sell securities referred to herein

Sheet Cash Intra
M5: Back to Main Page
A6: FOR INTRA DAY TRADING | K6: =Main!B10 -> 2020-09-14
A8: Sr.no | B8: Scrip | C8: CLOSE RATE | D8: Pivot Point | E8: Supports | H8: Resistances
C9: Point | E9: S1 | F9: S2 | G9: S3 | H9: R1 | I9: R2 | J9: R3 | K9: HIGH | L9: LOW | M9: Total Trade Quanity in Lakhs
A10: 1 | B10: Nifty 50 | C10: 11464.45 | D10: 11459.28 | E10: 11425.07 | F10: 11385.68 | G10: 11351.47 | H10: 11498.67 | I10: 11532.88 | J10: 11572.27 | K10: 11493.5 | L10: 11419.9
A11: 2 | B11: Nifty Bank | C11: 22479.95 | D11: 22451.55 | E11: 22234.35 | F11: 21988.75 | G11: 21771.55 | H11: 22697.15 | I11: 22914.35 | J11: 23159.95 | K11: 22668.75 | L11: 22205.95
A12: 3 | B12: Nifty CPSE | C12: 1410.55 | D12: 1412.42 | E12: 1402.98 | F12: 1395.42 | G12: 1385.98 | H12: 1419.98 | I12: 1429.42 | J12: 1436.98 | K12: 1421.85 | L12: 1404.85
A13: 4 | B13: Nifty Infra | C13: 3201.75 | D13: 3201.55 | E13: 3186.60 | F13: 3171.45 | G13: 3156.50 | H13: 3216.70 | I13: 3231.65 | J13: 3246.80 | K13: 3216.5 | L13: 3186.4
A14: 5 | B14: Nifty IT | C14: 18633.25 | D14: 18570.73 | E14: 18400.62 | F14: 18167.98 | G14: 17997.87 | H14: 18803.37 | I14: 18973.48 | J14: 19206.12 | K14: 18740.85 | L14: 18338.1
A15: 6 | B15: Nifty PSE | C15: 2465.5 | D15: 2467.12 | E15: 2448.73 | F15: 2431.97 | G15: 2413.58 | H15: 2483.88 | I15: 2502.27 | J15: 2519.03 | K15: 2485.5 | L15: 2450.35
A16: 7 | B16: Nifty Midcap 50 | C16: 4644.85 | D16: 4632.63 | E16: 4614.42 | F16: 4583.98 | G16: 4565.77 | H16: 4663.07 | I16: 4681.28 | J16: 4711.72 | K16: 4650.85 | L16: 4602.2
A17: 8 | B17: AARTIIND | C17: 1022.3 | D17: 1028.28 | E17: 1009.12 | F17: 995.93 | G17: 976.77 | H17: 1041.47 | I17: 1060.63 | J17: 1073.82 | K17: 1047.45 | L17: 1015.1 | M17: 1.41368
A18: 9 | B18: ABBOTINDIA | C18: 16819.25 | D18: 16722.45 | E18: 16546.90 | F18: 16274.55 | G18: 16099.00 | H18: 16994.80 | I18: 17170.35 | J18: 17442.70 | K18: 16898 | L18: 16450.1 | M18: 0.11023
A19: 10 | B19: ABCAPITAL | C19: 69.65 | D19: 70.15 | E19: 68.70 | F19: 67.75 | G19: 66.30 | H19: 71.10 | I19: 72.55 | J19: 73.50 | K19: 71.6 | L19: 69.2 | M19: 20.29034
A20: 11 | B20: ABFRL | C20: 131.55 | D20: 132.03 | E20: 129.87 | F20: 128.18 | G20: 126.02 | H20: 133.72 | I20: 135.88 | J20: 137.57 | K20: 134.2 | L20: 130.35 | M20: 11.14995
A21: 12 | B21: ACC | C21: 1321.55 | D21: 1330.40 | E21: 1306.80 | F21: 1292.05 | G21: 1268.45 | H21: 1345.15 | I21: 1368.75 | J21: 1383.50 | K21: 1354 | L21: 1315.65 | M21: 11.48199
A22: 13 | B22: ADANIGAS | C22: 207.35 | D22: 206.62 | E22: 202.83 | F22: 198.32 | G22: 194.53 | H22: 211.13 | I22: 214.92 | J22: 219.43 | K22: 210.4 | L22: 202.1 | M22: 35.61459
A23: 14 | B23: ADANIPORTS | C23: 342.5 | D23: 339.95 | E23: 336.00 | F23: 329.50 | G23: 325.55 | H23: 346.45 | I23: 350.40 | J23: 356.90 | K23: 343.9 | L23: 333.45 | M23: 46.56343
A24: 15 | B24: ADANIPOWER | C24: 37.4 | D24: 37.50 | E24: 37.10 | F24: 36.80 | G24: 36.40 | H24: 37.80 | I24: 38.20 | J24: 38.50 | K24: 37.9 | L24: 37.2 | M24: 16.20858
A25: 16 | B25: ADANITRANS | C25: 271.8 | D25: 271.35 | E25: 267.80 | F25: 263.80 | G25: 260.25 | H25: 275.35 | I25: 278.90 | J25: 282.90 | K25: 274.9 | L25: 267.35 | M25: 3.39682
A26: 17 | B26: AJANTPHARM | C26: 1504.6 | D26: 1507.65 | E26: 1490.95 | F26: 1477.30 | G26: 1460.60 | H26: 1521.30 | I26: 1538.00 | J26: 1551.65 | K26: 1524.35 | L26: 1494 | M26: 0.70727
A27: 18 | B27: ALKEM | C27: 2900.9 | D27: 2908.30 | E27: 2849.60 | F27: 2798.30 | G27: 2739.60 | H27: 2959.60 | I27: 3018.30 | J27: 3069.60 | K27: 2967 | L27: 2857 | M27: 2.38569
A28: 19 | B28: AMARAJABAT | C28: 746.9 | D28: 745.72 | E28: 739.33 | F28: 731.77 | G28: 725.38 | H28: 753.28 | I28: 759.67 | J28: 767.23 | K28: 752.1 | L28: 738.15 | M28: 5.54943
A29: 20 | B29: AMBUJACEM | C29: 212.45 | D29: 212.68 | E29: 210.87 | F29: 209.28 | G29: 207.47 | H29: 214.27 | I29: 216.08 | J29: 217.67 | K29: 214.5 | L29: 211.1 | M29: 18.41491
A30: 21 | B30: APOLLOHOSP | C30: 1611.8 | D30: 1618.50 | E30: 1588.35 | F30: 1564.90 | G30: 1534.75 | H30: 1641.95 | I30: 1672.10 | J30: 1695.55 | K30: 1648.65 | L30: 1595.05 | M30: 8.67578
A31: 22 | B31: APOLLOTYRE | C31: 116.2 | D31: 116.25 | E31: 114.95 | F31: 113.70 | G31: 112.40 | H31: 117.50 | I31: 118.80 | J31: 120.05 | K31: 117.55 | L31: 115 | M31: 35.69939
A32: 23 | B32: ASHOKLEY | C32: 68.15 | D32: 68.05 | E32: 66.90 | F32: 65.65 | G32: 64.50 | H32: 69.30 | I32: 70.45 | J32: 71.70 | K32: 69.2 | L32: 66.8 | M32: 285.63979
A33: 24 | B33: ASIANPAINT | C33: 2035.95 | D33: 2042.63 | E33: 2015.32 | F33: 1994.68 | G33: 1967.37 | H33: 2063.27 | I33: 2090.58 | J33: 2111.22 | K33: 2069.95 | L33: 2022 | M33: 25.99525
A34: 25 | B34: AUBANK | C34: 673.15 | D34: 668.53 | E34: 655.62 | F34: 638.08 | G34: 625.17 | H34: 686.07 | I34: 698.98 | J34: 716.52 | K34: 681.45 | L34: 651 | M34: 2.57559
A35: 26 | B35: AUROPHARMA | C35: 802.95 | D35: 800.83 | E35: 792.47 | F35: 781.98 | G35: 773.62 | H35: 811.32 | I35: 819.68 | J35: 830.17 | K35: 809.2 | L35: 790.35 | M35: 22.39995
A36: 27 | B36: AXISBANK | C36: 447.2 | D36: 445.43 | E36: 441.02 | F36: 434.83 | G36: 430.42 | H36: 451.62 | I36: 456.03 | J36: 462.22 | K36: 449.85 | L36: 439.25 | M36: 186.20876
A37: 28 | B37: BAJAJ-AUTO | C37: 2916.35 | D37: 2920.73 | E37: 2899.52 | F37: 2882.68 | G37: 2861.47 | H37: 2937.57 | I37: 2958.78 | J37: 2975.62 | K37: 2941.95 | L37: 2903.9 | M37: 6.83992
A38: 29 | B38: BAJAJFINSV | C38: 6128.4 | D38: 6127.67 | E38: 6080.73 | F38: 6033.07 | G38: 5986.13 | H38: 6175.33 | I38: 6222.27 | J38: 6269.93 | K38: 6174.6 | L38: 6080 | M38: 4.65485
A39: 30 | B39: BAJAJHLDNG | C39: 2461.15 | D39: 2469.35 | E39: 2445.10 | F39: 2429.05 | G39: 2404.80 | H39: 2485.40 | I39: 2509.65 | J39: 2525.70 | K39: 2493.6 | L39: 2453.3 | M39: 0.10273
A40: 31 | B40: BAJFINANCE | C40: 3544.4 | D40: 3519.60 | E40: 3481.50 | F40: 3418.60 | G40: 3380.50 | H40: 3582.50 | I40: 3620.60 | J40: 3683.50 | K40: 3557.7 | L40: 3456.7 | M40: 46.08384
A41: 32 | B41: BALKRISIND | C41: 1302.3 | D41: 1287.12 | E41: 1265.23 | F41: 1228.17 | G41: 1206.28 | H41: 1324.18 | I41: 1346.07 | J41: 1383.13 | K41: 1309 | L41: 1250.05 | M41: 7.9811
A42: 33 | B42: BANDHANBNK | C42: 311.8 | D42: 309.77 | E42: 305.03 | F42: 298.27 | G42: 293.53 | H42: 316.53 | I42: 321.27 | J42: 328.03 | K42: 314.5 | L42: 303 | M42: 78.39437
A43: 34 | B43: BANKBARODA | C43: 45.95 | D43: 45.78 | E43: 45.47 | F43: 44.98 | G43: 44.67 | H43: 46.27 | I43: 46.58 | J43: 47.07 | K43: 46.1 | L43: 45.3 | M43: 131.34359
A44: 35 | B44: BANKINDIA | C44: 47.65 | D44: 47.90 | E44: 46.80 | F44: 45.95 | G44: 44.85 | H44: 48.75 | I44: 49.85 | J44: 50.70 | K44: 49 | L44: 47.05 | M44: 25.88631
A45: 36 | B45: BATAINDIA | C45: 1264.6 | D45: 1271.88 | E45: 1252.77 | F45: 1240.93 | G45: 1221.82 | H45: 1283.72 | I45: 1302.83 | J45: 1314.67 | K45: 1291 | L45: 1260.05 | M45: 7.47816
A46: 37 | B46: BBTC | C46: 1365.3 | D46: 1363.28 | E46: 1334.57 | F46: 1303.83 | G46: 1275.12 | H46: 1394.02 | I46: 1422.73 | J46: 1453.47 | K46: 1392 | L46: 1332.55 | M46: 1.53217
A47: 38 | B47: BEL | C47: 102.25 | D47: 102.10 | E47: 101.45 | F47: 100.65 | G47: 100.00 | H47: 102.90 | I47: 103.55 | J47: 104.35 | K47: 102.75 | L47: 101.3 | M47: 46.96372
A48: 39 | B48: BERGEPAINT | C48: 572.65 | D48: 571.92 | E48: 565.33 | F48: 558.02 | G48: 551.43 | H48: 579.23 | I48: 585.82 | J48: 593.13 | K48: 578.5 | L48: 564.6 | M48: 14.96945
A49: 40 | B49: BHARATFORG | C49: 463.4 | D49: 462.07 | E49: 457.63 | F49: 451.87 | G49: 447.43 | H49: 467.83 | I49: 472.27 | J49: 478.03 | K49: 466.5 | L49: 456.3 | M49: 17.2671
A50: 41 | B50: BHARTIARTL | C50: 491.65 | D50: 494.22 | E50: 485.98 | F50: 480.32 | G50: 472.08 | H50: 499.88 | I50: 508.12 | J50: 513.78 | K50: 502.45 | L50: 488.55 | M50: 155.977
A51: 42 | B51: BHEL | C51: 37.1 | D51: 37.32 | E51: 36.78 | F51: 36.47 | G51: 35.93 | H51: 37.63 | I51: 38.17 | J51: 38.48 | K51: 37.85 | L51: 37 | M51: 188.22257
A52: 43 | B52: BIOCON | C52: 433.1 | D52: 433.37 | E52: 427.08 | F52: 421.07 | G52: 414.78 | H52: 439.38 | I52: 445.67 | J52: 451.68 | K52: 439.65 | L52: 427.35 | M52: 57.707
A53: 44 | B53: BOSCHLTD | C53: 12872.15 | D53: 12893.05 | E53: 12746.10 | F53: 12620.05 | G53: 12473.10 | H53: 13019.10 | I53: 13166.05 | J53: 13292.10 | K53: 13040 | L53: 12767 | M53: 0.34008
A54: 45 | B54: BPCL | C54: 428.75 | D54: 429.03 | E54: 422.07 | F54: 415.38 | G54: 408.42 | H54: 435.72 | I54: 442.68 | J54: 449.37 | K54: 436 | L54: 422.35 | M54: 125.84431
A55: 46 | B55: BRITANNIA | C55: 3772.25 | D55: 3773.42 | E55: 3718.83 | F55: 3665.42 | G55: 3610.83 | H55: 3826.83 | I55: 3881.42 | J55: 3934.83 | K55: 3828 | L55: 3720 | M55: 8.29715
A56: 47 | B56: CADILAHC | C56: 370 | D56: 366.88 | E56: 361.12 | F56: 352.23 | G56: 346.47 | H56: 375.77 | I56: 381.53 | J56: 390.42 | K56: 372.65 | L56: 358 | M56: 44.08064
A57: 48 | B57: CANBK | C57: 100.85 | D57: 100.63 | E57: 98.52 | F57: 96.18 | G57: 94.07 | H57: 102.97 | I57: 105.08 | J57: 107.42 | K57: 102.75 | L57: 98.3 | M57: 123.01964
A58: 49 | B58: CASTROLIND | C58: 119.85 | D58: 119.73 | E58: 118.62 | F58: 117.38 | G58: 116.27 | H58: 120.97 | I58: 122.08 | J58: 123.32 | K58: 120.85 | L58: 118.5 | M58: 6.3586
A59: 50 | B59: CESC | C59: 626.45 | D59: 628.05 | E59: 611.75 | F59: 597.05 | G59: 580.75 | H59: 642.75 | I59: 659.05 | J59: 673.75 | K59: 644.35 | L59: 613.35 | M59: 3.94843
A60: 51 | B60: CHOLAFIN | C60: 224.45 | D60: 224.08 | E60: 221.72 | F60: 218.98 | G60: 216.62 | H60: 226.82 | I60: 229.18 | J60: 231.92 | K60: 226.45 | L60: 221.35 | M60: 36.03421
A61: 52 | B61: CIPLA | C61: 725.95 | D61: 725.90 | E61: 720.30 | F61: 714.65 | G61: 709.05 | H61: 731.55 | I61: 737.15 | J61: 742.80 | K61: 731.5 | L61: 720.25 | M61: 24.65472
A62: 53 | B62: COALINDIA | C62: 125.1 | D62: 125.58 | E62: 124.17 | F62: 123.23 | G62: 121.82 | H62: 126.52 | I62: 127.93 | J62: 128.87 | K62: 127 | L62: 124.65 | M62: 125.88469
A63: 54 | B63: COFORGE | C63: 2090.6 | D63: 2036.17 | E63: 1969.43 | F63: 1848.27 | G63: 1781.53 | H63: 2157.33 | I63: 2224.07 | J63: 2345.23 | K63: 2102.9 | L63: 1915 | M63: 17.72918
A64: 55 | B64: COLPAL | C64: 1418.65 | D64: 1410.02 | E64: 1396.73 | F64: 1374.82 | G64: 1361.53 | H64: 1431.93 | I64: 1445.22 | J64: 1467.13 | K64: 1423.3 | L64: 1388.1 | M64: 14.10047
A65: 56 | B65: CONCOR | C65: 383.8 | D65: 379.72 | E65: 374.43 | F65: 365.07 | G65: 359.78 | H65: 389.08 | I65: 394.37 | J65: 403.73 | K65: 385 | L65: 370.35 | M65: 36.92299
A66: 57 | B66: COROMANDEL | C66: 748.2 | D66: 740.37 | E66: 721.33 | F66: 694.47 | G66: 675.43 | H66: 767.23 | I66: 786.27 | J66: 813.13 | K66: 759.4 | L66: 713.5 | M66: 6.46199
A67: 58 | B67: CROMPTON | C67: 254.3 | D67: 254.52 | E67: 250.23 | F67: 246.17 | G67: 241.88 | H67: 258.58 | I67: 262.87 | J67: 266.93 | K67: 258.8 | L67: 250.45 | M67: 2.40832
A68: 59 | B68: CUB | C68: 133.85 | D68: 133.97 | E68: 132.18 | F68: 130.52 | G68: 128.73 | H68: 135.63 | I68: 137.42 | J68: 139.08 | K68: 135.75 | L68: 132.3 | M68: 10.14132
A69: 60 | B69: CUMMINSIND | C69: 456.4 | D69: 459.30 | E69: 449.60 | F69: 442.80 | G69: 433.10 | H69: 466.10 | I69: 475.80 | J69: 482.60 | K69: 469 | L69: 452.5 | M69: 24.86466
A70: 61 | B70: DABUR | C70: 508.25 | D70: 503.88 | E70: 496.07 | F70: 483.88 | G70: 476.07 | H70: 516.07 | I70: 523.88 | J70: 536.07 | K70: 511.7 | L70: 491.7 | M70: 53.51472
A71: 62 | B71: DALBHARAT | C71: 713.25 | D71: 706.97 | E71: 698.43 | F71: 683.62 | G71: 675.08 | H71: 721.78 | I71: 730.32 | J71: 745.13 | K71: 715.5 | L71: 692.15 | M71: 0.85476
A72: 63 | B72: DIVISLAB | C72: 3146.65 | D72: 3145.67 | E72: 3118.98 | F72: 3091.32 | G72: 3064.63 | H72: 3173.33 | I72: 3200.02 | J72: 3227.68 | K72: 3172.35 | L72: 3118 | M72: 4.64651
A73: 64 | B73: DLF | C73: 154.3 | D73: 153.45 | E73: 150.00 | F73: 145.70 | G73: 142.25 | H73: 157.75 | I73: 161.20 | J73: 165.50 | K73: 156.9 | L73: 149.15 | M73: 173.19975
A74: 65 | B74: DMART | C74: 2239.35 | D74: 2246.13 | E74: 2219.27 | F74: 2199.18 | G74: 2172.32 | H74: 2266.22 | I74: 2293.08 | J74: 2313.17 | K74: 2273 | L74: 2226.05 | M74: 4.56379
A75: 66 | B75: DRREDDY | C75: 4401.6 | D75: 4407.87 | E75: 4368.73 | F75: 4335.87 | G75: 4296.73 | H75: 4440.73 | I75: 4479.87 | J75: 4512.73 | K75: 4447 | L75: 4375 | M75: 8.86945
A76: 67 | B76: EDELWEISS | C76: 73.55 | D76: 73.35 | E76: 72.20 | F76: 70.85 | G76: 69.70 | H76: 74.70 | I76: 75.85 | J76: 77.20 | K76: 74.5 | L76: 72 | M76: 3.66715
A77: 68 | B77: EICHERMOT | C77: 2160.3 | D77: 2159.70 | E77: 2140.70 | F77: 2121.10 | G77: 2102.10 | H77: 2179.30 | I77: 2198.30 | J77: 2217.90 | K77: 2178.7 | L77: 2140.1 | M77: 11.4387
A78: 69 | B78: EMAMILTD | C78: 383.5 | D78: 383.98 | E78: 375.07 | F78: 366.63 | G78: 357.72 | H78: 392.42 | I78: 401.33 | J78: 409.77 | K78: 392.9 | L78: 375.55 | M78: 9.51176
A79: 70 | B79: ENDURANCE | C79: 1080.9 | D79: 1077.35 | E79: 1061.70 | F79: 1042.50 | G79: 1026.85 | H79: 1096.55 | I79: 1112.20 | J79: 1131.40 | K79: 1093 | L79: 1058.15 | M79: 0.28094
A80: 71 | B80: ESCORTS | C80: 1198.6 | D80: 1198.28 | E80: 1182.32 | F80: 1166.03 | G80: 1150.07 | H80: 1214.57 | I80: 1230.53 | J80: 1246.82 | K80: 1214.25 | L80: 1182 | M80: 27.39844
A81: 72 | B81: EXIDEIND | C81: 155.65 | D81: 155.97 | E81: 153.98 | F81: 152.32 | G81: 150.33 | H81: 157.63 | I81: 159.62 | J81: 161.28 | K81: 157.95 | L81: 154.3 | M81: 19.97015
A82: 73 | B82: FEDERALBNK | C82: 51.8 | D82: 51.60 | E82: 51.05 | F82: 50.30 | G82: 49.75 | H82: 52.35 | I82: 52.90 | J82: 53.65 | K82: 52.15 | L82: 50.85 | M82: 231.14723
A83: 74 | B83: FORTIS | C83: 135.25 | D83: 135.92 | E83: 132.93 | F83: 130.62 | G83: 127.63 | H83: 138.23 | I83: 141.22 | J83: 143.53 | K83: 138.9 | L83: 133.6 | M83: 32.76278
A84: 75 | B84: FRETAIL | C84: 106.4 | D84: 105.60 | E84: 104.80 | F84: 103.20 | G84: 102.40 | H84: 107.20 | I84: 108.00 | J84: 109.60 | K84: 106.4 | L84: 104 | M84: 24.11561
A85: 76 | B85: GAIL | C85: 90.75 | D85: 90.83 | E85: 90.02 | F85: 89.28 | G85: 88.47 | H85: 91.57 | I85: 92.38 | J85: 93.12 | K85: 91.65 | L85: 90.1 | M85: 118.83991
A86: 77 | B86: GICRE | C86: 134.55 | D86: 135.35 | E86: 133.20 | F86: 131.85 | G86: 129.70 | H86: 136.70 | I86: 138.85 | J86: 140.20 | K86: 137.5 | L86: 134 | M86: 2.27744
A87: 78 | B87: GLENMARK | C87: 485.15 | D87: 480.37 | E87: 473.03 | F87: 460.92 | G87: 453.58 | H87: 492.48 | I87: 499.82 | J87: 511.93 | K87: 487.7 | L87: 468.25 | M87: 30.99927
A88: 79 | B88: GMRINFRA | C88: 23.4 | D88: 23.28 | E88: 23.02 | F88: 22.63 | G88: 22.37 | H88: 23.67 | I88: 23.93 | J88: 24.32 | K88: 23.55 | L88: 22.9 | M88: 92.82177
A89: 80 | B89: GODREJAGRO | C89: 490.8 | D89: 489.27 | E89: 486.53 | F89: 482.27 | G89: 479.53 | H89: 493.53 | I89: 496.27 | J89: 500.53 | K89: 492 | L89: 485 | M89: 0.63229
A90: 81 | B90: GODREJCP | C90: 685.65 | D90: 681.48 | E90: 674.97 | F90: 664.28 | G90: 657.77 | H90: 692.17 | I90: 698.68 | J90: 709.37 | K90: 688 | L90: 670.8 | M90: 6.79537
A91: 82 | B91: GODREJIND | C91: 407.55 | D91: 411.10 | E91: 401.95 | F91: 396.35 | G91: 387.20 | H91: 416.70 | I91: 425.85 | J91: 431.45 | K91: 420.25 | L91: 405.5 | M91: 0.60809
A92: 83 | B92: GODREJPROP | C92: 877.3 | D92: 886.27 | E92: 865.88 | F92: 854.47 | G92: 834.08 | H92: 897.68 | I92: 918.07 | J92: 929.48 | K92: 906.65 | L92: 874.85 | M92: 8.7202
A93: 84 | B93: GRASIM | C93: 720.95 | D93: 717.53 | E93: 708.07 | F93: 695.18 | G93: 685.72 | H93: 730.42 | I93: 739.88 | J93: 752.77 | K93: 727 | L93: 704.65 | M93: 73.30487
A94: 85 | B94: GSPL | C94: 197.95 | D94: 196.63 | E94: 194.37 | F94: 190.78 | G94: 188.52 | H94: 200.22 | I94: 202.48 | J94: 206.07 | K94: 198.9 | L94: 193.05 | M94: 3.39543
A95: 86 | B95: GUJGASLTD | C95: 295.75 | D95: 296.57 | E95: 293.43 | F95: 291.12 | G95: 287.98 | H95: 298.88 | I95: 302.02 | J95: 304.33 | K95: 299.7 | L95: 294.25 | M95: 4.48778
A96: 87 | B96: HAVELLS | C96: 653.75 | D96: 651.83 | E96: 645.37 | F96: 636.98 | G96: 630.52 | H96: 660.22 | I96: 666.68 | J96: 675.07 | K96: 658.3 | L96: 643.45 | M96: 17.92575
A97: 88 | B97: HCLTECH | C97: 721.65 | D97: 721.93 | E97: 709.87 | F97: 698.08 | G97: 686.02 | H97: 733.72 | I97: 745.78 | J97: 757.57 | K97: 734 | L97: 710.15 | M97: 72.21687
A98: 89 | B98: HDFC | C98: 1768.15 | D98: 1771.38 | E98: 1756.77 | F98: 1745.38 | G98: 1730.77 | H98: 1782.77 | I98: 1797.38 | J98: 1808.77 | K98: 1786 | L98: 1760 | M98: 22.32185
A99: 90 | B99: HDFCAMC | C99: 2368.25 | D99: 2379.73 | E99: 2351.52 | F99: 2334.78 | G99: 2306.57 | H99: 2396.47 | I99: 2424.68 | J99: 2441.42 | K99: 2407.95 | L99: 2363 | M99: 2.81488
A100: 91 | B100: HDFCBANK | C100: 1078.65 | D100: 1084.83 | E100: 1064.82 | F100: 1050.98 | G100: 1030.97 | H100: 1098.67 | I100: 1118.68 | J100: 1132.52 | K100: 1104.85 | L100: 1071 | M100: 103.97545
A101: 92 | B101: HDFCLIFE | C101: 604.8 | D101: 606.37 | E101: 600.03 | F101: 595.27 | G101: 588.93 | H101: 611.13 | I101: 617.47 | J101: 622.23 | K101: 612.7 | L101: 601.6 | M101: 45.65118
A102: 93 | B102: HEROMOTOCO | C102: 2992.25 | D102: 2982.90 | E102: 2958.10 | F102: 2923.95 | G102: 2899.15 | H102: 3017.05 | I102: 3041.85 | J102: 3076.00 | K102: 3007.7 | L102: 2948.75 | M102: 15.25239
A103: 94 | B103: HEXAWARE | C103: 417.2 | D103: 417.72 | E103: 405.88 | F103: 394.57 | G103: 382.73 | H103: 429.03 | I103: 440.87 | J103: 452.18 | K103: 429.55 | L103: 406.4 | M103: 37.12833
A104: 95 | B104: HINDALCO | C104: 178.65 | D104: 177.82 | E104: 175.63 | F104: 172.62 | G104: 170.43 | H104: 180.83 | I104: 183.02 | J104: 186.03 | K104: 180 | L104: 174.8 | M104: 157.80825
A105: 96 | B105: HINDPETRO | C105: 199.15 | D105: 200.20 | E105: 196.15 | F105: 193.15 | G105: 189.10 | H105: 203.20 | I105: 207.25 | J105: 210.25 | K105: 204.25 | L105: 197.2 | M105: 72.72718
A106: 97 | B106: HINDUNILVR | C106: 2159.25 | D106: 2150.92 | E106: 2132.83 | F106: 2106.42 | G106: 2088.33 | H106: 2177.33 | I106: 2195.42 | J106: 2221.83 | K106: 2169 | L106: 2124.5 | M106: 19.34716
A107: 98 | B107: HINDZINC | C107: 237.7 | D107: 231.57 | E107: 224.13 | F107: 210.57 | G107: 203.13 | H107: 245.13 | I107: 252.57 | J107: 266.13 | K107: 239 | L107: 218 | M107: 27.18373
A108: 99 | B108: HUDCO | C108: 34.7 | D108: 34.87 | E108: 34.38 | F108: 34.07 | G108: 33.58 | H108: 35.18 | I108: 35.67 | J108: 35.98 | K108: 35.35 | L108: 34.55 | M108: 12.99578
A109: 100 | B109: IBULHSGFIN | C109: 198.9 | D109: 197.83 | E109: 195.17 | F109: 191.43 | G109: 188.77 | H109: 201.57 | I109: 204.23 | J109: 207.97 | K109: 200.5 | L109: 194.1 | M109: 151.92817
A110: 101 | B110: IBVENTURES | C110: 218.15 | D110: 221.33 | E110: 212.87 | F110: 207.58 | G110: 199.12 | H110: 226.62 | I110: 235.08 | J110: 240.37 | K110: 229.8 | L110: 216.05 | M110: 15.11748
A111: 102 | B111: ICICIBANK | C111: 370.5 | D111: 369.75 | E111: 365.85 | F111: 361.20 | G111: 357.30 | H111: 374.40 | I111: 378.30 | J111: 382.95 | K111: 373.65 | L111: 365.1 | M111: 226.78883
A112: 103 | B112: ICICIGI | C112: 1298.2 | D112: 1287.07 | E112: 1265.13 | F112: 1232.07 | G112: 1210.13 | H112: 1320.13 | I112: 1342.07 | J112: 1375.13 | K112: 1309 | L112: 1254 | M112: 4.27605
A113: 104 | B113: ICICIPRULI | C113: 439.15 | D113: 442.35 | E113: 432.00 | F113: 424.85 | G113: 414.50 | H113: 449.50 | I113: 459.85 | J113: 467.00 | K113: 452.7 | L113: 435.2 | M113: 24.89984
A114: 105 | B114: IDBI | C114: 38 | D114: 37.95 | E114: 37.70 | F114: 37.40 | G114: 37.15 | H114: 38.25 | I114: 38.50 | J114: 38.80 | K114: 38.2 | L114: 37.65 | M114: 5.21953
A115: 106 | B115: IDEA | C115: 11.15 | D115: 11.15 | E115: 10.90 | F115: 10.65 | G115: 10.40 | H115: 11.40 | I115: 11.65 | J115: 11.90 | K115: 11.4 | L115: 10.9 | M115: 2238.36572
A116: 107 | B116: IDFCFIRSTB | C116: 31.05 | D116: 30.88 | E116: 30.57 | F116: 30.08 | G116: 29.77 | H116: 31.37 | I116: 31.68 | J116: 32.17 | K116: 31.2 | L116: 30.4 | M116: 272.91111
A117: 108 | B117: IGL | C117: 403.15 | D117: 399.05 | E117: 393.10 | F117: 383.05 | G117: 377.10 | H117: 409.10 | I117: 415.05 | J117: 425.10 | K117: 405 | L117: 389 | M117: 33.35393
A118: 109 | B118: INDHOTEL | C118: 99.15 | D118: 98.80 | E118: 97.60 | F118: 96.05 | G118: 94.85 | H118: 100.35 | I118: 101.55 | J118: 103.10 | K118: 100 | L118: 97.25 | M118: 11.52771
A119: 110 | B119: INDIGO | C119: 1294.45 | D119: 1277.82 | E119: 1254.63 | F119: 1214.82 | G119: 1191.63 | H119: 1317.63 | I119: 1340.82 | J119: 1380.63 | K119: 1301 | L119: 1238 | M119: 26.01353
A120: 111 | B120: INDUSINDBK | C120: 610.35 | D120: 612.00 | E120: 601.60 | F120: 592.85 | G120: 582.45 | H120: 620.75 | I120: 631.15 | J120: 639.90 | K120: 622.4 | L120: 603.25 | M120: 113.47391
A121: 112 | B121: INFRATEL | C121: 201.85 | D121: 203.78 | E121: 198.87 | F121: 195.88 | G121: 190.97 | H121: 206.77 | I121: 211.68 | J121: 214.67 | K121: 208.7 | L121: 200.8 | M121: 246.6234
A122: 113 | B122: INFY | C122: 945.7 | D122: 943.62 | E122: 933.08 | F122: 920.47 | G122: 909.93 | H122: 956.23 | I122: 966.77 | J122: 979.38 | K122: 954.15 | L122: 931 | M122: 66.72082
A123: 114 | B123: IOC | C123: 83.1 | D123: 83.05 | E123: 82.10 | F123: 81.10 | G123: 80.15 | H123: 84.05 | I123: 85.00 | J123: 86.00 | K123: 84 | L123: 82.05 | M123: 178.60255
A124: 115 | B124: IPCALAB | C124: 2013.4 | D124: 2026.13 | E124: 1993.27 | F124: 1973.13 | G124: 1940.27 | H124: 2046.27 | I124: 2079.13 | J124: 2099.27 | K124: 2059 | L124: 2006 | M124: 1.35196
A125: 116 | B125: IRCTC | C125: 1370.55 | D125: 1365.85 | E125: 1355.70 | F125: 1340.85 | G125: 1330.70 | H125: 1380.70 | I125: 1390.85 | J125: 1405.70 | K125: 1376 | L125: 1351 | M125: 4.45384
A126: 117 | B126: ITC | C126: 183.95 | D126: 184.40 | E126: 182.30 | F126: 180.65 | G126: 178.55 | H126: 186.05 | I126: 188.15 | J126: 189.80 | K126: 186.5 | L126: 182.75 | M126: 192.56801
A127: 118 | B127: JINDALSTEL | C127: 201.85 | D127: 199.95 | E127: 197.20 | F127: 192.55 | G127: 189.80 | H127: 204.60 | I127: 207.35 | J127: 212.00 | K127: 202.7 | L127: 195.3 | M127: 75.44839
A128: 119 | B128: JSWENERGY | C128: 58.75 | D128: 59.33 | E128: 57.62 | F128: 56.48 | G128: 54.77 | H128: 60.47 | I128: 62.18 | J128: 63.32 | K128: 61.05 | L128: 58.2 | M128: 40.98962
A129: 120 | B129: JSWSTEEL | C129: 287.8 | D129: 286.50 | E129: 284.00 | F129: 280.20 | G129: 277.70 | H129: 290.30 | I129: 292.80 | J129: 296.60 | K129: 289 | L129: 282.7 | M129: 64.85991
A130: 121 | B130: JUBILANT | C130: 738.45 | D130: 735.27 | E130: 727.13 | F130: 715.82 | G130: 707.68 | H130: 746.58 | I130: 754.72 | J130: 766.03 | K130: 743.4 | L130: 723.95 | M130: 3.39249
A131: 122 | B131: JUBLFOOD | C131: 2327.3 | D131: 2324.07 | E131: 2270.23 | F131: 2213.17 | G131: 2159.33 | H131: 2381.13 | I131: 2434.97 | J131: 2492.03 | K131: 2377.9 | L131: 2267 | M131: 30.81541
A132: 123 | B132: KOTAKBANK | C132: 1330.35 | D132: 1325.85 | E132: 1315.50 | F132: 1300.65 | G132: 1290.30 | H132: 1340.70 | I132: 1351.05 | J132: 1365.90 | K132: 1336.2 | L132: 1311 | M132: 35.00326
A133: 124 | B133: L&TFH | C133: 63.1 | D133: 62.88 | E133: 62.37 | F133: 61.63 | G133: 61.12 | H133: 63.62 | I133: 64.13 | J133: 64.87 | K133: 63.4 | L133: 62.15 | M133: 69.12948
A134: 125 | B134: LALPATHLAB | C134: 1839.05 | D134: 1824.35 | E134: 1804.70 | F134: 1770.35 | G134: 1750.70 | H134: 1858.70 | I134: 1878.35 | J134: 1912.70 | K134: 1844 | L134: 1790 | M134: 0.74254
A135: 126 | B135: LICHSGFIN | C135: 296.5 | D135: 295.90 | E135: 293.20 | F135: 289.90 | G135: 287.20 | H135: 299.20 | I135: 301.90 | J135: 305.20 | K135: 298.6 | L135: 292.6 | M135: 20.79234
A136: 127 | B136: LT | C136: 917.4 | D136: 916.98 | E136: 912.42 | F136: 907.43 | G136: 902.87 | H136: 921.97 | I136: 926.53 | J136: 931.52 | K136: 921.55 | L136: 912 | M136: 26.32367
A137: 128 | B137: LTI | C137: 2499.4 | D137: 2494.07 | E137: 2478.13 | F137: 2456.87 | G137: 2440.93 | H137: 2515.33 | I137: 2531.27 | J137: 2552.53 | K137: 2510 | L137: 2472.8 | M137: 0.88596
A138: 129 | B138: LTTS | C138: 1524.2 | D138: 1512.62 | E138: 1485.23 | F138: 1446.27 | G138: 1418.88 | H138: 1551.58 | I138: 1578.97 | J138: 1617.93 | K138: 1540 | L138: 1473.65 | M138: 0.97579
A139: 130 | B139: LUPIN | C139: 967.65 | D139: 964.35 | E139: 955.70 | F139: 943.75 | G139: 935.10 | H139: 976.30 | I139: 984.95 | J139: 996.90 | K139: 973 | L139: 952.4 | M139: 21.54611
A140: 131 | B140: M&M | C140: 614.25 | D140: 616.08 | E140: 610.27 | F140: 606.28 | G140: 600.47 | H140: 620.07 | I140: 625.88 | J140: 629.87 | K140: 621.9 | L140: 612.1 | M140: 28.38777
A141: 132 | B141: M&MFIN | C141: 130.85 | D141: 130.73 | E141: 129.47 | F141: 128.08 | G141: 126.82 | H141: 132.12 | I141: 133.38 | J141: 134.77 | K141: 132 | L141: 129.35 | M141: 50.95796
A142: 133 | B142: MANAPPURAM | C142: 157.25 | D142: 153.77 | E142: 149.53 | F142: 141.82 | G142: 137.58 | H142: 161.48 | I142: 165.72 | J142: 173.43 | K142: 158 | L142: 146.05 | M142: 202.55477
A143: 134 | B143: MARICO | C143: 366.7 | D143: 365.65 | E143: 363.35 | F143: 360.00 | G143: 357.70 | H143: 369.00 | I143: 371.30 | J143: 374.65 | K143: 367.95 | L143: 362.3 | M143: 17.82553
A144: 135 | B144: MARUTI | C144: 7193.6 | D144: 7239.50 | E144: 7129.10 | F144: 7064.60 | G144: 6954.20 | H144: 7304.00 | I144: 7414.40 | J144: 7478.90 | K144: 7349.9 | L144: 7175 | M144: 13.83019
A145: 136 | B145: MCDOWELL-N | C145: 547 | D145: 548.65 | E145: 541.30 | F145: 535.60 | G145: 528.25 | H145: 554.35 | I145: 561.70 | J145: 567.40 | K145: 556 | L145: 542.95 | M145: 16.50899
A146: 137 | B146: MFSL | C146: 597.85 | D146: 593.10 | E146: 585.30 | F146: 572.75 | G146: 564.95 | H146: 605.65 | I146: 613.45 | J146: 626.00 | K146: 600.9 | L146: 580.55 | M146: 10.60801
A147: 138 | B147: MGL | C147: 906.1 | D147: 903.67 | E147: 897.53 | F147: 888.97 | G147: 882.83 | H147: 912.23 | I147: 918.37 | J147: 926.93 | K147: 909.8 | L147: 895.1 | M147: 8.67419
A148: 139 | B148: MINDTREE | C148: 1183.8 | D148: 1191.22 | E148: 1165.43 | F148: 1147.07 | G148: 1121.28 | H148: 1209.58 | I148: 1235.37 | J148: 1253.73 | K148: 1217 | L148: 1172.85 | M148: 13.55342
A149: 140 | B149: MOTHERSUMI | C149: 112.2 | D149: 112.10 | E149: 110.95 | F149: 109.70 | G149: 108.55 | H149: 113.35 | I149: 114.50 | J149: 115.75 | K149: 113.25 | L149: 110.85 | M149: 59.07323
A150: 141 | B150: MPHASIS | C150: 1154.35 | D150: 1152.98 | E150: 1140.97 | F150: 1127.58 | G150: 1115.57 | H150: 1166.37 | I150: 1178.38 | J150: 1191.77 | K150: 1165 | L150: 1139.6 | M150: 3.08892
A151: 142 | B151: MRF | C151: 59226.7 | D151: 59024.20 | E151: 58648.40 | F151: 58070.10 | G151: 57694.30 | H151: 59602.50 | I151: 59978.30 | J151: 60556.60 | K151: 59400 | L151: 58445.9 | M151: 0.14081
A152: 143 | B152: MRPL | C152: 29.95 | D152: 30.17 | E152: 29.53 | F152: 29.12 | G152: 28.48 | H152: 30.58 | I152: 31.22 | J152: 31.63 | K152: 30.8 | L152: 29.75 | M152: 12.42363
A153: 144 | B153: MUTHOOTFIN | C153: 1128.5 | D153: 1116.83 | E153: 1099.67 | F153: 1070.83 | G153: 1053.67 | H153: 1145.67 | I153: 1162.83 | J153: 1191.67 | K153: 1134 | L153: 1088 | M153: 24.52235
A154: 145 | B154: NAM-INDIA | C154: 273.75 | D154: 273.65 | E154: 271.60 | F154: 269.45 | G154: 267.40 | H154: 275.80 | I154: 277.85 | J154: 280.00 | K154: 275.7 | L154: 271.5 | M154: 4.75116
A155: 146 | B155: NATCOPHARM | C155: 777.05 | D155: 777.68 | E155: 764.37 | F155: 751.68 | G155: 738.37 | H155: 790.37 | I155: 803.68 | J155: 816.37 | K155: 791 | L155: 765 | M155: 1.63273
A156: 147 | B156: NATIONALUM | C156: 34.8 | D156: 34.65 | E156: 34.35 | F156: 33.90 | G156: 33.60 | H156: 35.10 | I156: 35.40 | J156: 35.85 | K156: 34.95 | L156: 34.2 | M156: 52.02748
A157: 148 | B157: NAUKRI | C157: 3384.85 | D157: 3387.57 | E157: 3340.33 | F157: 3295.82 | G157: 3248.58 | H157: 3432.08 | I157: 3479.32 | J157: 3523.83 | K157: 3434.8 | L157: 3343.05 | M157: 6.67957
A158: 149 | B158: NESTLEIND | C158: 16325.35 | D158: 16309.78 | E158: 16219.57 | F158: 16113.78 | G158: 16023.57 | H158: 16415.57 | I158: 16505.78 | J158: 16611.57 | K158: 16400 | L158: 16204 | M158: 0.81228
A159: 150 | B159: NHPC | C159: 20.55 | D159: 20.57 | E159: 20.38 | F159: 20.22 | G159: 20.03 | H159: 20.73 | I159: 20.92 | J159: 21.08 | K159: 20.75 | L159: 20.4 | M159: 32.3178
A160: 151 | B160: NMDC | C160: 89.8 | D160: 89.72 | E160: 88.83 | F160: 87.87 | G160: 86.98 | H160: 90.68 | I160: 91.57 | J160: 92.53 | K160: 90.6 | L160: 88.75 | M160: 42.66042
A161: 152 | B161: NTPC | C161: 90.1 | D161: 90.15 | E161: 89.40 | F161: 88.70 | G161: 87.95 | H161: 90.85 | I161: 91.60 | J161: 92.30 | K161: 90.9 | L161: 89.45 | M161: 181.90992
A162: 153 | B162: OBEROIRLTY | C162: 378.55 | D162: 379.52 | E162: 372.03 | F162: 365.52 | G162: 358.03 | H162: 386.03 | I162: 393.52 | J162: 400.03 | K162: 387 | L162: 373 | M162: 13.37265
A163: 154 | B163: OFSS | C163: 2906.6 | D163: 2919.22 | E163: 2868.43 | F163: 2830.27 | G163: 2779.48 | H163: 2957.38 | I163: 3008.17 | J163: 3046.33 | K163: 2970 | L163: 2881.05 | M163: 0.44541
A164: 155 | B164: OIL | C164: 94.45 | D164: 94.68 | E164: 93.57 | F164: 92.68 | G164: 91.57 | H164: 95.57 | I164: 96.68 | J164: 97.57 | K164: 95.8 | L164: 93.8 | M164: 4.53865
A165: 156 | B165: ONGC | C165: 73.3 | D165: 73.20 | E165: 72.70 | F165: 72.10 | G165: 71.60 | H165: 73.80 | I165: 74.30 | J165: 74.90 | K165: 73.7 | L165: 72.6 | M165: 115.11957
A166: 157 | B166: PAGEIND | C166: 18440.75 | D166: 18534.00 | E166: 18291.00 | F166: 18141.25 | G166: 17898.25 | H166: 18683.75 | I166: 18926.75 | J166: 19076.50 | K166: 18777 | L166: 18384.25 | M166: 0.45656
A167: 158 | B167: PEL | C167: 1333.4 | D167: 1331.82 | E167: 1309.88 | F167: 1286.37 | G167: 1264.43 | H167: 1355.33 | I167: 1377.27 | J167: 1400.78 | K167: 1353.75 | L167: 1308.3 | M167: 20.76025
A168: 159 | B168: PETRONET | C168: 236.15 | D168: 235.80 | E168: 233.70 | F168: 231.25 | G168: 229.15 | H168: 238.25 | I168: 240.35 | J168: 242.80 | K168: 237.9 | L168: 233.35 | M168: 20.15037
A169: 160 | B169: PFC | C169: 92.15 | D169: 91.83 | E169: 90.97 | F169: 89.78 | G169: 88.92 | H169: 93.02 | I169: 93.88 | J169: 95.07 | K169: 92.7 | L169: 90.65 | M169: 54.79623
A170: 161 | B170: PFIZER | C170: 4872.6 | D170: 4917.20 | E170: 4815.40 | F170: 4758.20 | G170: 4656.40 | H170: 4974.40 | I170: 5076.20 | J170: 5133.40 | K170: 5019 | L170: 4860 | M170: 0.43196
A171: 162 | B171: PGHH | C171: 10026 | D171: 10068.25 | E171: 9962.75 | F171: 9899.50 | G171: 9794.00 | H171: 10131.50 | I171: 10237.00 | J171: 10300.25 | K171: 10173.75 | L171: 10005 | M171: 0.0277
A172: 163 | B172: PIDILITIND | C172: 1488.4 | D172: 1487.05 | E172: 1475.40 | F172: 1462.40 | G172: 1450.75 | H172: 1500.05 | I172: 1511.70 | J172: 1524.70 | K172: 1498.7 | L172: 1474.05 | M172: 9.11773
A173: 164 | B173: PIIND | C173: 1868.1 | D173: 1876.58 | E173: 1837.97 | F173: 1807.83 | G173: 1769.22 | H173: 1906.72 | I173: 1945.33 | J173: 1975.47 | K173: 1915.2 | L173: 1846.45 | M173: 4.6334
A174: 165 | B174: PNB | C174: 33.7 | D174: 33.62 | E174: 33.38 | F174: 33.07 | G174: 32.83 | H174: 33.93 | I174: 34.17 | J174: 34.48 | K174: 33.85 | L174: 33.3 | M174: 115.40834
A175: 166 | B175: PNBHOUSING | C175: 316.25 | D175: 315.05 | E175: 310.80 | F175: 305.35 | G175: 301.10 | H175: 320.50 | I175: 324.75 | J175: 330.20 | K175: 319.3 | L175: 309.6 | M175: 5.41631
A176: 167 | B176: POLYCAB | C176: 847.15 | D176: 847.77 | E176: 840.53 | F176: 833.92 | G176: 826.68 | H176: 854.38 | I176: 861.62 | J176: 868.23 | K176: 855 | L176: 841.15 | M176: 0.7187
A177: 168 | B177: POWERGRID | C177: 175.15 | D177: 175.85 | E177: 173.40 | F177: 171.65 | G177: 169.20 | H177: 177.60 | I177: 180.05 | J177: 181.80 | K177: 178.3 | L177: 174.1 | M177: 175.40145
A178: 169 | B178: PRESTIGE | C178: 242.85 | D178: 240.60 | E178: 236.40 | F178: 229.95 | G178: 225.75 | H178: 247.05 | I178: 251.25 | J178: 257.70 | K178: 244.8 | L178: 234.15 | M178: 5.37954
A179: 170 | B179: QUESS | C179: 373.55 | D179: 375.30 | E179: 370.30 | F179: 367.05 | G179: 362.05 | H179: 378.55 | I179: 383.55 | J179: 386.80 | K179: 380.3 | L179: 372.05 | M179: 1.06018
A180: 171 | B180: RAJESHEXPO | C180: 451.65 | D180: 451.72 | E180: 448.43 | F180: 445.22 | G180: 441.93 | H180: 454.93 | I180: 458.22 | J180: 461.43 | K180: 455 | L180: 448.5 | M180: 0.26801
A181: 172 | B181: RAMCOCEM | C181: 703 | D181: 702.33 | E181: 691.67 | F181: 680.33 | G181: 669.67 | H181: 713.67 | I181: 724.33 | J181: 735.67 | K181: 713 | L181: 691 | M181: 6.75766
A182: 173 | B182: RBLBANK | C182: 182.65 | D182: 181.87 | E182: 179.53 | F182: 176.42 | G182: 174.08 | H182: 184.98 | I182: 187.32 | J182: 190.43 | K182: 184.2 | L182: 178.75 | M182: 168.35638
A183: 174 | B183: RECLTD | C183: 107.35 | D183: 107.20 | E183: 106.00 | F183: 104.65 | G183: 103.45 | H183: 108.55 | I183: 109.75 | J183: 111.10 | K183: 108.4 | L183: 105.85 | M183: 44.97363
A184: 175 | B184: RELIANCE | C184: 2319.75 | D184: 2314.90 | E184: 2291.95 | F184: 2264.15 | G184: 2241.20 | H184: 2342.70 | I184: 2365.65 | J184: 2393.45 | K184: 2337.85 | L184: 2287.1 | M184: 274.45883
A185: 176 | B185: SAIL | C185: 38.9 | D185: 38.70 | E185: 38.20 | F185: 37.50 | G185: 37.00 | H185: 39.40 | I185: 39.90 | J185: 40.60 | K185: 39.2 | L185: 38 | M185: 276.99225
A186: 177 | B186: SBICARD | C186: 849.4 | D186: 841.40 | E186: 827.00 | F186: 804.60 | G186: 790.20 | H186: 863.80 | I186: 878.20 | J186: 900.60 | K186: 855.8 | L186: 819 | M186: 27.22066
A187: 178 | B187: SBILIFE | C187: 864.4 | D187: 858.35 | E187: 849.80 | F187: 835.20 | G187: 826.65 | H187: 872.95 | I187: 881.50 | J187: 896.10 | K187: 866.9 | L187: 843.75 | M187: 15.59677
A188: 179 | B188: SBIN | C188: 202.7 | D188: 201.18 | E188: 198.52 | F188: 194.33 | G188: 191.67 | H188: 205.37 | I188: 208.03 | J188: 212.22 | K188: 203.85 | L188: 197 | M188: 484.88142
A189: 180 | B189: SHREECEM | C189: 19502.5 | D189: 19534.37 | E189: 19333.23 | F189: 19163.97 | G189: 18962.83 | H189: 19703.63 | I189: 19904.77 | J189: 20074.03 | K189: 19735.5 | L189: 19365.1 | M189: 0.61264
A190: 181 | B190: SIEMENS | C190: 1224.7 | D190: 1222.97 | E190: 1212.08 | F190: 1199.47 | G190: 1188.58 | H190: 1235.58 | I190: 1246.47 | J190: 1259.08 | K190: 1233.85 | L190: 1210.35 | M190: 5.68565
A191: 182 | B191: SRF | C191: 4206.05 | D191: 4180.02 | E191: 4141.03 | F191: 4076.02 | G191: 4037.03 | H191: 4245.03 | I191: 4284.02 | J191: 4349.03 | K191: 4219 | L191: 4115 | M191: 2.09268
A192: 183 | B192: SRTRANSFIN | C192: 643.65 | D192: 639.37 | E192: 631.23 | F192: 618.82 | G192: 610.68 | H192: 651.78 | I192: 659.92 | J192: 672.33 | K192: 647.5 | L192: 626.95 | M192: 37.16116
A193: 184 | B193: SUNPHARMA | C193: 505.55 | D193: 506.83 | E193: 501.32 | F193: 497.08 | G193: 491.57 | H193: 511.07 | I193: 516.58 | J193: 520.82 | K193: 512.35 | L193: 502.6 | M193: 51.90138
A194: 185 | B194: SUNTV | C194: 486.9 | D194: 485.07 | E194: 477.73 | F194: 468.57 | G194: 461.23 | H194: 494.23 | I194: 501.57 | J194: 510.73 | K194: 492.4 | L194: 475.9 | M194: 29.59419
A195: 186 | B195: SYNGENE | C195: 474.95 | D195: 478.18 | E195: 464.37 | F195: 453.78 | G195: 439.97 | H195: 488.77 | I195: 502.58 | J195: 513.17 | K195: 492 | L195: 467.6 | M195: 5.16571
A196: 187 | B196: TATACONSUM | C196: 548.4 | D196: 547.45 | E196: 541.90 | F196: 535.40 | G196: 529.85 | H196: 553.95 | I196: 559.50 | J196: 566.00 | K196: 553 | L196: 540.95 | M196: 34.51646
A197: 188 | B197: TATAMOTORS | C197: 144.3 | D197: 144.25 | E197: 141.70 | F197: 139.10 | G197: 136.55 | H197: 146.85 | I197: 149.40 | J197: 152.00 | K197: 146.8 | L197: 141.65 | M197: 651.37801
A198: 189 | B198: TATAPOWER | C198: 56.7 | D198: 56.22 | E198: 55.28 | F198: 53.87 | G198: 52.93 | H198: 57.63 | I198: 58.57 | J198: 59.98 | K198: 57.15 | L198: 54.8 | M198: 221.60895
A199: 190 | B199: TATASTEEL | C199: 407.5 | D199: 407.55 | E199: 402.45 | F199: 397.40 | G199: 392.30 | H199: 412.60 | I199: 417.70 | J199: 422.75 | K199: 412.65 | L199: 402.5 | M199: 136.87127
A200: 191 | B200: TCS | C200: 2374.1 | D200: 2362.42 | E200: 2341.83 | F200: 2309.57 | G200: 2288.98 | H200: 2394.68 | I200: 2415.27 | J200: 2447.53 | K200: 2383 | L200: 2330.15 | M200: 41.45429
A201: 192 | B201: TECHM | C201: 765.15 | D201: 761.08 | E201: 751.57 | F201: 737.98 | G201: 728.47 | H201: 774.67 | I201: 784.18 | J201: 797.77 | K201: 770.6 | L201: 747.5 | M201: 49.18291
A202: 193 | B202: TITAN | C202: 1167.75 | D202: 1172.25 | E202: 1150.50 | F202: 1133.25 | G202: 1111.50 | H202: 1189.50 | I202: 1211.25 | J202: 1228.50 | K202: 1194 | L202: 1155 | M202: 55.72098
A203: 194 | B203: TORNTPHARM | C203: 2837.2 | D203: 2830.05 | E203: 2818.15 | F203: 2799.10 | G203: 2787.20 | H203: 2849.10 | I203: 2861.00 | J203: 2880.05 | K203: 2841.95 | L203: 2811 | M203: 2.06889
A204: 195 | B204: TORNTPOWER | C204: 324.8 | D204: 324.62 | E204: 322.93 | F204: 321.07 | G204: 319.38 | H204: 326.48 | I204: 328.17 | J204: 330.03 | K204: 326.3 | L204: 322.75 | M204: 4.80312
A205: 196 | B205: TRENT | C205: 695.3 | D205: 689.22 | E205: 673.43 | F205: 651.57 | G205: 635.78 | H205: 711.08 | I205: 726.87 | J205: 748.73 | K205: 705 | L205: 667.35 | M205: 11.01971
... 29 more rows

Sheet MidCap Intra
L5: Back To Main Page
A6: FOR INTRA DAY TRADING | K6: =Main!B10 -> 2020-09-14
A9: Sr.no | B9: Scrip | C9: CLOSE RATE | D9: Pivot Point | E9: Supports | H9: Resistances
C10: Point | E10: S1 | F10: S2 | G10: S3 | H10: R1 | I10: R2 | J10: R3 | K10: HIGH | L10: LOW | M10: Total Trade Quanity in Lakhs
A11: 1 | B11: 3MINDIA | C11: 18569 | D11: 18639.63 | E11: 18279.37 | F11: 17989.73 | G11: 17629.47 | H11: 18929.27 | I11: 19289.53 | J11: 19579.17 | K11: 18999.9 | L11: 18350 | M11: 0.07016
A12: 2 | B12: AARTIIND | C12: 1022.3 | D12: 1028.28 | E12: 1009.12 | F12: 995.93 | G12: 976.77 | H12: 1041.47 | I12: 1060.63 | J12: 1073.82 | K12: 1047.45 | L12: 1015.1 | M12: 1.41368
A13: 3 | B13: AAVAS | C13: 1322.45 | D13: 1328.48 | E13: 1304.97 | F13: 1287.48 | G13: 1263.97 | H13: 1345.97 | I13: 1369.48 | J13: 1386.97 | K13: 1352 | L13: 1311 | M13: 0.11646
A14: 4 | B14: ABB | C14: 898.4 | D14: 898.32 | E14: 893.63 | F14: 888.87 | G14: 884.18 | H14: 903.08 | I14: 907.77 | J14: 912.53 | K14: 903 | L14: 893.55 | M14: 1.72447
A15: 5 | B15: ABBOTINDIA | C15: 16819.25 | D15: 16722.45 | E15: 16546.90 | F15: 16274.55 | G15: 16099.00 | H15: 16994.80 | I15: 17170.35 | J15: 17442.70 | K15: 16898 | L15: 16450.1 | M15: 0.11023
A16: 6 | B16: ABCAPITAL | C16: 69.65 | D16: 70.15 | E16: 68.70 | F16: 67.75 | G16: 66.30 | H16: 71.10 | I16: 72.55 | J16: 73.50 | K16: 71.6 | L16: 69.2 | M16: 20.29034
A17: 7 | B17: ABFRL | C17: 131.55 | D17: 132.03 | E17: 129.87 | F17: 128.18 | G17: 126.02 | H17: 133.72 | I17: 135.88 | J17: 137.57 | K17: 134.2 | L17: 130.35 | M17: 11.14995
A18: 8 | B18: ACC | C18: 1321.55 | D18: 1330.40 | E18: 1306.80 | F18: 1292.05 | G18: 1268.45 | H18: 1345.15 | I18: 1368.75 | J18: 1383.50 | K18: 1354 | L18: 1315.65 | M18: 11.48199
A19: 9 | B19: ADANIGAS | C19: 207.35 | D19: 206.62 | E19: 202.83 | F19: 198.32 | G19: 194.53 | H19: 211.13 | I19: 214.92 | J19: 219.43 | K19: 210.4 | L19: 202.1 | M19: 35.61459
A20: 10 | B20: ADANIGREEN | C20: 608.65 | D20: 598.12 | E20: 587.53 | F20: 566.42 | G20: 555.83 | H20: 619.23 | I20: 629.82 | J20: 650.93 | K20: 608.7 | L20: 577 | M20: 27.39567
A21: 11 | B21: ADANIPORTS | C21: 342.5 | D21: 339.95 | E21: 336.00 | F21: 329.50 | G21: 325.55 | H21: 346.45 | I21: 350.40 | J21: 356.90 | K21: 343.9 | L21: 333.45 | M21: 46.56343
A22: 12 | B22: ADANIPOWER | C22: 37.4 | D22: 37.50 | E22: 37.10 | F22: 36.80 | G22: 36.40 | H22: 37.80 | I22: 38.20 | J22: 38.50 | K22: 37.9 | L22: 37.2 | M22: 16.20858
A23: 13 | B23: ADANITRANS | C23: 271.8 | D23: 271.35 | E23: 267.80 | F23: 263.80 | G23: 260.25 | H23: 275.35 | I23: 278.90 | J23: 282.90 | K23: 274.9 | L23: 267.35 | M23: 3.39682
A24: 14 | B24: ADVENZYMES | C24: 230.05 | D24: 230.57 | E24: 228.83 | F24: 227.62 | G24: 225.88 | H24: 231.78 | I24: 233.52 | J24: 234.73 | K24: 232.3 | L24: 229.35 | M24: 1.88085
A25: 15 | B25: AEGISCHEM | C25: 204.15 | D25: 202.83 | E25: 200.32 | F25: 196.48 | G25: 193.97 | H25: 206.67 | I25: 209.18 | J25: 213.02 | K25: 205.35 | L25: 199 | M25: 2.61749
A26: 16 | B26: AFFLE | C26: 2907.95 | D26: 2877.65 | E26: 2790.30 | F26: 2672.65 | G26: 2585.30 | H26: 2995.30 | I26: 3082.65 | J26: 3200.30 | K26: 2965 | L26: 2760 | M26: 1.04415
A27: 17 | B27: AIAENG | C27: 1747.75 | D27: 1755.23 | E27: 1732.52 | F27: 1717.28 | G27: 1694.57 | H27: 1770.47 | I27: 1793.18 | J27: 1808.42 | K27: 1777.95 | L27: 1740 | M27: 0.12039
A28: 18 | B28: AJANTPHARM | C28: 1504.6 | D28: 1507.65 | E28: 1490.95 | F28: 1477.30 | G28: 1460.60 | H28: 1521.30 | I28: 1538.00 | J28: 1551.65 | K28: 1524.35 | L28: 1494 | M28: 0.70727
A29: 19 | B29: AKZOINDIA | C29: 2005.55 | D29: 2028.52 | E29: 1977.03 | F29: 1948.52 | G29: 1897.03 | H29: 2057.03 | I29: 2108.52 | J29: 2137.03 | K29: 2080 | L29: 2000 | M29: 0.05756
A30: 20 | B30: ALKEM | C30: 2900.9 | D30: 2908.30 | E30: 2849.60 | F30: 2798.30 | G30: 2739.60 | H30: 2959.60 | I30: 3018.30 | J30: 3069.60 | K30: 2967 | L30: 2857 | M30: 2.38569
A31: 21 | B31: ALKYLAMINE | C31: 3184.9 | D31: 3166.72 | E31: 3133.43 | F31: 3081.97 | G31: 3048.68 | H31: 3218.18 | I31: 3251.47 | J31: 3302.93 | K31: 3200 | L31: 3115.25 | M31: 0.20602
A32: 22 | B32: ALLCARGO | C32: 121.3 | D32: 120.43 | E32: 117.87 | F32: 114.43 | G32: 111.87 | H32: 123.87 | I32: 126.43 | J32: 129.87 | K32: 123 | L32: 117 | M32: 5.61667
A33: 23 | B33: AMARAJABAT | C33: 746.9 | D33: 745.72 | E33: 739.33 | F33: 731.77 | G33: 725.38 | H33: 753.28 | I33: 759.67 | J33: 767.23 | K33: 752.1 | L33: 738.15 | M33: 5.54943
A34: 24 | B34: AMBER | C34: 1770.05 | D34: 1789.68 | E34: 1703.37 | F34: 1636.68 | G34: 1550.37 | H34: 1856.37 | I34: 1942.68 | J34: 2009.37 | K34: 1876 | L34: 1723 | M34: 69.69444
A35: 25 | B35: AMBUJACEM | C35: 212.45 | D35: 212.68 | E35: 210.87 | F35: 209.28 | G35: 207.47 | H35: 214.27 | I35: 216.08 | J35: 217.67 | K35: 214.5 | L35: 211.1 | M35: 18.41491
A36: 26 | B36: APLAPOLLO | C36: 2421.3 | D36: 2433.78 | E36: 2397.57 | F36: 2373.83 | G36: 2337.62 | H36: 2457.52 | I36: 2493.73 | J36: 2517.47 | K36: 2470 | L36: 2410.05 | M36: 0.33069
A37: 27 | B37: APLLTD | C37: 911.25 | D37: 914.37 | E37: 904.88 | F37: 898.52 | G37: 889.03 | H37: 920.73 | I37: 930.22 | J37: 936.58 | K37: 923.85 | L37: 908 | M37: 2.08705
A38: 28 | B38: APOLLOHOSP | C38: 1611.8 | D38: 1618.50 | E38: 1588.35 | F38: 1564.90 | G38: 1534.75 | H38: 1641.95 | I38: 1672.10 | J38: 1695.55 | K38: 1648.65 | L38: 1595.05 | M38: 8.67578
A39: 29 | B39: APOLLOTYRE | C39: 116.2 | D39: 116.25 | E39: 114.95 | F39: 113.70 | G39: 112.40 | H39: 117.50 | I39: 118.80 | J39: 120.05 | K39: 117.55 | L39: 115 | M39: 35.69939
A40: 30 | B40: ARVINDFASN | C40: 134.4 | D40: 134.40 | E40: 132.45 | F40: 130.50 | G40: 128.55 | H40: 136.35 | I40: 138.30 | J40: 140.25 | K40: 136.35 | L40: 132.45 | M40: 1.41146
A41: 31 | B41: ASAHIINDIA | C41: 217.05 | D41: 217.90 | E41: 214.15 | F41: 211.25 | G41: 207.50 | H41: 220.80 | I41: 224.55 | J41: 227.45 | K41: 221.65 | L41: 215 | M41: 0.24921
A42: 32 | B42: ASHOKA | C42: 69 | D42: 69.32 | E42: 68.48 | F42: 67.97 | G42: 67.13 | H42: 69.83 | I42: 70.67 | J42: 71.18 | K42: 70.15 | L42: 68.8 | M42: 5.70714
A43: 33 | B43: ASHOKLEY | C43: 68.15 | D43: 68.05 | E43: 66.90 | F43: 65.65 | G43: 64.50 | H43: 69.30 | I43: 70.45 | J43: 71.70 | K43: 69.2 | L43: 66.8 | M43: 285.63979
A44: 34 | B44: ASIANPAINT | C44: 2035.95 | D44: 2042.63 | E44: 2015.32 | F44: 1994.68 | G44: 1967.37 | H44: 2063.27 | I44: 2090.58 | J44: 2111.22 | K44: 2069.95 | L44: 2022 | M44: 25.99525
A45: 35 | B45: ASTERDM | C45: 121.6 | D45: 121.72 | E45: 119.93 | F45: 118.27 | G45: 116.48 | H45: 123.38 | I45: 125.17 | J45: 126.83 | K45: 123.5 | L45: 120.05 | M45: 0.60548
A46: 36 | B46: ASTRAL | C46: 1186.45 | D46: 1190.80 | E46: 1171.65 | F46: 1156.85 | G46: 1137.70 | H46: 1205.60 | I46: 1224.75 | J46: 1239.55 | K46: 1209.95 | L46: 1176 | M46: 0.74897
A47: 37 | B47: ASTRAZEN | C47: 4025.95 | D47: 4035.85 | E47: 3923.10 | F47: 3820.25 | G47: 3707.50 | H47: 4138.70 | I47: 4251.45 | J47: 4354.30 | K47: 4148.6 | L47: 3933 | M47: 0.88169
A48: 38 | B48: ATUL | C48: 6290.9 | D48: 6290.30 | E48: 6190.60 | F48: 6090.30 | G48: 5990.60 | H48: 6390.60 | I48: 6490.30 | J48: 6590.60 | K48: 6390 | L48: 6190 | M48: 0.40174
A49: 39 | B49: AUBANK | C49: 673.15 | D49: 668.53 | E49: 655.62 | F49: 638.08 | G49: 625.17 | H49: 686.07 | I49: 698.98 | J49: 716.52 | K49: 681.45 | L49: 651 | M49: 2.57559
A50: 40 | B50: AUROPHARMA | C50: 802.95 | D50: 800.83 | E50: 792.47 | F50: 781.98 | G50: 773.62 | H50: 811.32 | I50: 819.68 | J50: 830.17 | K50: 809.2 | L50: 790.35 | M50: 22.39995
A51: 41 | B51: AVANTIFEED | C51: 471.9 | D51: 471.88 | E51: 467.02 | F51: 462.13 | G51: 457.27 | H51: 476.77 | I51: 481.63 | J51: 486.52 | K51: 476.75 | L51: 467 | M51: 2.96622
A52: 42 | B52: AXISBANK | C52: 447.2 | D52: 445.43 | E52: 441.02 | F52: 434.83 | G52: 430.42 | H52: 451.62 | I52: 456.03 | J52: 462.22 | K52: 449.85 | L52: 439.25 | M52: 186.20876
A53: 43 | B53: BAJAJ-AUTO | C53: 2916.35 | D53: 2920.73 | E53: 2899.52 | F53: 2882.68 | G53: 2861.47 | H53: 2937.57 | I53: 2958.78 | J53: 2975.62 | K53: 2941.95 | L53: 2903.9 | M53: 6.83992
A54: 44 | B54: BAJAJCON | C54: 167 | D54: 166.35 | E54: 164.20 | F54: 161.40 | G54: 159.25 | H54: 169.15 | I54: 171.30 | J54: 174.10 | K54: 168.5 | L54: 163.55 | M54: 2.51589
A55: 45 | B55: BAJAJELEC | C55: 460.7 | D55: 460.60 | E55: 453.20 | F55: 445.70 | G55: 438.30 | H55: 468.10 | I55: 475.50 | J55: 483.00 | K55: 468 | L55: 453.1 | M55: 2.84579
A56: 46 | B56: BAJAJFINSV | C56: 6128.4 | D56: 6127.67 | E56: 6080.73 | F56: 6033.07 | G56: 5986.13 | H56: 6175.33 | I56: 6222.27 | J56: 6269.93 | K56: 6174.6 | L56: 6080 | M56: 4.65485
A57: 47 | B57: BAJAJHLDNG | C57: 2461.15 | D57: 2469.35 | E57: 2445.10 | F57: 2429.05 | G57: 2404.80 | H57: 2485.40 | I57: 2509.65 | J57: 2525.70 | K57: 2493.6 | L57: 2453.3 | M57: 0.10273
A58: 48 | B58: BAJFINANCE | C58: 3544.4 | D58: 3519.60 | E58: 3481.50 | F58: 3418.60 | G58: 3380.50 | H58: 3582.50 | I58: 3620.60 | J58: 3683.50 | K58: 3557.7 | L58: 3456.7 | M58: 46.08384
A59: 49 | B59: BALKRISIND | C59: 1302.3 | D59: 1287.12 | E59: 1265.23 | F59: 1228.17 | G59: 1206.28 | H59: 1324.18 | I59: 1346.07 | J59: 1383.13 | K59: 1309 | L59: 1250.05 | M59: 7.9811
A60: 50 | B60: BALMLAWRIE | C60: 117.5 | D60: 117.50 | E60: 116.80 | F60: 116.10 | G60: 115.40 | H60: 118.20 | I60: 118.90 | J60: 119.60 | K60: 118.2 | L60: 116.8 | M60: 1.86804
A61: 51 | B61: BALRAMCHIN | C61: 147.05 | D61: 146.98 | E61: 144.92 | F61: 142.78 | G61: 140.72 | H61: 149.12 | I61: 151.18 | J61: 153.32 | K61: 149.05 | L61: 144.85 | M61: 10.31215
A62: 52 | B62: BANDHANBNK | C62: 311.8 | D62: 309.77 | E62: 305.03 | F62: 298.27 | G62: 293.53 | H62: 316.53 | I62: 321.27 | J62: 328.03 | K62: 314.5 | L62: 303 | M62: 78.39437
A63: 53 | B63: BANKBARODA | C63: 45.95 | D63: 45.78 | E63: 45.47 | F63: 44.98 | G63: 44.67 | H63: 46.27 | I63: 46.58 | J63: 47.07 | K63: 46.1 | L63: 45.3 | M63: 131.34359
A64: 54 | B64: BANKINDIA | C64: 47.65 | D64: 47.90 | E64: 46.80 | F64: 45.95 | G64: 44.85 | H64: 48.75 | I64: 49.85 | J64: 50.70 | K64: 49 | L64: 47.05 | M64: 25.88631
A65: 55 | B65: BASF | C65: 1450.15 | D65: 1445.42 | E65: 1427.18 | F65: 1404.22 | G65: 1385.98 | H65: 1468.38 | I65: 1486.62 | J65: 1509.58 | K65: 1463.65 | L65: 1422.45 | M65: 0.32203
A66: 56 | B66: BATAINDIA | C66: 1264.6 | D66: 1271.88 | E66: 1252.77 | F66: 1240.93 | G66: 1221.82 | H66: 1283.72 | I66: 1302.83 | J66: 1314.67 | K66: 1291 | L66: 1260.05 | M66: 7.47816
A67: 57 | B67: BAYERCROP | C67: 5902.95 | D67: 5837.62 | E67: 5725.23 | F67: 5547.52 | G67: 5435.13 | H67: 6015.33 | I67: 6127.72 | J67: 6305.43 | K67: 5950 | L67: 5659.9 | M67: 0.35121
A68: 58 | B68: BBTC | C68: 1365.3 | D68: 1363.28 | E68: 1334.57 | F68: 1303.83 | G68: 1275.12 | H68: 1394.02 | I68: 1422.73 | J68: 1453.47 | K68: 1392 | L68: 1332.55 | M68: 1.53217
A69: 59 | B69: BDL | C69: 315.3 | D69: 316.05 | E69: 309.80 | F69: 304.30 | G69: 298.05 | H69: 321.55 | I69: 327.80 | J69: 333.30 | K69: 322.3 | L69: 310.55 | M69: 7.92511
A70: 60 | B70: BEL | C70: 102.25 | D70: 102.10 | E70: 101.45 | F70: 100.65 | G70: 100.00 | H70: 102.90 | I70: 103.55 | J70: 104.35 | K70: 102.75 | L70: 101.3 | M70: 46.96372
A71: 61 | B71: BEML | C71: 618.85 | D71: 621.15 | E71: 613.30 | F71: 607.75 | G71: 599.90 | H71: 626.70 | I71: 634.55 | J71: 640.10 | K71: 629 | L71: 615.6 | M71: 2.60947
A72: 62 | B72: BERGEPAINT | C72: 572.65 | D72: 571.92 | E72: 565.33 | F72: 558.02 | G72: 551.43 | H72: 579.23 | I72: 585.82 | J72: 593.13 | K72: 578.5 | L72: 564.6 | M72: 14.96945
A73: 63 | B73: BHARATFORG | C73: 463.4 | D73: 462.07 | E73: 457.63 | F73: 451.87 | G73: 447.43 | H73: 467.83 | I73: 472.27 | J73: 478.03 | K73: 466.5 | L73: 456.3 | M73: 17.2671
A74: 64 | B74: BHARATRAS | C74: 9250.85 | D74: 9272.73 | E74: 9145.52 | F74: 9040.18 | G74: 8912.97 | H74: 9378.07 | I74: 9505.28 | J74: 9610.62 | K74: 9399.95 | L74: 9167.4 | M74: 0.02759
A75: 65 | B75: BHARTIARTL | C75: 491.65 | D75: 494.22 | E75: 485.98 | F75: 480.32 | G75: 472.08 | H75: 499.88 | I75: 508.12 | J75: 513.78 | K75: 502.45 | L75: 488.55 | M75: 155.977
A76: 66 | B76: BHEL | C76: 37.1 | D76: 37.32 | E76: 36.78 | F76: 36.47 | G76: 35.93 | H76: 37.63 | I76: 38.17 | J76: 38.48 | K76: 37.85 | L76: 37 | M76: 188.22257
A77: 67 | B77: BIOCON | C77: 433.1 | D77: 433.37 | E77: 427.08 | F77: 421.07 | G77: 414.78 | H77: 439.38 | I77: 445.67 | J77: 451.68 | K77: 439.65 | L77: 427.35 | M77: 57.707
A78: 68 | B78: BIRLACORPN | C78: 597.35 | D78: 595.90 | E78: 591.45 | F78: 585.55 | G78: 581.10 | H78: 601.80 | I78: 606.25 | J78: 612.15 | K78: 600.35 | L78: 590 | M78: 0.34693
A79: 69 | B79: BLISSGVS | C79: 151.55 | D79: 151.03 | E79: 149.57 | F79: 147.58 | G79: 146.12 | H79: 153.02 | I79: 154.48 | J79: 156.47 | K79: 152.5 | L79: 149.05 | M79: 8.66078
A80: 70 | B80: BLUEDART | C80: 2912.45 | D80: 2839.08 | E80: 2699.37 | F80: 2486.28 | G80: 2346.57 | H80: 3052.17 | I80: 3191.88 | J80: 3404.97 | K80: 2978.8 | L80: 2626 | M80: 2.8938
A81: 71 | B81: BLUESTARCO | C81: 606.25 | D81: 604.92 | E81: 601.68 | F81: 597.12 | G81: 593.88 | H81: 609.48 | I81: 612.72 | J81: 617.28 | K81: 608.15 | L81: 600.35 | M81: 0.54971
A82: 72 | B82: BOMDYEING | C82: 65.15 | D82: 65.00 | E82: 64.25 | F82: 63.35 | G82: 62.60 | H82: 65.90 | I82: 66.65 | J82: 67.55 | K82: 65.75 | L82: 64.1 | M82: 10.55237
A83: 73 | B83: BOSCHLTD | C83: 12872.15 | D83: 12893.05 | E83: 12746.10 | F83: 12620.05 | G83: 12473.10 | H83: 13019.10 | I83: 13166.05 | J83: 13292.10 | K83: 13040 | L83: 12767 | M83: 0.34008
A84: 74 | B84: BPCL | C84: 428.75 | D84: 429.03 | E84: 422.07 | F84: 415.38 | G84: 408.42 | H84: 435.72 | I84: 442.68 | J84: 449.37 | K84: 436 | L84: 422.35 | M84: 125.84431
A85: 75 | B85: BRIGADE | C85: 162.25 | D85: 163.35 | E85: 158.10 | F85: 153.95 | G85: 148.70 | H85: 167.50 | I85: 172.75 | J85: 176.90 | K85: 168.6 | L85: 159.2 | M85: 1.70243
A86: 76 | B86: BRITANNIA | C86: 3772.25 | D86: 3773.42 | E86: 3718.83 | F86: 3665.42 | G86: 3610.83 | H86: 3826.83 | I86: 3881.42 | J86: 3934.83 | K86: 3828 | L86: 3720 | M86: 8.29715
A87: 77 | B87: BSE | C87: 529.85 | D87: 531.30 | E87: 523.80 | F87: 517.75 | G87: 510.25 | H87: 537.35 | I87: 544.85 | J87: 550.90 | K87: 538.8 | L87: 525.25 | M87: 1.62508
A88: 78 | B88: BSOFT | C88: 166.2 | D88: 165.58 | E88: 163.22 | F88: 160.23 | G88: 157.87 | H88: 168.57 | I88: 170.93 | J88: 173.92 | K88: 167.95 | L88: 162.6 | M88: 13.37613
A89: 79 | B89: CADILAHC | C89: 370 | D89: 366.88 | E89: 361.12 | F89: 352.23 | G89: 346.47 | H89: 375.77 | I89: 381.53 | J89: 390.42 | K89: 372.65 | L89: 358 | M89: 44.08064
A90: 80 | B90: CANBK | C90: 100.85 | D90: 100.63 | E90: 98.52 | F90: 96.18 | G90: 94.07 | H90: 102.97 | I90: 105.08 | J90: 107.42 | K90: 102.75 | L90: 98.3 | M90: 123.01964
A91: 81 | B91: CANFINHOME | C91: 391.45 | D91: 387.92 | E91: 382.93 | F91: 374.42 | G91: 369.43 | H91: 396.43 | I91: 401.42 | J91: 409.93 | K91: 392.9 | L91: 379.4 | M91: 4.73941
A92: 82 | B92: CAPLIPOINT | C92: 537.85 | D92: 538.28 | E92: 530.57 | F92: 523.28 | G92: 515.57 | H92: 545.57 | I92: 553.28 | J92: 560.57 | K92: 546 | L92: 531 | M92: 1.98342
A93: 83 | B93: CARBORUNIV | C93: 253.4 | D93: 254.55 | E93: 249.40 | F93: 245.40 | G93: 240.25 | H93: 258.55 | I93: 263.70 | J93: 267.70 | K93: 259.7 | L93: 250.55 | M93: 1.50823
A94: 84 | B94: CARERATING | C94: 394.05 | D94: 394.67 | E94: 392.38 | F94: 390.72 | G94: 388.43 | H94: 396.33 | I94: 398.62 | J94: 400.28 | K94: 396.95 | L94: 393 | M94: 0.30961
A95: 85 | B95: CASTROLIND | C95: 119.85 | D95: 119.73 | E95: 118.62 | F95: 117.38 | G95: 116.27 | H95: 120.97 | I95: 122.08 | J95: 123.32 | K95: 120.85 | L95: 118.5 | M95: 6.3586
A96: 86 | B96: CCL | C96: 246.2 | D96: 244.93 | E96: 241.87 | F96: 237.53 | G96: 234.47 | H96: 249.27 | I96: 252.33 | J96: 256.67 | K96: 248 | L96: 240.6 | M96: 0.91633
A97: 87 | B97: CDSL | C97: 445.85 | D97: 447.78 | E97: 440.07 | F97: 434.28 | G97: 426.57 | H97: 453.57 | I97: 461.28 | J97: 467.07 | K97: 455.5 | L97: 442 | M97: 10.96033
A98: 88 | B98: CEATLTD | C98: 893.95 | D98: 901.60 | E98: 880.35 | F98: 866.75 | G98: 845.50 | H98: 915.20 | I98: 936.45 | J98: 950.05 | K98: 922.85 | L98: 888 | M98: 3.1351
A99: 89 | B99: CENTRALBK | C99: 16.5 | D99: 16.53 | E99: 16.32 | F99: 16.13 | G99: 15.92 | H99: 16.72 | I99: 16.93 | J99: 17.12 | K99: 16.75 | L99: 16.35 | M99: 4.84315
A100: 90 | B100: CENTURYPLY | C100: 161.05 | D100: 161.38 | E100: 159.92 | F100: 158.78 | G100: 157.32 | H100: 162.52 | I100: 163.98 | J100: 165.12 | K100: 162.85 | L100: 160.25 | M100: 0.89474
A101: 91 | B101: CENTURYTEX | C101: 338.2 | D101: 338.53 | E101: 333.67 | F101: 329.13 | G101: 324.27 | H101: 343.07 | I101: 347.93 | J101: 352.47 | K101: 343.4 | L101: 334 | M101: 8.00473
A102: 92 | B102: CERA | C102: 2462.8 | D102: 2459.67 | E102: 2429.33 | F102: 2395.87 | G102: 2365.53 | H102: 2493.13 | I102: 2523.47 | J102: 2556.93 | K102: 2490 | L102: 2426.2 | M102: 0.00924
A103: 93 | B103: CESC | C103: 626.45 | D103: 628.05 | E103: 611.75 | F103: 597.05 | G103: 580.75 | H103: 642.75 | I103: 659.05 | J103: 673.75 | K103: 644.35 | L103: 613.35 | M103: 3.94843
A104: 94 | B104: CGCL | C104: 216.65 | D104: 218.50 | E104: 213.15 | F104: 209.65 | G104: 204.30 | H104: 222.00 | I104: 227.35 | J104: 230.85 | K104: 223.85 | L104: 215 | M104: 0.66311
A105: 95 | B105: CHAMBLFERT | C105: 142.65 | D105: 142.35 | E105: 140.20 | F105: 137.75 | G105: 135.60 | H105: 144.80 | I105: 146.95 | J105: 149.40 | K105: 144.5 | L105: 139.9 | M105: 15.41219
A106: 96 | B106: CHENNPETRO | C106: 76.6 | D106: 76.92 | E106: 76.18 | F106: 75.77 | G106: 75.03 | H106: 77.33 | I106: 78.07 | J106: 78.48 | K106: 77.65 | L106: 76.5 | M106: 2.3968
A107: 97 | B107: CHOLAFIN | C107: 224.45 | D107: 224.08 | E107: 221.72 | F107: 218.98 | G107: 216.62 | H107: 226.82 | I107: 229.18 | J107: 231.92 | K107: 226.45 | L107: 221.35 | M107: 36.03421
A108: 98 | B108: CHOLAHLDNG | C108: 410.85 | D108: 412.88 | E108: 405.77 | F108: 400.68 | G108: 393.57 | H108: 417.97 | I108: 425.08 | J108: 430.17 | K108: 420 | L108: 407.8 | M108: 0.15155
A109: 99 | B109: CIPLA | C109: 725.95 | D109: 725.90 | E109: 720.30 | F109: 714.65 | G109: 709.05 | H109: 731.55 | I109: 737.15 | J109: 742.80 | K109: 731.5 | L109: 720.25 | M109: 24.65472
A110: 100 | B110: COALINDIA | C110: 125.1 | D110: 125.58 | E110: 124.17 | F110: 123.23 | G110: 121.82 | H110: 126.52 | I110: 127.93 | J110: 128.87 | K110: 127 | L110: 124.65 | M110: 125.88469
A111: 101 | B111: COCHINSHIP | C111: 328.45 | D111: 328.50 | E111: 326.05 | F111: 323.65 | G111: 321.20 | H111: 330.90 | I111: 333.35 | J111: 335.75 | K111: 330.95 | L111: 326.1 | M111: 1.10661
A112: 102 | B112: COFORGE | C112: 2090.6 | D112: 2036.17 | E112: 1969.43 | F112: 1848.27 | G112: 1781.53 | H112: 2157.33 | I112: 2224.07 | J112: 2345.23 | K112: 2102.9 | L112: 1915 | M112: 17.72918
A113: 103 | B113: COLPAL | C113: 1418.65 | D113: 1410.02 | E113: 1396.73 | F113: 1374.82 | G113: 1361.53 | H113: 1431.93 | I113: 1445.22 | J113: 1467.13 | K113: 1423.3 | L113: 1388.1 | M113: 14.10047
A114: 104 | B114: CONCOR | C114: 383.8 | D114: 379.72 | E114: 374.43 | F114: 365.07 | G114: 359.78 | H114: 389.08 | I114: 394.37 | J114: 403.73 | K114: 385 | L114: 370.35 | M114: 36.92299
A115: 105 | B115: COROMANDEL | C115: 748.2 | D115: 740.37 | E115: 721.33 | F115: 694.47 | G115: 675.43 | H115: 767.23 | I115: 786.27 | J115: 813.13 | K115: 759.4 | L115: 713.5 | M115: 6.46199
A116: 106 | B116: CREDITACC | C116: 707.65 | D116: 713.57 | E116: 697.28 | F116: 686.92 | G116: 670.63 | H116: 723.93 | I116: 740.22 | J116: 750.58 | K116: 729.85 | L116: 703.2 | M116: 1.3399
A117: 107 | B117: CRISIL | C117: 1790.55 | D117: 1794.05 | E117: 1776.70 | F117: 1762.85 | G117: 1745.50 | H117: 1807.90 | I117: 1825.25 | J117: 1839.10 | K117: 1811.4 | L117: 1780.2 | M117: 0.40161
A118: 108 | B118: CROMPTON | C118: 254.3 | D118: 254.52 | E118: 250.23 | F118: 246.17 | G118: 241.88 | H118: 258.58 | I118: 262.87 | J118: 266.93 | K118: 258.8 | L118: 250.45 | M118: 2.40832
A119: 109 | B119: CSBBANK | C119: 226.25 | D119: 225.62 | E119: 224.23 | F119: 222.22 | G119: 220.83 | H119: 227.63 | I119: 229.02 | J119: 231.03 | K119: 227 | L119: 223.6 | M119: 0.72048
A120: 110 | B120: CUB | C120: 133.85 | D120: 133.97 | E120: 132.18 | F120: 130.52 | G120: 128.73 | H120: 135.63 | I120: 137.42 | J120: 139.08 | K120: 135.75 | L120: 132.3 | M120: 10.14132
A121: 111 | B121: CUMMINSIND | C121: 456.4 | D121: 459.30 | E121: 449.60 | F121: 442.80 | G121: 433.10 | H121: 466.10 | I121: 475.80 | J121: 482.60 | K121: 469 | L121: 452.5 | M121: 24.86466
A122: 112 | B122: CYIENT | C122: 377.5 | D122: 381.00 | E122: 368.50 | F122: 359.50 | G122: 347.00 | H122: 390.00 | I122: 402.50 | J122: 411.50 | K122: 393.5 | L122: 372 | M122: 3.50594
A123: 113 | B123: DABUR | C123: 508.25 | D123: 503.88 | E123: 496.07 | F123: 483.88 | G123: 476.07 | H123: 516.07 | I123: 523.88 | J123: 536.07 | K123: 511.7 | L123: 491.7 | M123: 53.51472
A124: 114 | B124: DALBHARAT | C124: 713.25 | D124: 706.97 | E124: 698.43 | F124: 683.62 | G124: 675.08 | H124: 721.78 | I124: 730.32 | J124: 745.13 | K124: 715.5 | L124: 692.15 | M124: 0.85476
A125: 115 | B125: DBCORP | C125: 74.9 | D125: 75.10 | E125: 74.30 | F125: 73.70 | G125: 72.90 | H125: 75.70 | I125: 76.50 | J125: 77.10 | K125: 75.9 | L125: 74.5 | M125: 0.57568
A126: 116 | B126: DBL | C126: 368 | D126: 370.02 | E126: 365.03 | F126: 362.07 | G126: 357.08 | H126: 372.98 | I126: 377.97 | J126: 380.93 | K126: 375 | L126: 367.05 | M126: 0.50777
A127: 117 | B127: DCAL | C127: 161.1 | D127: 162.03 | E127: 156.77 | F127: 152.43 | G127: 147.17 | H127: 166.37 | I127: 171.63 | J127: 175.97 | K127: 167.3 | L127: 157.7 | M127: 7.88778
A128: 118 | B128: DCBBANK | C128: 85.5 | D128: 86.05 | E128: 84.30 | F128: 83.10 | G128: 81.35 | H128: 87.25 | I128: 89.00 | J128: 90.20 | K128: 87.8 | L128: 84.85 | M128: 9.98161
A129: 119 | B129: DCMSHRIRAM | C129: 344.55 | D129: 344.67 | E129: 341.83 | F129: 339.12 | G129: 336.28 | H129: 347.38 | I129: 350.22 | J129: 352.93 | K129: 347.5 | L129: 341.95 | M129: 0.19203
A130: 120 | B130: DEEPAKNTR | C130: 733.15 | D130: 743.30 | E130: 716.85 | F130: 700.55 | G130: 674.10 | H130: 759.60 | I130: 786.05 | J130: 802.35 | K130: 769.75 | L130: 727 | M130: 14.32789
A131: 121 | B131: DELTACORP | C131: 106.3 | D131: 106.83 | E131: 104.97 | F131: 103.63 | G131: 101.77 | H131: 108.17 | I131: 110.03 | J131: 111.37 | K131: 108.7 | L131: 105.5 | M131: 4.74639
A132: 122 | B132: DHANUKA | C132: 735.55 | D132: 737.67 | E132: 718.88 | F132: 702.22 | G132: 683.43 | H132: 754.33 | I132: 773.12 | J132: 789.78 | K132: 756.45 | L132: 721 | M132: 0.69359
A133: 123 | B133: DISHTV | C133: 14.3 | D133: 13.90 | E133: 13.50 | F133: 12.70 | G133: 12.30 | H133: 14.70 | I133: 15.10 | J133: 15.90 | K133: 14.3 | L133: 13.1 | M133: 160.96893
A134: 124 | B134: DIVISLAB | C134: 3146.65 | D134: 3145.67 | E134: 3118.98 | F134: 3091.32 | G134: 3064.63 | H134: 3173.33 | I134: 3200.02 | J134: 3227.68 | K134: 3172.35 | L134: 3118 | M134: 4.64651
A135: 125 | B135: DIXON | C135: 9240 | D135: 9303.33 | E135: 9126.67 | F135: 9013.33 | G135: 8836.67 | H135: 9416.67 | I135: 9593.33 | J135: 9706.67 | K135: 9480 | L135: 9190 | M135: 0.83551
A136: 126 | B136: DLF | C136: 154.3 | D136: 153.45 | E136: 150.00 | F136: 145.70 | G136: 142.25 | H136: 157.75 | I136: 161.20 | J136: 165.50 | K136: 156.9 | L136: 149.15 | M136: 173.19975
A137: 127 | B137: DMART | C137: 2239.35 | D137: 2246.13 | E137: 2219.27 | F137: 2199.18 | G137: 2172.32 | H137: 2266.22 | I137: 2293.08 | J137: 2313.17 | K137: 2273 | L137: 2226.05 | M137: 4.56379
A138: 128 | B138: DRREDDY | C138: 4401.6 | D138: 4407.87 | E138: 4368.73 | F138: 4335.87 | G138: 4296.73 | H138: 4440.73 | I138: 4479.87 | J138: 4512.73 | K138: 4447 | L138: 4375 | M138: 8.86945
A139: 129 | B139: ECLERX | C139: 731.8 | D139: 726.93 | E139: 717.87 | F139: 703.93 | G139: 694.87 | H139: 740.87 | I139: 749.93 | J139: 763.87 | K139: 736 | L139: 713 | M139: 0.69003
A140: 130 | B140: EDELWEISS | C140: 73.55 | D140: 73.35 | E140: 72.20 | F140: 70.85 | G140: 69.70 | H140: 74.70 | I140: 75.85 | J140: 77.20 | K140: 74.5 | L140: 72 | M140: 3.66715
A141: 131 | B141: EICHERMOT | C141: 2160.3 | D141: 2159.70 | E141: 2140.70 | F141: 2121.10 | G141: 2102.10 | H141: 2179.30 | I141: 2198.30 | J141: 2217.90 | K141: 2178.7 | L141: 2140.1 | M141: 11.4387
A142: 132 | B142: EIDPARRY | C142: 292.1 | D142: 293.63 | E142: 288.92 | F142: 285.73 | G142: 281.02 | H142: 296.82 | I142: 301.53 | J142: 304.72 | K142: 298.35 | L142: 290.45 | M142: 3.31124
A143: 133 | B143: EIHOTEL | C143: 85.2 | D143: 85.13 | E143: 83.57 | F143: 81.93 | G143: 80.37 | H143: 86.77 | I143: 88.33 | J143: 89.97 | K143: 86.7 | L143: 83.5 | M143: 15.81437
A144: 134 | B144: ELGIEQUIP | C144: 226.5 | D144: 226.20 | E144: 220.40 | F144: 214.30 | G144: 208.50 | H144: 232.30 | I144: 238.10 | J144: 244.20 | K144: 232 | L144: 220.1 | M144: 0.47903
A145: 135 | B145: EMAMILTD | C145: 383.5 | D145: 383.98 | E145: 375.07 | F145: 366.63 | G145: 357.72 | H145: 392.42 | I145: 401.33 | J145: 409.77 | K145: 392.9 | L145: 375.55 | M145: 9.51176
A146: 136 | B146: ENDURANCE | C146: 1080.9 | D146: 1077.35 | E146: 1061.70 | F146: 1042.50 | G146: 1026.85 | H146: 1096.55 | I146: 1112.20 | J146: 1131.40 | K146: 1093 | L146: 1058.15 | M146: 0.28094
A147: 137 | B147: ENGINERSIN | C147: 64 | D147: 64.32 | E147: 63.43 | F147: 62.87 | G147: 61.98 | H147: 64.88 | I147: 65.77 | J147: 66.33 | K147: 65.2 | L147: 63.75 | M147: 25.82604
A148: 138 | B148: EQUITAS | C148: 52.75 | D148: 52.50 | E148: 51.75 | F148: 50.75 | G148: 50.00 | H148: 53.50 | I148: 54.25 | J148: 55.25 | K148: 53.25 | L148: 51.5 | M148: 44.79624
A149: 139 | B149: ERIS | C149: 489.95 | D149: 489.32 | E149: 475.63 | F149: 461.32 | G149: 447.63 | H149: 503.63 | I149: 517.32 | J149: 531.63 | K149: 503 | L149: 475 | M149: 3.12925
A150: 140 | B150: ESABINDIA | C150: 1367.6 | D150: 1367.68 | E150: 1349.92 | F150: 1332.23 | G150: 1314.47 | H150: 1385.37 | I150: 1403.13 | J150: 1420.82 | K150: 1385.45 | L150: 1350 | M150: 0.02059
A151: 141 | B151: ESCORTS | C151: 1198.6 | D151: 1198.28 | E151: 1182.32 | F151: 1166.03 | G151: 1150.07 | H151: 1214.57 | I151: 1230.53 | J151: 1246.82 | K151: 1214.25 | L151: 1182 | M151: 27.39844
A152: 142 | B152: ESSELPACK | C152: 281.45 | D152: 280.57 | E152: 276.03 | F152: 270.62 | G152: 266.08 | H152: 285.98 | I152: 290.52 | J152: 295.93 | K152: 285.1 | L152: 275.15 | M152: 1.67043
A153: 143 | B153: EXIDEIND | C153: 155.65 | D153: 155.97 | E153: 153.98 | F153: 152.32 | G153: 150.33 | H153: 157.63 | I153: 159.62 | J153: 161.28 | K153: 157.95 | L153: 154.3 | M153: 19.97015
A154: 144 | B154: FCONSUMER | C154: 10.35 | D154: 10.42 | E154: 10.13 | F154: 9.92 | G154: 9.63 | H154: 10.63 | I154: 10.92 | J154: 11.13 | K154: 10.7 | L154: 10.2 | M154: 197.72194
A155: 145 | B155: FDC | C155: 326.75 | D155: 327.25 | E155: 323.50 | F155: 320.25 | G155: 316.50 | H155: 330.50 | I155: 334.25 | J155: 337.50 | K155: 331 | L155: 324 | M155: 1.54327
A156: 146 | B156: FEDERALBNK | C156: 51.8 | D156: 51.60 | E156: 51.05 | F156: 50.30 | G156: 49.75 | H156: 52.35 | I156: 52.90 | J156: 53.65 | K156: 52.15 | L156: 50.85 | M156: 231.14723
A157: 147 | B157: FINCABLES | C157: 280 | D157: 280.50 | E157: 277.50 | F157: 275.00 | G157: 272.00 | H157: 283.00 | I157: 286.00 | J157: 288.50 | K157: 283.5 | L157: 278 | M157: 0.47061
A158: 148 | B158: FINEORG | C158: 2848.3 | D158: 2822.25 | E158: 2768.40 | F158: 2688.50 | G158: 2634.65 | H158: 2902.15 | I158: 2956.00 | J158: 3035.90 | K158: 2876.1 | L158: 2742.35 | M158: 0.53968
A159: 149 | B159: FINPIPE | C159: 505.75 | D159: 507.85 | E159: 502.80 | F159: 499.85 | G159: 494.80 | H159: 510.80 | I159: 515.85 | J159: 518.80 | K159: 512.9 | L159: 504.9 | M159: 0.20343
A160: 150 | B160: FLUOROCHEM | C160: 522.9 | D160: 528.35 | E160: 514.65 | F160: 506.40 | G160: 492.70 | H160: 536.60 | I160: 550.30 | J160: 558.55 | K160: 542.05 | L160: 520.1 | M160: 0.72437
A161: 151 | B161: FORTIS | C161: 135.25 | D161: 135.92 | E161: 132.93 | F161: 130.62 | G161: 127.63 | H161: 138.23 | I161: 141.22 | J161: 143.53 | K161: 138.9 | L161: 133.6 | M161: 32.76278
A162: 152 | B162: FRETAIL | C162: 106.4 | D162: 105.60 | E162: 104.80 | F162: 103.20 | G162: 102.40 | H162: 107.20 | I162: 108.00 | J162: 109.60 | K162: 106.4 | L162: 104 | M162: 24.11561
A163: 153 | B163: FSL | C163: 64.25 | D163: 64.47 | E163: 63.43 | F163: 62.62 | G163: 61.58 | H163: 65.28 | I163: 66.32 | J163: 67.13 | K163: 65.5 | L163: 63.65 | M163: 19.93545
A164: 154 | B164: GAIL | C164: 90.75 | D164: 90.83 | E164: 90.02 | F164: 89.28 | G164: 88.47 | H164: 91.57 | I164: 92.38 | J164: 93.12 | K164: 91.65 | L164: 90.1 | M164: 118.83991
A165: 155 | B165: GALAXYSURF | C165: 1782.15 | D165: 1793.13 | E165: 1752.27 | F165: 1722.38 | G165: 1681.52 | H165: 1823.02 | I165: 1863.88 | J165: 1893.77 | K165: 1834 | L165: 1763.25 | M165: 0.15472
A166: 156 | B166: GARFIBRES | C166: 1924.55 | D166: 1951.52 | E166: 1879.03 | F166: 1833.52 | G166: 1761.03 | H166: 1997.03 | I166: 2069.52 | J166: 2115.03 | K166: 2024 | L166: 1906 | M166: 0.39819
A167: 157 | B167: GEPIL | C167: 458.95 | D167: 458.55 | E167: 452.40 | F167: 445.85 | G167: 439.70 | H167: 465.10 | I167: 471.25 | J167: 477.80 | K167: 464.7 | L167: 452 | M167: 0.05852
A168: 158 | B168: GESHIP | C168: 260 | D168: 258.33 | E168: 253.27 | F168: 246.53 | G168: 241.47 | H168: 265.07 | I168: 270.13 | J168: 276.87 | K168: 263.4 | L168: 251.6 | M168: 1.13889
A169: 159 | B169: GET&D | C169: 99.1 | D169: 99.25 | E169: 97.40 | F169: 95.70 | G169: 93.85 | H169: 100.95 | I169: 102.80 | J169: 104.50 | K169: 101.1 | L169: 97.55 | M169: 0.31635
A170: 160 | B170: GHCL | C170: 159.95 | D170: 160.60 | E170: 157.20 | F170: 154.45 | G170: 151.05 | H170: 163.35 | I170: 166.75 | J170: 169.50 | K170: 164 | L170: 157.85 | M170: 0.91863
A171: 161 | B171: GICRE | C171: 134.55 | D171: 135.35 | E171: 133.20 | F171: 131.85 | G171: 129.70 | H171: 136.70 | I171: 138.85 | J171: 140.20 | K171: 137.5 | L171: 134 | M171: 2.27744
A172: 162 | B172: GILLETTE | C172: 5576.4 | D172: 5554.42 | E172: 5523.98 | F172: 5471.57 | G172: 5441.13 | H172: 5606.83 | I172: 5637.27 | J172: 5689.68 | K172: 5584.85 | L172: 5502 | M172: 0.08381
A173: 163 | B173: GLAXO | C173: 1674.95 | D173: 1673.98 | E173: 1647.97 | F173: 1620.98 | G173: 1594.97 | H173: 1700.97 | I173: 1726.98 | J173: 1753.97 | K173: 1700 | L173: 1647 | M173: 1.45594
A174: 164 | B174: GLENMARK | C174: 485.15 | D174: 480.37 | E174: 473.03 | F174: 460.92 | G174: 453.58 | H174: 492.48 | I174: 499.82 | J174: 511.93 | K174: 487.7 | L174: 468.25 | M174: 30.99927
A175: 165 | B175: GMDCLTD | C175: 45.05 | D175: 45.17 | E175: 44.58 | F175: 44.12 | G175: 43.53 | H175: 45.63 | I175: 46.22 | J175: 46.68 | K175: 45.75 | L175: 44.7 | M175: 3.39635
A176: 166 | B176: GMMPFAUDLR | C176: 5599.45 | D176: 5610.15 | E176: 5569.30 | F176: 5539.15 | G176: 5498.30 | H176: 5640.30 | I176: 5681.15 | J176: 5711.30 | K176: 5651 | L176: 5580 | M176: 0.12142
A177: 167 | B177: GMRINFRA | C177: 23.4 | D177: 23.28 | E177: 23.02 | F177: 22.63 | G177: 22.37 | H177: 23.67 | I177: 23.93 | J177: 24.32 | K177: 23.55 | L177: 22.9 | M177: 92.82177
A178: 168 | B178: GNFC | C178: 210.05 | D178: 209.25 | E178: 205.05 | F178: 200.05 | G178: 195.85 | H178: 214.25 | I178: 218.45 | J178: 223.45 | K178: 213.45 | L178: 204.25 | M178: 7.92394
A179: 169 | B179: GODFRYPHLP | C179: 907.9 | D179: 910.53 | E179: 902.47 | F179: 897.03 | G179: 888.97 | H179: 915.97 | I179: 924.03 | J179: 929.47 | K179: 918.6 | L179: 905.1 | M179: 0.38769
A180: 170 | B180: GODREJAGRO | C180: 490.8 | D180: 489.27 | E180: 486.53 | F180: 482.27 | G180: 479.53 | H180: 493.53 | I180: 496.27 | J180: 500.53 | K180: 492 | L180: 485 | M180: 0.63229
A181: 171 | B181: GODREJCP | C181: 685.65 | D181: 681.48 | E181: 674.97 | F181: 664.28 | G181: 657.77 | H181: 692.17 | I181: 698.68 | J181: 709.37 | K181: 688 | L181: 670.8 | M181: 6.79537
A182: 172 | B182: GODREJIND | C182: 407.55 | D182: 411.10 | E182: 401.95 | F182: 396.35 | G182: 387.20 | H182: 416.70 | I182: 425.85 | J182: 431.45 | K182: 420.25 | L182: 405.5 | M182: 0.60809
A183: 173 | B183: GODREJPROP | C183: 877.3 | D183: 886.27 | E183: 865.88 | F183: 854.47 | G183: 834.08 | H183: 897.68 | I183: 918.07 | J183: 929.48 | K183: 906.65 | L183: 874.85 | M183: 8.7202
A184: 174 | B184: GPPL | C184: 80.9 | D184: 80.73 | E184: 80.02 | F184: 79.13 | G184: 78.42 | H184: 81.62 | I184: 82.33 | J184: 83.22 | K184: 81.45 | L184: 79.85 | M184: 1.02231
A185: 175 | B185: GRANULES | C185: 344.3 | D185: 352.83 | E185: 332.82 | F185: 321.33 | G185: 301.32 | H185: 364.32 | I185: 384.33 | J185: 395.82 | K185: 372.85 | L185: 341.35 | M185: 84.87899
A186: 176 | B186: GRAPHITE | C186: 182.7 | D186: 182.72 | E186: 177.48 | F186: 172.27 | G186: 167.03 | H186: 187.93 | I186: 193.17 | J186: 198.38 | K186: 187.95 | L186: 177.5 | M186: 5.46457
A187: 177 | B187: GRASIM | C187: 720.95 | D187: 717.53 | E187: 708.07 | F187: 695.18 | G187: 685.72 | H187: 730.42 | I187: 739.88 | J187: 752.77 | K187: 727 | L187: 704.65 | M187: 73.30487
A188: 178 | B188: GREAVESCOT | C188: 77.85 | D188: 77.82 | E188: 76.93 | F188: 76.02 | G188: 75.13 | H188: 78.73 | I188: 79.62 | J188: 80.53 | K188: 78.7 | L188: 76.9 | M188: 2.18059
A189: 179 | B189: GRINDWELL | C189: 520.1 | D189: 522.73 | E189: 514.87 | F189: 509.63 | G189: 501.77 | H189: 527.97 | I189: 535.83 | J189: 541.07 | K189: 530.6 | L189: 517.5 | M189: 0.06805
A190: 180 | B190: GRSE | C190: 179.9 | D190: 180.77 | E190: 177.13 | F190: 174.37 | G190: 170.73 | H190: 183.53 | I190: 187.17 | J190: 189.93 | K190: 184.4 | L190: 178 | M190: 1.97307
A191: 181 | B191: GSFC | C191: 63.4 | D191: 63.48 | E191: 63.02 | F191: 62.63 | G191: 62.17 | H191: 63.87 | I191: 64.33 | J191: 64.72 | K191: 63.95 | L191: 63.1 | M191: 3.05866
A192: 182 | B192: GSPL | C192: 197.95 | D192: 196.63 | E192: 194.37 | F192: 190.78 | G192: 188.52 | H192: 200.22 | I192: 202.48 | J192: 206.07 | K192: 198.9 | L192: 193.05 | M192: 3.39543
A193: 183 | B193: GUJALKALI | C193: 337 | D193: 338.13 | E193: 333.77 | F193: 330.53 | G193: 326.17 | H193: 341.37 | I193: 345.73 | J193: 348.97 | K193: 342.5 | L193: 334.9 | M193: 0.91509
A194: 184 | B194: GUJGASLTD | C194: 295.75 | D194: 296.57 | E194: 293.43 | F194: 291.12 | G194: 287.98 | H194: 298.88 | I194: 302.02 | J194: 304.33 | K194: 299.7 | L194: 294.25 | M194: 4.48778
A195: 185 | B195: GULFOILLUB | C195: 631.25 | D195: 628.42 | E195: 612.83 | F195: 594.42 | G195: 578.83 | H195: 646.83 | I195: 662.42 | J195: 680.83 | K195: 644 | L195: 610 | M195: 0.28253
A196: 186 | B196: HAL | C196: 852.45 | D196: 859.17 | E196: 843.33 | F196: 834.22 | G196: 818.38 | H196: 868.28 | I196: 884.12 | J196: 893.23 | K196: 875 | L196: 850.05 | M196: 9.02514
A197: 187 | B197: HATHWAY | C197: 33.9 | D197: 33.92 | E197: 33.43 | F197: 32.97 | G197: 32.48 | H197: 34.38 | I197: 34.87 | J197: 35.33 | K197: 34.4 | L197: 33.45 | M197: 1.41751
A198: 188 | B198: HATSUN | C198: 816.6 | D198: 807.15 | E198: 794.30 | F198: 772.00 | G198: 759.15 | H198: 829.45 | I198: 842.30 | J198: 864.60 | K198: 820 | L198: 784.85 | M198: 1.02853
A199: 189 | B199: HAVELLS | C199: 653.75 | D199: 651.83 | E199: 645.37 | F199: 636.98 | G199: 630.52 | H199: 660.22 | I199: 666.68 | J199: 675.07 | K199: 658.3 | L199: 643.45 | M199: 17.92575
A200: 190 | B200: HCLTECH | C200: 721.65 | D200: 721.93 | E200: 709.87 | F200: 698.08 | G200: 686.02 | H200: 733.72 | I200: 745.78 | J200: 757.57 | K200: 734 | L200: 710.15 | M200: 72.21687
A201: 191 | B201: HDFC | C201: 1768.15 | D201: 1771.38 | E201: 1756.77 | F201: 1745.38 | G201: 1730.77 | H201: 1782.77 | I201: 1797.38 | J201: 1808.77 | K201: 1786 | L201: 1760 | M201: 22.32185
A202: 192 | B202: HDFCAMC | C202: 2368.25 | D202: 2379.73 | E202: 2351.52 | F202: 2334.78 | G202: 2306.57 | H202: 2396.47 | I202: 2424.68 | J202: 2441.42 | K202: 2407.95 | L202: 2363 | M202: 2.81488
A203: 193 | B203: HDFCBANK | C203: 1078.65 | D203: 1084.83 | E203: 1064.82 | F203: 1050.98 | G203: 1030.97 | H203: 1098.67 | I203: 1118.68 | J203: 1132.52 | K203: 1104.85 | L203: 1071 | M203: 103.97545
A204: 194 | B204: HDFCLIFE | C204: 604.8 | D204: 606.37 | E204: 600.03 | F204: 595.27 | G204: 588.93 | H204: 611.13 | I204: 617.47 | J204: 622.23 | K204: 612.7 | L204: 601.6 | M204: 45.65118
A205: 195 | B205: HEG | C205: 760.6 | D205: 761.00 | E205: 751.00 | F205: 741.40 | G205: 731.40 | H205: 770.60 | I205: 780.60 | J205: 790.20 | K205: 771 | L205: 751.4 | M205: 3.1487
A206: 196 | B206: HEIDELBERG | C206: 180.4 | D206: 182.13 | E206: 178.27 | F206: 176.13 | G206: 172.27 | H206: 184.27 | I206: 188.13 | J206: 190.27 | K206: 186 | L206: 180 | M206: 9.19186
... 321 more rows

Sheet Bulk Deals
E6: Back To Main Page
A7: Subject : | B7: BULK DEAL | D7: =Main!B10 -> 2020-09-14
A9: Date | B9: Scrip code | C9: Scrip Name | D9: Client Name | E9: Buy / Sell | F9: Quantity Traded | G9: Trade Price / Wt.Avg.trade price | H9: Exchange
A10: 2020-09-11 | B10: 530309 | C10: CHANDRAP | D10: ADITI JAIN | E10: SELL | F10: 20,000 | G10: 12.81 | H10: BSE
A11: 2020-09-11 | B11: 530663 | C11: GOYALASS | D11: BINOY RAJEN SHAH | E11: SELL | F11: 370,000 | G11: 0.81 | H11: BSE
A12: 2020-09-11 | B12: 530663 | C12: GOYALASS | D12: MALAV RAJEN SHAH | E12: SELL | F12: 400,000 | G12: 0.81 | H12: BSE
A13: 2020-09-11 | B13: 532467 | C13: HAZOOR | D13: EAUGU UDYOG LIMITED | E13: SELL | F13: 215,000 | G13: 0.48 | H13: BSE
A14: 2020-09-11 | B14: 532467 | C14: HAZOOR | D14: KEEMTEE FINANCIAL SERVICES LTD | E14: BUY | F14: 212,700 | G14: 0.48 | H14: BSE
A15: 2020-09-11 | B15: 505725 | C15: HINDEVER | D15: SAWARNBHUMI VANIJYA PVT LTD | E15: BUY | F15: 25,000 | G15: 85.2 | H15: BSE
A16: 2020-09-11 | B16: 505725 | C16: HINDEVER | D16: SHIFALI MEHTA | E16: SELL | F16: 10,008 | G16: 85.2 | H16: BSE
A17: 2020-09-11 | B17: 505725 | C17: HINDEVER | D17: RAJIV MEHTA | E17: SELL | F17: 19,738 | G17: 85.2 | H17: BSE
A18: 2020-09-11 | B18: 505725 | C18: HINDEVER | D18: MOHIT KHULLAR | E18: BUY | F18: 8,501 | G18: 85.2 | H18: BSE
A19: 2020-09-11 | B19: 543222 | C19: HIPPOCABS | D19: KAUSHIK G DESAI | E19: BUY | F19: 99,600 | G19: 79.8 | H19: BSE
A20: 2020-09-11 | B20: 543220 | C20: MAXHEALTH | D20: ANALJIT SINGH | E20: SELL | F20: 5,818,021 | G20: 110.7 | H20: BSE
A21: 2020-09-11 | B21: 543220 | C21: MAXHEALTH | D21: MAX VENTURES INVESTMENT HOLDINGS PRIVATE LIMITED | E21: SELL | F21: 40,750,158 | G21: 110.7 | H21: BSE
A22: 2020-09-11 | B22: 543220 | C22: MAXHEALTH | D22: WF ASIAN RECONNAISSANCE FUND LIMITED | E22: BUY | F22: 7,700,000 | G22: 110.7 | H22: BSE
A23: 2020-09-11 | B23: 543220 | C23: MAXHEALTH | D23: SMALLCAP WORLD FUND INC | E23: BUY | F23: 23,777,803 | G23: 110.7 | H23: BSE
A24: 2020-09-11 | B24: 540796 | C24: RATNABHUMI | D24: AFFLUENCE FINCON SERVICE PRIVATE LIMITED | E24: SELL | F24: 100,000 | G24: 45.97 | H24: BSE
A25: 2020-09-11 | B25: 540175 | C25: REGENCY | D25: NAVEEN GUPTA | E25: BUY | F25: 19,523 | G25: 30.65 | H25: BSE
A26: 2020-09-11 | B26: 540175 | C26: REGENCY | D26: NAVEEN GUPTA | E26: SELL | F26: 19,523 | G26: 30.76 | H26: BSE
A27: 2020-09-11 | B27: 543171 | C27: ROJL | D27: KRUNAL VASANTKUMAR SHAH | E27: BUY | F27: 18,000 | G27: 31.58 | H27: BSE
A28: 2020-09-11 | B28: 543171 | C28: ROJL | D28: KRUNAL VASANTKUMAR SHAH | E28: SELL | F28: 3,000 | G28: 30.3 | H28: BSE
A29: 2020-09-11 | B29: 540725 | C29: SISL | D29: ARORA AGRO TRADERS | E29: SELL | F29: 270,000 | G29: 94.12 | H29: BSE
A30: 2020-09-11 | B30: AMBER | C30: Amber Enterprises (I) Ltd | D30: TEJAS TRADEFIN LLP | E30: BUY | F30: 316,463 | G30: 1838.39 | H30: NSE
A31: 2020-09-11 | B31: AMBER | C31: Amber Enterprises (I) Ltd | D31: VITTORIA FUND - OC L.P | E31: BUY | F31: 162,171 | G31: 1835.03 | H31: NSE
A32: 2020-09-11 | B32: AMBER | C32: Amber Enterprises (I) Ltd | D32: OXBOW MASTER FUND LIMITED | E32: BUY | F32: 418,075 | G32: 1835.03 | H32: NSE
A33: 2020-09-11 | B33: AMBER | C33: Amber Enterprises (I) Ltd | D33: NEWPORT ASIA PARTNERS FUND LP | E33: BUY | F33: 173,979 | G33: 1839.48 | H33: NSE
A34: 2020-09-11 | B34: AMBER | C34: Amber Enterprises (I) Ltd | D34: NEWPORT ASIA INSTITUTIONAL FUND LP | E34: BUY | F34: 221,857 | G34: 1839.48 | H34: NSE
A35: 2020-09-11 | B35: MAXIND | C35: Max India Limited | D35: ALPHA LEON ENTERPRISES LLP | E35: BUY | F35: 74 | G35: 58.03 | H35: NSE
A36: 2020-09-11 | B36: MAXIND | C36: Max India Limited | D36: YUGA DOSHI | E36: BUY | F36: 462,431 | G36: 58.61 | H36: NSE
A37: 2020-09-11 | B37: STAR | C37: Strides Pharma ScienceLtd | D37: KARUNA BUSINESS SOLUTIONS LLP | E37: BUY | F37: 600,000 | G37: 665.4 | H37: NSE
A38: 2020-09-11 | B38: VINYLINDIA | C38: Vinyl Chemicals (India) L | D38: YOGESH KUMAR GAWANDE | E38: BUY | F38: 151,794 | G38: 111.2 | H38: NSE
A39: 2020-09-11 | B39: AMBER | C39: Amber Enterprises (I) Ltd | D39: ASCENT INVESTMENT HOLDINGS PTE LIMITED | E39: SELL | F39: 986,646 | G39: 1837.78 | H39: NSE
A40: 2020-09-11 | B40: AMBER | C40: Amber Enterprises (I) Ltd | D40: ASCENT INVESTMENT HOLDINGS PTE LTD | E40: SELL | F40: 2,302,173 | G40: 1835.14 | H40: NSE
A41: 2020-09-11 | B41: AMBER | C41: Amber Enterprises (I) Ltd | D41: KARTAR SINGH | E41: SELL | F41: 275,000 | G41: 1841.33 | H41: NSE
A42: 2020-09-11 | B42: AMBER | C42: Amber Enterprises (I) Ltd | D42: TEJAS TRADEFIN LLP | E42: SELL | F42: 219,070 | G42: 1814.99 | H42: NSE
A43: 2020-09-11 | B43: FELDVR | C43: Class B shares (Series 1) | D43: VIVEK SARAOGI | E43: SELL | F43: 200,000 | G43: 16.89 | H43: NSE
A44: 2020-09-11 | B44: JIYAECO | C44: Jiya Eco-Products Ltd | D44: YOGESHKUMAR C PATEL | E44: SELL | F44: 228,964 | G44: 8.89 | H44: NSE
A45: 2020-09-11 | B45: MAXIND | C45: Max India Limited | D45: YUGA DOSHI | E45: SELL | F45: 362,441 | G45: 57.83 | H45: NSE
A46: 2020-09-11 | B46: MAXIND | C46: Max India Limited | D46: ALPHA LEON ENTERPRISES LLP | E46: SELL | F46: 600,075 | G46: 56.16 | H46: NSE
A47: 2020-09-11 | B47: STAR | C47: Strides Pharma ScienceLtd | D47: SHANKARLAL DEVENDRA | E47: SELL | F47: 600,000 | G47: 665.4 | H47: NSE
A48: 2020-09-11 | B48: SUULD | C48: Suumaya Lifestyle Limited | D48: GRETEX SHARE BROKING PRIVATE LIMITED | E48: SELL | F48: 200,000 | G48: 31 | H48: NSE
A49: 2020-09-11 | B49: VINYLINDIA | C49: Vinyl Chemicals (India) L | D49: YOGESH KUMAR GAWANDE | E49: SELL | F49: 151,794 | G49: 111.96 | H49: NSE

Sheet Call Tracker (Equity & F&O)
M5: Back To Main Page
A6: Retail Research Technical Calls & Fundamental Performance Report for the month of September-2020
M7: =Main!B10 -> 2020-09-14
B8: Positional Call
A9: Sr.no | B9: Date | D9: Company | E9: Rec | F9: Rec Price | G9: Stop Loss*** | H9: Call Closed At | I9: Target | J9: Remark | K9: Profit / Loss per Share | L9: All charges | M9: Net Gain / Loss % | N9: Status | O9: Closed Date
A10: 1 | B10: 2020-07-22 | D10: NESTLEIND | E10: Buy | F10: 17030 | G10: 15950 | H10: 15950 | I10: 18500-19000 | J10: Loss of Rs.1080/- | K10: =H10-F10 -> -1080 | L10: =(F10*-0.8)/100 -> -136.24 | M10: =(K10+L10)/F10 -> -7.14% | N10: Unsuccessful | O10: 2020-09-01 | R10: H
A11: 2 | B11: 2020-08-14 | D11: ITC | E11: Buy | F11: 198 | G11: 187 | H11: 187 | I11: 218-220 | J11: Loss of Rs.11/- | K11: =H11-F11 -> -11 | L11: =(F11*-0.8)/100 -> -1.58 | M11: =(K11+L11)/F11 -> -6.36% | N11: Unsuccessful | O11: 2020-09-04 | R11: A
A12: 3 | B12: 2020-08-20 | D12: THERMAX | E12: Buy | F12: 785 | G12: 730.00 | H12: 825.00 | I12: 880-900 | J12: Part Profit of Rs.40/- | K12: =H12-F12 -> 40 | L12: =(F12*-0.8)/100 -> -6.28 | M12: =(K12+L12)/F12 -> 4.30% | N12: Successful | O12: 2020-08-21 | R12: H
A13: 4 | B13: 2020-08-21 | D13: VGUARD | E13: Buy | F13: 172 | G13: 160.00 | H13: 180.50 | I13: 195 | J13: Part Profit of Rs.8.5/- | K13: =H13-F13 -> 8.5 | L13: =(F13*-0.8)/100 -> -1.38 | M13: =(K13+L13)/F13 -> 4.14% | N13: Successful | O13: 2020-08-27 | R13: N
A14: 5 | B14: 2020-08-28 | D14: GSPL | E14: Buy | F14: 214 | G14: 199 | H14: 200 | I14: 235-245 | J14: Loss of Rs.14/- | K14: -14 | L14: -1.71 | M14: -7.34% | N14: Unsuccessful | O14: 2020-09-02 | R14: H
A15: 6 | B15: 2020-08-28 | D15: WHIRLPOOL | E15: Buy | F15: 2142.5 | G15: 1,980.00 | H15: 2,250.00 | I15: 2400-2500 | J15: Part Profit of Rs.107.5/- | K15: =H15-F15 -> 107.5 | L15: =(F15*-0.8)/100 -> -17.14 | M15: =(K15+L15)/F15 -> 4.22% | N15: Successful | O15: 2020-09-08 | R15: H
A16: 7 | B16: 2020-09-01 | D16: SUNPHARMA | E16: Buy | F16: 514-520 | G16: 487 | I16: 560-580 | J16: Open | R16: H
A17: 8 | B17: 2020-09-01 | D17: TATACHEM | E17: Buy | F17: 309 | G17: 290 | H17: 289.5 | I17: 340-350 | J17: Loss of Rs.19.5/- | K17: =H17-F17 -> -19.5 | L17: =(F17*-0.8)/100 -> -2.47 | M17: =(K17+L17)/F17 -> -7.11% | N17: Unsuccessful | O17: 2020-09-08 | R17: N
A18: 9 | B18: 2020-09-01 | D18: BHARTIARTL | E18: Buy | F18: 529 | G18: 490.00 | H18: 551.00 | I18: 580-600 | J18: Part Profit of Rs.22/- | K18: =H18-F18 -> 22 | L18: =(F18*-0.08)/100 -> -0.42 | M18: =(K18+L18)/F18 -> 4.08% | N18: Successful | O18: 2020-09-01 | R18: H
A19: 10 | B19: 2020-09-02 | D19: NESTLEIND | E19: Buy | F19: 15900-16100 | G19: 15300 | I19: 17000-17500 | J19: Open | R19: H
A20: 11 | B20: 2020-09-02 | D20: MGL | E20: Buy | F20: 900-910 | G20: 850 | I20: 1000 | J20: Open | R20: N
A21: 12 | B21: 2020-09-03 | D21: VINATIORGA | E21: Buy | F21: 1005-1011 | G21: 950 | I21: 1080-1100 | J21: Open | R21: N
A22: 13 | B22: 2020-09-09 | D22: EXIDEIND | E22: Buy | F22: 155-157 | G22: 145 | I22: 175 | J22: Open | R22: N
A31: CLBS = Closing Basis ***
A32: Dividend adjusted <> | F32: Reinitiated $
A33: Part book {} | F33: Revised stoploss #
B35: Momentum Call
A36: Sr.no | B36: Date | D36: Company | E36: Rec | F36: Rec Price | G36: Stop Loss | H36: Call Closed At | I36: Target | J36: Remark | K36: Profit / Loss per Share/Lot | L36: All charges | M36: Net Gain / Loss % | N36: Status | O36: Closed Date
A37: 1 | B37: 2020-09-01 | D37: ICICIPRULI | E37: Sell | F37: 433 | G37: 443 | H37: 426.00 | I37: 415-410 | J37: Profit of Rs.7/- | K37: =+F37-H37 -> 7 | L37: =(F37*-0.07)/100 -> -0.30 | M37: =(K37+L37)/F37 -> 1.55% | N37: Successful | O37: 2020-09-01 | R37: H
A38: 2 | B38: 2020-09-01 | D38: HINDALCO | E38: Sell | F38: 191 | G38: 197 | H38: 195.00 | I38: 184-182 | J38: Loss of Rs. 4/- | K38: =F38-H38 -> -4 | L38: =(F38*-0.8)/100 -> -1.53 | M38: -2.89% | N38: Successful | O38: 2020-09-03 | R38: H
A39: 3 | B39: 2020-09-01 | D39: ULTRACEMCO | E39: Buy | F39: 3865 | G39: 3740 | H39: 3,930.00 | I39: 4050-4150 | J39: Profit of Rs.65/- | K39: =H39-F39 -> 65 | L39: =(F39*-0.07)/100 -> -2.71 | M39: =(K39+L39)/F39 -> 1.61% | N39: Successful | O39: 2020-09-01 | R39: H
A40: 4 | B40: 2020-09-02 | D40: CROMPTON | E40: Buy | F40: 267 | G40: 260 | H40: 260.00 | I40: 278 | J40: Loss of Rs. 7/- | K40: -7 | L40: =(F40*-0.8)/100 -> -2.14 | M40: -3.42% | N40: Successful | O40: 2020-09-03 | R40: N
A41: 5 | B41: 2020-09-02 | D41: RELAXO | E41: Buy | F41: 642 | G41: 625 | H41: 659.50 | I41: 670-680 | J41: Profit of Rs.17.5/- | K41: 17.5 | L41: =(F41*-0.8)/100 -> -5.14 | M41: 1.93% | N41: Successful | O41: 2020-09-04 | R41: H
A42: 6 | B42: 2020-09-02 | D42: LT | E42: Buy | F42: 948 | G42: 918 | H42: 969.50 | I42: 1000-1010 | J42: Profit of Rs.21.5/- | K42: =H42-F42 -> 21.5 | L42: =(F42*-0.8)/100 -> -7.58 | M42: =(K42+L42)/F42 -> 1.47% | N42: Successful | O42: 2020-09-03 | R42: H
A43: 7 | B43: 2020-09-04 | D43: TATASTEEL | E43: Sell | F43: 431.5 | G43: 446 | H43: 425.00 | I43: 415-410 | J43: Profit of Rs.6.5/- | K43: =+F43-H43 -> 6.5 | L43: =(F43*-0.07)/100 -> -0.30 | M43: 1.44% | N43: Successful | O43: 2020-09-04 | R43: H
A44: 8 | B44: 2020-09-04 | D44: HINDUNILVR | E44: Buy | F44: 2120-2130 | G44: 2060 | I44: 2220-2250 | J44: Open | R44: H
A45: 9 | B45: 2020-09-07 | D45: TATASTEEL | E45: Sell | F45: 425.5 | G45: 442 | H45: 418.50 | I45: 410-405 | J45: Profit of Rs.7/- | K45: =+F45-H45 -> 7 | L45: =(F45*-0.07)/100 -> -0.30 | M45: =(K45+L45)/F45 -> 1.58% | N45: Successful | O45: 2020-09-07 | R45: H
A46: 10 | B46: 2020-09-07 | D46: BHARATFORG | E46: Buy | F46: 491 | G46: 477 | H46: 477.00 | I46: 515-518 | J46: Loss of Rs. 14/- | K46: =H46-F46 -> -14 | L46: =(F46*-0.8)/100 -> -3.93 | M46: -3.65% | N46: Successful | O46: 2020-09-08 | R46: N
A47: 11 | B47: 2020-09-07 | D47: DLF | E47: Sell | F47: 155 | G47: 160 | H47: 152.00 | I47: 135 | J47: Profit of Rs.3/- | K47: =+F47-H47 -> 3 | L47: =(F47*-0.07)/100 -> -0.11 | M47: =(K47+L47)/F47 -> 1.87% | N47: Successful | O47: 2020-09-07 | R47: N
A48: 12 | B48: 2020-09-08 | D48: LT | E48: Buy | F48: 925-929 | G48: 900 | I48: 980-1000 | J48: Open | R48: H
A49: 13 | B49: 2020-09-08 | D49: MINDTREE | E49: Buy | F49: 1205 | G49: 1170 | H49: 1,170.00 | I49: 1270 | J49: Loss of Rs. 35/- | K49: =H49-F49 -> -35 | L49: =(F49*-0.8)/100 -> -9.64 | M49: =(K49+L49)/F49 -> -3.70% | N49: Successful | O49: 2020-09-10 | R49: N
A50: 14 | B50: 2020-09-09 | D50: HCLTECH | E50: Buy | F50: 714.5 | G50: 695 | H50: 726.00 | I50: 740 | J50: Profit of Rs.11.5/- | K50: =H50-F50 -> 11.5 | L50: =(F50*-0.07)/100 -> -0.50 | M50: =(K50+L50)/F50 -> 1.54% | N50: Successful | O50: 2020-09-09 | R50: H
A51: 15 | B51: 2020-09-09 | D51: ULTRACEMCO | E51: Buy | F51: 3825 | G51: 3710 | H51: 3,911.00 | I51: 3970-4000 | J51: Profit of Rs.86/- | K51: 86 | L51: =(F51*-0.8)/100 -> -30.60 | M51: 1.45% | N51: Successful | O51: 2020-09-10 | R51: H
A52: 16 | B52: 2020-09-11 | D52: DLF | E52: Sell | F52: 156.5 | G52: 162 | H52: 153.75 | I52: 147 | J52: Profit of Rs.2.75/- | K52: =+F52-H52 -> 2.75 | L52: =(F52*-0.07)/100 -> -0.11 | M52: 1.69% | N52: Successful | O52: 2020-09-11 | R52: N
A53: 17 | B53: 2020-09-11 | D53: IGL | E53: Buy | F53: 393.5 | G53: 384 | H53: 399.50 | I53: 410-415 | J53: Profit of Rs.6/- | K53: =H53-F53 -> 6 | L53: =(F53*-0.07)/100 -> -0.28 | M53: =(K53+L53)/F53 -> 1.45% | N53: Successful | O53: 2020-09-11 | R53: H
A54: 18 | B54: 2020-09-11 | D54: BPCL | E54: Buy | F54: 423-425 | G54: 409 | I54: 440-450 | R54: H
A55: 19 | B55: 2020-09-11 | D55: LUPIN | E55: Buy | F55: 962-965 | G55: 938 | I55: 1000-1020 | R55: N
A67: CLBS = Closing Basis *** | H67: *
A68: Dividend adjusted <> | F68: Reinitiated $
F69: Revised stoploss #
A71: Master Trade High Risk
A72: Sr.no | B72: Date | D72: Company | E72: Rec | F72: Rec Price | G72: Stop Loss | H72: Call Closed At | I72: Target | J72: Remark | K72: Profit / Loss per share | L72: All charges | M72: Gain / Loss per Lot | N72: Lot | O72: Status | P72: Closed Date
A73: 1 | B73: 2020-08-28 | D73: TCS SEP FUT | E73: Buy | F73: 2272 | G73: 2230 | H73: 2298.5 | I73: 2450 | J73: Profit of Rs.26.5/- | K73: =H73-F73 -> 26.5 | L73: =(H73*N73)*0.07% -> 482.69 | M73: =(K73*N73)-L73 -> 7467.32 | N73: 300 | O73: Successful | P73: 2020-09-03 | R73: N
A74: 2 | B74: 2020-09-01 | D74: NIFTY SEPT FUT | E74: Sell | F74: 11510 | G74: 11610 | H74: 11420 | I74: 11300-11250 | J74: Profit of Rs.90/- | K74: =F74-H74 -> 90 | L74: 599.55 | M74: 6150.45 | N74: 75 | O74: Successful | P74: 2020-09-01 | R74: H
A75: 3 | B75: 2020-09-01 | D75: NIFTY SEPT FUT | E75: Sell | F75: 11525 | G75: 11650 | H75: 11445 | I75: 11300-11250 | J75: Profit of Rs.80/- | K75: =F75-H75 -> 80 | L75: 600.86 | M75: 5399.14 | N75: 75 | O75: Successful | P75: 2020-09-01 | R75: H
A76: 4 | B76: 2020-09-02 | D76: NIFTY SEPT FUT | E76: Sell | F76: 11525 | G76: 11650 | H76: 11455 | I76: 11300-11250 | J76: Profit of Rs.70/- | K76: =F76-H76 -> 70 | L76: 601.39 | M76: 4648.61 | N76: 75 | O76: Successful | P76: 2020-09-02 | R76: H
A77: 5 | B77: 2020-09-03 | D77: NIFTY SEPT FUT | E77: Sell | F77: 11590 | G77: 11710 | H77: 11520 | I77: 11400 | J77: Profit of Rs.70/- | K77: =F77-H77 -> 70 | L77: 604.80 | M77: 4645.20 | N77: 75 | O77: Successful | P77: 2020-09-03 | R77: H
A78: 6 | B78: 2020-09-08 | D78: NIFTY SEPT FUT | E78: Sell | F78: 11415 | G78: 11540 | H78: 11355 | I78: 11300-11250 | J78: Profit of Rs.60/- | K78: =F78-H78 -> 60 | L78: 596.14 | M78: 3903.86 | N78: 75 | O78: Successful | P78: 2020-09-08 | R78: H
A79: 7 | B79: 2020-09-10 | D79: NIFTY SEPT FUT | E79: Sell | F79: 11400-11420 | G79: 11510 | I79: 11200 | J79: Open | R79: N
A80: 8 | B80: 2020-09-11 | D80: AMBUJACEM SEPT FUT | E80: Sell | F80: 213.75 | G80: 218 | H80: 211.75 | I80: 205 | J80: Profit of Rs.2/- | K80: =F80-H80 -> 2 | L80: =(H80*N80)*0.07% -> 444.68 | M80: =(K80*N80)-L80 -> 5555.33 | N80: 3000 | O80: Successful | P80: 2020-09-12 | R80: H
A86: Master Trade Medium Risk
A87: Sr.no | B87: Date | D87: Company | E87: Rec | F87: Rec Price | G87: Stop Loss | H87: Call Closed At | I87: Target | J87: Remark | K87: Profit/ Loss per lot | L87: All charges | M87: Gain / Loss per Lot | N87: Lot | O87: Status | P87: Closed Date
A88: 1 | B88: 2020-09-01 | D88: NIFTY 11400 PE 03-SEP | E88: Buy | F88: 72 | G88: 35 | H88: 87 | I88: 150 | J88: Profit of Rs.15/- | K88: =H88-F88 -> 15 | L88: 100 | M88: =(K88*N88)-100 -> 1025 | N88: 75 | O88: Successful | P88: 2020-09-01 | R88: N
A89: 2 | B89: 2020-09-01 | D89: NIFTY 11400 PE 03-SEP | E89: Buy | F89: 47.50 | G89: 0 | H89: 63 | I89: 120 | J89: Profit of Rs.15.50/- | K89: 15.5 | L89: 100 | M89: 1062.5 | N89: 75 | O89: Successful | P89: 2020-09-01 | R89: N
A90: 3 | B90: 2020-09-02 | D90: NIFTY 11450 PE 03-SEP | E90: Buy | F90: 45 | H90: 57 | I90: 90 | J90: Profit of Rs.12/- | K90: =H90-F90 -> 12 | L90: 100 | M90: =(K90*N90)-100 -> 800 | N90: 75 | O90: Successful | P90: 2020-09-02 | R90: N
A91: 4 | B91: 2020-09-02 | D91: NIFTY 11500 PE 03-SEP | E91: Buy | F91: 37.5 | H91: 0 | I91: 80 | J91: Loss of Rs.37.5/- | K91: -37.5 | L91: 100 | M91: -2912.5 | N91: 75 | O91: Unsuccessful | P91: 2020-09-03 | R91: N
A92: 5 | B92: 2020-09-02 | D92: TCS 2300 CE SEP | E92: Buy | F92: 51 | G92: 35 | H92: 60 | I92: 75-85 | J92: Profit of Rs.9/- | K92: =H92-F92 -> 9 | L92: 100 | M92: =(K92*N92)-100 -> 2600 | N92: 300 | O92: Successful | P92: 2020-09-03 | R92: H
A93: 6 | B93: 2020-09-03 | D93: BHARTIARTL 570 CE | E93: Buy | F93: 10.75 | G93: 7.5 | H93: 12.75 | I93: 15-16 | J93: Profit of Rs.2/- | K93: 2 | L93: 100 | M93: 3602 | N93: 1851 | O93: Successful | P93: 2020-09-03 | R93: H
A94: 7 | B94: 2020-09-03 | D94: BHARTIARTL 570 CE | E94: Buy | F94: 10.8 | G94: 7.5 | H94: 7.5 | I94: 15-16 | J94: Loss of Rs.3.3/- | K94: =H94-F94 -> -3.3 | L94: 100 | M94: =(K94*N94)-100 -> -6208.3 | N94: 1851 | O94: Unsuccessful | P94: 2020-09-04 | R94: H
A95: 8 | B95: 2020-09-04 | D95: INFY 940 CE SEP | E95: Buy | F95: 20.5 | G95: 15.5 | H95: 22.4 | I95: 30 | J95: Profit of Rs.1.9/- | K95: 1.9 | L95: 100 | M95: 2180 | N95: 1200 | O95: Successful | P95: 2020-09-04 | R95: N
A96: 9 | B96: 2020-09-04 | D96: TCS 2300 CE SEP | E96: Buy | F96: 55 | G96: 37 | H96: 62 | I96: 75-85 | J96: Profit of Rs.7/- | K96: =H96-F96 -> 7 | L96: 100 | M96: =(K96*N96)-100 -> 2000 | N96: 300 | O96: Successful | P96: 2020-09-04 | R96: H
A97: 10 | B97: 2020-09-04 | D97: MARUTI 7000 PE SEP | E97: Buy | F97: 142.5 | G97: 95 | H97: 95 | I97: 200-250 | J97: Loss of Rs.47.5/- | K97: -47.5 | L97: 100 | M97: -4850 | N97: 100 | O97: Unsuccessful | P97: 2020-09-04 | R97: H
A98: 11 | B98: 2020-09-04 | D98: NIFTY 11200 PE 10-SEP | E98: Buy | F98: 46 | G98: 15 | H98: 61.5 | I98: 80-100 | J98: Profit of Rs.15.5/- | K98: =H98-F98 -> 15.5 | L98: 100 | M98: =(K98*N98)-100 -> 1062.5 | N98: 75 | O98: Successful | P98: 2020-09-04 | R98: H
A99: 12 | B99: 2020-09-07 | D99: NIFTY 11200 PE 10-SEP | E99: Buy | F99: 61.5 | G99: 25 | H99: 81 | I99: 100-120 | J99: Profit of Rs.19.5/- | K99: =H99-F99 -> 19.5 | L99: 100 | M99: =(K99*N99)-100 -> 1362.5 | N99: 75 | O99: Successful | P99: 2020-09-07 | R99: H
A100: 13 | B100: 2020-09-07 | D100: NIFTY 11200 PE 10-SEP | E100: Buy | F100: 60 | G100: 25 | H100: 30 | I100: 100-120 | J100: Loss of Rs.30/- | K100: -30 | L100: 100 | M100: -2350 | N100: 75 | O100: Unsuccessful | P100: 2020-09-08 | R100: H
A101: 14 | B101: 2020-09-08 | D101: NIFTY 11300 PE 10-SEP | E101: Buy | F101: 58 | G101: 18 | H101: 75 | I101: 100-120 | J101: Profit of Rs.17/- | K101: =H101-F101 -> 17 | L101: 100 | M101: =(K101*N101)-100 -> 1175 | N101: 75 | O101: Successful | P101: 2020-09-08 | R101: H
A102: 15 | B102: 2020-09-09 | D102: TCS 2380 CE SEP | E102: Buy | F102: 39 | G102: 23 | H102: 48 | I102: 70 | J102: Profit of Rs.9/- | K102: 9 | L102: 100 | M102: 2600 | N102: 300 | O102: Successful | P102: 2020-09-11 | R102: N
A103: 16 | B103: 2020-09-09 | D103: NIFTY 11000 PE 17-SEP | E103: Buy | F103: 60 | G103: 18 | H103: 18 | I103: 120-140 | J103: Loss of Rs.42/- | K103: =H103-F103 -> -42 | L103: 100 | M103: =(K103*N103)-100 -> -3250 | N103: 75 | O103: Unsuccessful | P103: 2020-09-11 | R103: H
A104: 17 | B104: 2020-09-11 | D104: NIFTY 11350 PE 17-SEP | E104: Buy | F104: 60 | G104: 18 | H104: 76 | I104: 120-140 | J104: Profit of Rs.17/- | K104: =H104-F104 -> 16 | L104: 100 | M104: =(K104*N104)-100 -> 1100 | N104: 75 | O104: Successful | P104: 2020-09-11 | R104: H
A105: 18 | B105: 2020-09-11 | D105: NIFTY 11350 PE 17-SEP | E105: Buy | F105: 57-61 | G105: 18 | I105: 120-140 | J105: Open
A108: Techno -Funda (positional)
A109: Sr.no | B109: Date | D109: Company | E109: Rec | F109: Rec Price | G109: Stop Loss*** | H109: Call Closed At | I109: Target | J109: Remark | K109: Profit / Loss per Share/Lot | L109: All charges | M109: Net Gain / Loss % | N109: Status | O109: Closed Date
A110: 1 | B110: 2020-08-28 | D110: CCL | E110: Buy | F110: 267 | G110: 245 | H110: 243 | I110: 310-320 | J110: Loss of Rs.24/- | K110: =H110-F110 -> -24 | L110: =(F110*-0.8)/100 -> -2.14 | M110: =(K110+L110)/F110 -> -9.79% | N110: Unsuccessful | O110: 2020-09-09 | R110: H
A112: CLBS = Closing Basis *** | F112: Reinitiated $
A113: Dividend adjusted <> | F113: Revised stoploss #
B118: Investment Idea
A119: Sr.no | B119: Date | D119: Company | E119: Rec | F119: Rec Price | G119: Point of Review | H119: Close Rate | I119: Target | J119: Remark | K119: Profit / Loss per Share | L119: Gain / Loss % | M119: Status | N119: Closed Date
A120: 1 | B120: 2013-11-01 | D120: L&T Finance Holding | E120: Accu | F120: 82.00 | G120: - | H120: 100 | I120: 100.00 | J120: Target Achieved | K120: =H120-F120 -> 18.00 | L120: =K120/F120 -> 21.95% | M120: Successful | N120: 2016-10-14
A121: 2 | B121: 2014-06-04 | D121: Finolex Inds | E121: Buy | F121: 257.00 | G121: - | H121: 300 | I121: 300.00 | J121: Target Achieved | K121: 43.00 | L121: 16.73% | M121: Successful | N121: 2014-07-02
A122: 3 | B122: 2014-07-08 | D122: JK Cement | E122: Buy | F122: 393.00 | G122: - | H122: 468 | I122: 468.00 | J122: Target Achieved | K122: 75.00 | L122: 19.08% | M122: Successful | N122: 2014-08-12
A123: 4 | B123: 2014-08-06 | D123: Finolex Cables | E123: Buy | F123: 205.00 | G123: - | H123: 275 | I123: 250.00 | J123: Target Achieved | K123: 70.00 | L123: 34.15% | M123: Successful | N123: 2014-11-19
A124: 5 | B124: 2014-09-04 | D124: Exide Inds | E124: Buy | F124: 162.00 | G124: - | H124: 190 | I124: 190.00 | J124: Target Achieved | K124: 28.00 | L124: 17.28% | M124: Successful | N124: 2015-01-02
A125: 6 | B125: 2014-09-04 | D125: Deepak Nitrite | E125: Buy | F125: 75.00 | G125: - | H125: 91.5 | I125: 95-100 | J125: Profit of Rs.16.50/- | K125: 16.50 | L125: 22.00% | M125: Successful | N125: 2014-11-11
A126: 7 | B126: 2014-10-01 | D126: Mercks | E126: Buy | F126: 850.00 | G126: - | H126: 982.5 | I126: 1050.00 | J126: Profit of Rs.132.50/- | K126: 132.50 | L126: 15.59% | M126: Successful | N126: 2015-02-04
A127: 8 | B127: 2014-10-01 | D127: Grindwell Norton | E127: Buy | F127: 475.00 | G127: - | H127: 515 | I127: 600.00 | J127: Profit of Rs.40/- | K127: 40.00 | L127: 8.42% | M127: Successful | N127: 2014-10-27
A128: 9 | B128: 2014-10-01 | D128: Snowman Logistics | E128: Buy | F128: 86.00 | G128: - | H128: 99 | I128: 140.00 | J128: Profit of Rs.13.00/- | K128: 13.00 | L128: 15.12% | M128: Successful | N128: 2014-10-27
A129: 10 | B129: 2014-10-14 | D129: Birla Corp | E129: Buy | F129: 496.60 | G129: - | H129: 621 | I129: 580.00 | J129: Target Achieved | K129: 124.40 | L129: 25.05% | M129: Successful | N129: 2016-08-23
A130: 11 | B130: 2014-10-14 | D130: Ultratech Cem | E130: Buy | F130: 2481.90 | G130: - | H130: 2840 | I130: 2870.00 | J130: Profit of Rs.358.10/- | K130: 358.10 | L130: 14.43% | M130: Successful | N130: 2015-01-13
A131: 12 | B131: 2014-10-16 | D131: Sintex Inds | E131: Buy | F131: 84.50 | G131: - | H131: 93 | I131: 110.00 | J131: Profit of Rs.8.50/- | K131: 8.50 | L131: 10.06% | M131: Successful | N131: 2014-10-27
A132: 13 | B132: 2014-10-16 | D132: HSIL | E132: Buy | F132: 401.00 | G132: - | H132: 428 | I132: 450.00 | J132: Profit of Rs.27.00/- | K132: 27.00 | L132: 6.73% | M132: Successful | N132: 2015-01-16
A133: 14 | B133: 2014-10-16 | D133: Eveready Inds | E133: Buy | F133: 101.00 | G133: - | H133: 112 | I133: 120.00 | J133: Profit of Rs.11.00/- | K133: 11.00 | L133: 10.89% | M133: Successful | N133: 2014-10-27
A134: 15 | B134: 2014-11-11 | D134: Pennar Inds | E134: Buy | F134: 59.00 | G134: - | H134: 76 | I134: 76.00 | J134: Target Achieved | K134: 17.00 | L134: 28.81% | M134: Successful | N134: 2017-10-24
A135: 16 | B135: 2014-11-11 | D135: Snowman Logistics | E135: Buy | F135: 99.00 | G135: - | H135: 120 | I135: 120.00 | J135: Profit of Rs.21/- | K135: 21.00 | L135: 21.21% | M135: Successful | N135: 2014-11-17
A136: 17 | B136: 2014-11-13 | D136: Dharamsi Morarji Chem | E136: Buy | F136: 22.00 | G136: - | H136: 33.55 | I136: 32.00 | J136: Profit of Rs 11.55/- | K136: 11.55 | L136: 52.50% | M136: Successful | N136: 2015-07-03
A137: 18 | B137: 2014-12-03 | D137: Tatachem | E137: Buy | F137: 440.00 | G137: - | H137: 520 | I137: 520.00 | J137: Profit of Rs 80.00/- | K137: 80.00 | L137: 18.18% | M137: Successful | N137: 2015-07-23
A138: 19 | B138: 2014-12-03 | D138: Advanta | E138: Buy | F138: 360.00 | G138: - | H138: 427 | I138: 425.00 | J138: Profit of Rs.67.00/- | K138: 67.00 | L138: 18.61% | M138: Successful | N138: 2015-02-23
A139: 20 | B139: 2015-01-08 | D139: GDL | E139: Buy | F139: 360.00 | G139: - | H139: 455 | I139: 420.00 | J139: Profit of Rs.95.00/- | K139: 95.00 | L139: 26.39% | M139: Successful | N139: 2015-01-20
A140: 21 | B140: 2015-01-08 | D140: NRB Bearing | E140: Buy | F140: 130.00 | H140: 175.5 | I140: 165.00 | J140: Profit of Rs 45.50/- | K140: 45.50 | L140: 35.00% | M140: Successful | N140: 2017-12-19
A141: 22 | B141: 2015-02-05 | D141: GSFC | E141: Accu | F141: 98.00 | H141: 120 | I141: 120.00 | J141: Target Achieved | K141: 22.00 | L141: 22.45% | M141: Successful | N141: 2017-01-18
A142: 23 | B142: 2015-02-05 | D142: Sundrmfast | E142: Accu | F142: 196.00 | H142: 262 | I142: 255.00 | J142: Target Achieved | K142: 66.00 | L142: 33.67% | M142: Successful | N142: 2016-08-17
A143: 24 | B143: 2015-03-04 | D143: GPPL | E143: Accu | F143: 235 | H143: 77.00 | I143: 280-285 | J143: Loss of Rs.158/- | K143: -158.00 | L143: -67.23% | M143: Unsuccessful | N143: 2019-02-26
A144: 25 | B144: 2015-03-04 | D144: ORIENTCEM | E144: Accu | F144: 185.00 | H144: 224 | I144: 220-225 | J144: Target Achieved | K144: 39.00 | L144: 21.08% | M144: Successful | N144: 2016-10-04
A145: 26 | B145: 2015-03-27 | D145: PFS | E145: Accu | F145: 49.5 | H145: 15.85 | I145: 67.00 | J145: Loss of Rs.33.65/- | K145: -33.65 | L145: -68% | M145: Unsuccessful | N145: 2019-06-11
A146: 27 | B146: 2015-03-30 | D146: Walchandnagar Ind Ltd | E146: Accu | F146: 183.50 | H146: 219 | I146: 218.00 | J146: Profit of Rs.35.50/- | K146: 35.50 | L146: 19.35% | M146: Successful | N146: 2015-04-09
A147: 28 | B147: 2015-04-20 | D147: Kalpataru Power Transmission Ltd | E147: Accu | F147: =(227+237)/2 -> 232.00 | H147: 298 | I147: 298.00 | J147: Target Achieved | K147: 66.00 | L147: 28.45% | M147: Successful | N147: 2017-03-29
A148: 29 | B148: 2015-05-04 | D148: Mastek Ltd | E148: Buy | F148: 385.00 | H148: =212.5+331 -> 543.5 | I148: 510.00 | J148: Profit of Rs 158.50/- | K148: 158.50 | L148: 41.17% | M148: Successful | N148: 2015-08-19
A149: 30 | B149: 2015-05-04 | D149: Suprajit Eng | E149: Buy | F149: 115.50 | H149: 146 | I149: 142.00 | J149: Profit of Rs 30.50/- | K149: 30.50 | L149: 26.41% | M149: Successful | N149: 2015-07-17
A150: 31 | B150: 2015-05-27 | D150: TCI | E150: Buy | F150: 237.50 | H150: 279.5 | I150: 278.00 | J150: Target Achieved | K150: 42.00 | L150: 17.68% | M150: Successful | N150: 2015-08-06
A151: 32 | B151: 2015-06-19 | D151: HSIL | E151: Accu | F151: 340.00 | H151: 448 | I151: 448.00 | J151: Target Achieved | K151: 108.00 | L151: 31.76% | M151: Successful | N151: 2017-10-10
A152: 33 | B152: 2015-07-06 | D152: Capital First | E152: Accu | F152: 390.00 | H152: 460 | I152: 460.00 | J152: Target Achieved | K152: =H152-F152 -> 70.00 | L152: =K152/F152 -> 17.95% | M152: Successful | N152: 2016-04-18
A153: 34 | B153: 2015-07-10 | D153: Dolphin OffShore | E153: Accu | F153: 122.5 | H153: 61.00 | I153: 172.00 | J153: Loss of Rs.61.50/- | K153: -61.50 | L153: -50.20% | M153: Unsuccessful | N153: 2018-08-21
A154: 35 | B154: 2015-08-03 | D154: Allcargo logistics | E154: Accu | F154: 297.50 | H154: 350 | I154: 360.00 | J154: Profit of Rs 52.50/- | K154: 52.50 | L154: 17.65% | M154: Successful | N154: 2015-08-16
A155: 36 | B155: 2015-08-03 | D155: Camline Fine | E155: Accu | F155: 115.50 | H155: 149 | I155: 140.00 | J155: Profit of Rs 33.50/- | K155: 33.50 | L155: 29.00% | M155: Successful | N155: 2017-01-05
A156: 37 | B156: 2015-09-04 | D156: TCI | E156: Accu | F156: 226.00 | H156: 292 | I156: 292.00 | J156: Target Achieved | K156: 66.00 | L156: 29.20% | M156: Successful | N156: 2015-10-09
A157: 38 | B157: 2015-09-07 | D157: Kalpataru Power Transmission Ltd | E157: Accu | F157: 232.50 | H157: 312.5 | I157: 310.00 | J157: Target Achieved | K157: 80.00 | L157: 34.41% | M157: Successful | N157: 2017-03-29
A158: 39 | B158: 2015-09-21 | D158: LLOYD ELECTRIC & ENG LTD | E158: Accu | F158: 196.50 | H158: 238 | I158: 238.00 | J158: Target Achieved | K158: 41.50 | L158: 21.12% | M158: Successful | N158: 2015-10-14
A159: 40 | B159: 2015-09-24 | D159: L&T Finance Holding | E159: Accu | F159: 65.00 | H159: 82 | I159: 82.00 | J159: Target Achieved | K159: 17.00 | L159: 26.15% | M159: Successful | N159: 2016-07-27
A160: 41 | B160: 2015-10-14 | D160: KEC International ltd | E160: Accu | F160: 144.00 | H160: 182.5 | I160: 181.00 | J160: Target Achieved | K160: 38.50 | L160: 26.74% | M160: Successful | N160: 2017-03-23
A161: 42 | B161: 2015-10-14 | D161: Gruh Finance | E161: Accu | F161: 264.00 | H161: 311 | I161: 311.00 | J161: Target Achieved | K161: 47.00 | L161: 17.80% | M161: Successful | N161: 2016-08-22
A162: 43 | B162: 2015-11-10 | D162: Pidilitind | E162: Buy | F162: 549.50 | H162: 630 | I162: 630.00 | J162: Target Achieved | K162: 80.50 | L162: 14.65% | M162: Successful | N162: 2016-02-19
A163: 44 | B163: 2015-12-04 | D163: Zensar Technology | E163: Accu | F163: 1027.50 | H163: 1315 | I163: 1250.00 | J163: Target Achieved | K163: 287.50 | L163: 27.98% | M163: Successful | N163: 2018-05-24
A164: 45 | B164: 2015-12-29 | D164: Vinati Organics Ltd | E164: Accu | F164: 465.00 | H164: 540 | I164: 540.00 | J164: Target Achieved | K164: 75.00 | L164: 16.13% | M164: Successful | N164: 2016-06-09
A165: 46 | B165: 2016-01-11 | D165: GSFC | E165: Buy | F165: 81.00 | H165: 110 | I165: 110.00 | J165: Target Achieved | K165: 29.00 | L165: 35.80% | M165: Successful | N165: 2017-01-10
A166: 47 | B166: 2016-01-13 | D166: SSWL | E166: Buy | F166: 417.50 | H166: 547 | I166: 535.00 | J166: Target Achieved | K166: 129.50 | L166: 31.02% | M166: Successful | N166: 2016-07-27
A167: 48 | B167: 2016-02-08 | D167: Persistent System Ltd | E167: Accu | F167: 650.00 | H167: 800 | I167: 800.00 | J167: Target Achieved | K167: 150.00 | L167: 23.08% | M167: Successful | N167: 2018-02-23
A168: 49 | B168: 2016-03-04 | D168: UPL | E168: Accu | F168: 437.50 | H168: 504.5 | I168: 522.00 | J168: Profit of Rs.67/- | K168: 67.00 | L168: 15.31% | M168: Successful | N168: 2016-04-20
A169: 50 | B169: 2016-03-09 | D169: Ashoka Buildcon Ltd | E169: Accu | F169: 189.50 | H169: 218 | I169: 218.00 | J169: Target Achieved | K169: 28.50 | L169: 15.04% | M169: Successful | N169: 2017-10-26
A170: 51 | B170: 2016-04-11 | D170: PTC INDIA FIN SERV LTD | E170: Accu | F170: 36.5 | H170: 15.85 | I170: 60.00 | J170: Loss of Rs.20.65/- | K170: -20.65 | L170: -56.58% | M170: Unsuccessful | N170: 2019-06-11
A171: 52 | B171: 2016-04-12 | D171: CAMLINFINE $ | E171: Accu | F171: 93.00 | H171: 149 | I171: 140.00 | J171: Profit of Rs 56/- | K171: 56.00 | L171: 60.22% | M171: Successful | N171: 2017-01-05
A172: 53 | B172: 2016-04-12 | D172: Greaves Cotton Ltd. | E172: Accu | F172: 130.00 | H172: 150 | I172: 150-155 | J172: Target Achieved | K172: 20.00 | L172: 15.38% | M172: Successful | N172: 2016-07-13
A173: 54 | B173: 2016-04-13 | D173: DHFL | E173: Accu | F173: 196.00 | H173: 299 | I173: 299.00 | J173: Target Achieved | K173: 103.00 | L173: 52.55% | M173: Successful | N173: 2016-09-07
A174: 55 | B174: 2016-04-13 | D174: Magma | E174: Accu | F174: 88.00 | H174: 103 | I174: 103.00 | J174: Target Achieved | K174: 15.00 | L174: 17.05% | M174: Successful | N174: 2016-06-09
A175: 56 | B175: 2016-05-02 | D175: KEC International ltd $ | E175: Accu | F175: 127.50 | H175: 148 | I175: 148-150 | J175: Target Achieved | K175: =H175-F175 -> 20.50 | L175: =K175/F175 -> 16.08% | M175: Successful | N175: 2016-07-13
A176: 57 | B176: 2016-05-03 | D176: Mindtree | E176: Accu | F176: 675.00 | H176: 815 | I176: 790-800 | J176: Target Achieved | K176: =H176-F176 -> 140.00 | L176: =K176/F176 -> 20.74% | M176: Successful | N176: 2018-02-23
A177: 58 | B177: 2016-06-01 | D177: Atulauto | E177: Accu | F177: 500 | H177: 232.50 | I177: 565-570 | J177: Loss of Rs.267.50 /- | K177: =H177-F177 -> -267.50 | L177: =K177/F177 -> -53.50% | M177: Unsuccessful | N177: 2019-09-27
A178: 59 | B178: 2016-06-06 | D178: TRITURBINE | E178: Accu | F178: 110.00 | H178: 126.5 | I178: 125.00 | J178: Profit of Rs.16.50/- | K178: =H178-F178 -> 16.50 | L178: =K178/F178 -> 15.00% | M178: Successful | N178: 2016-07-01
A179: 60 | B179: 2016-06-17 | D179: Pennar Industries Ltd | E179: Accu | F179: 44.00 | H179: 69.5 | I179: 69.50 | J179: Profit of Rs.25.50/- | K179: =H179-F179 -> 25.50 | L179: =K179/F179 -> 57.95% | M179: Successful | N179: 2017-08-30
A180: 61 | B180: 2016-06-28 | D180: EVEREADY | E180: Accu | F180: 262.50 | H180: 340 | I180: 333.00 | J180: Profit of Rs.77.50/- | K180: 77.50 | L180: 29.52% | M180: Successful | N180: 2017-10-09
A181: 62 | B181: 2016-06-28 | D181: FIEMIND | E181: Accu | F181: 840.00 | H181: 1230 | I181: 1230.00 | J181: Target Achieved | K181: 390.00 | L181: 46.43% | M181: Successful | N181: 2016-10-06
A182: 63 | B182: 2016-07-05 | D182: Bajaj Corp Ltd | E182: Accu | F182: 395 | H182: =(468.5+342.5)/2 -> 405.50 | I182: 510.00 | J182: Profit of Rs.10.50/- | K182: =H182-F182 -> 10.50 | L182: =K182/F182 -> 3% | M182: Neutral | N182: 2019-05-21
A183: 64 | B183: 2016-08-02 | D183: GPPL $ | E183: Buy | F183: =169.5-12.8 -> 156.7 | H183: 77.00 | I183: 198-200 | J183: Loss of Rs.79.7/- | K183: -79.70 | L183: -50.86% | M183: Unsuccessful | N183: 2019-02-26
A184: 65 | B184: 2016-08-04 | D184: WONDERLA HOLIDAYS LTD | E184: Accu | F184: 400 | H184: 305.00 | I184: 475.00 | J184: Loss of Rs.95/- | K184: -95.00 | L184: -23.75% | M184: Unsuccessful | N184: 2019-05-21
A185: 66 | B185: 2016-08-11 | D185: CAMLINFINE | E185: Accu | F185: 86.50 | H185: 130 | I185: 130.00 | J185: Profit of Rs.43.50/- | K185: 43.50 | L185: 50.29% | M185: Successful | N185: 2017-12-22
A186: 67 | B186: 2016-08-18 | D186: GRANULES | E186: Accu | F186: 133.5 | H186: 126.50 | I186: 178.00 | J186: Exit | K186: -7.00 | L186: -5.24% | M186: Unsuccessful | N186: 2016-09-02
A187: 68 | B187: 2016-08-31 | D187: VA TECH WABAG | E187: Accu | F187: 560.00 | H187: 725 | I187: 725.00 | J187: Target Achieved | K187: 165.00 | L187: 29.46% | M187: Successful | N187: 2016-03-27
A188: 69 | B188: 2016-09-01 | D188: SKIPPER LIMITED | E188: Accu | F188: 160.50 | H188: 210 | I188: 210.00 | J188: Target Achieved | K188: 49.50 | L188: 30.84% | M188: Successful | N188: 2017-05-16
A189: 70 | B189: 2016-10-03 | D189: IFBIND | E189: Accu | F189: 430.00 | H189: 596 | I189: 575.00 | J189: Profit of Rs.166/- | K189: 166.00 | L189: 38.60% | M189: Successful | N189: 2017-02-03
A190: 71 | B190: 2016-10-14 | D190: ASIANTILES | E190: Accu | F190: 280.00 | H190: 345 | I190: 345.00 | J190: Target Achieved | K190: =H190-F190 -> 65.00 | L190: =K190/F190 -> 23.21% | M190: Successful | N190: 2017-03-20
A191: 72 | B191: 2016-10-14 | D191: DEEPIND | E191: Accu | F191: 245.00 | H191: 325.5 | I191: 330.00 | J191: Profit of Rs.80.5/- | K191: 80.50 | L191: =K191/F191 -> 32.86% | M191: Successful | N191: 2017-02-03
A192: 73 | B192: 2016-10-17 | D192: DCBBANK | E192: Accu | F192: 125.00 | H192: 160 | I192: 160.00 | J192: Target Achieved | K192: 35.00 | L192: 28.00% | M192: Successful | N192: 2017-03-09
A193: 74 | B193: 2016-10-17 | D193: ORIENTREF | E193: Accu | F193: 114.00 | H193: 145 | I193: 145.00 | J193: Target Achieved | K193: 31.00 | L193: =K193/F193 -> 27.19% | M193: Successful | N193: 2017-05-04
A194: 75 | B194: 2016-10-17 | D194: GANECOS | E194: Accu | F194: 212.00 | H194: 280 | I194: 276.00 | J194: Profit of Rs.68/- | K194: 68.00 | L194: =K194/F194 -> 32.08% | M194: Successful | N194: 2017-05-03
A195: 76 | B195: 2016-11-04 | D195: NBCC | E195: Accu | F195: 155.00 | H195: 210 | I195: 210.00 | J195: Profit of Rs.55/- | K195: 55.00 | L195: =K195/F195 -> 35.48% | M195: Successful | N195: 2017-07-28
A196: 77 | B196: 2016-12-06 | D196: PRECAM | E196: Accu | F196: 150.5 | H196: 72.50 | I196: 174.00 | J196: Loss of Rs.78/- | K196: -78.00 | L196: -51.83% | M196: Unsuccessful | N196: 2018-08-21
A197: 78 | B197: 2016-12-08 | D197: INFRATEL | E197: Accu | F197: 380.00 | H197: 478 | I197: 468.00 | J197: Target Achieved | K197: =H197-F197 -> 98.00 | L197: =K197/F197 -> 25.79% | M197: Successful | N197: 2017-10-17
A198: 79 | B198: 2016-12-30 | D198: GODREJPROP | E198: Accu | F198: 305.00 | H198: 375 | I198: 375.00 | J198: Target Achieved | K198: =H198-F198 -> 70.00 | L198: =K198/F198 -> 22.95% | M198: Successful | N198: 2017-02-02
A199: 80 | B199: 2017-01-04 | D199: DEEPAKNTR | E199: Accu | F199: 99.50 | H199: 158 | I199: 158.00 | J199: Target Achieved | K199: =H199-F199 -> 58.50 | L199: =K199/F199 -> 58.79% | M199: Successful | N199: 2017-06-12
A200: 81 | B200: 2017-01-04 | D200: DEEPAKNTR | E200: Accu | F200: 99.50 | H200: 158 | I200: 158.00 | J200: Target Achieved | K200: 58.50 | L200: 58.79% | M200: Successful | N200: 2017-06-12
A201: 82 | B201: 2017-02-20 | D201: RECLTD | E201: Accu | F201: 140.50 | H201: 220 | I201: 220.00 | J201: Target Achieved | K201: =H201-F201 -> 79.50 | L201: =K201/F201 -> 56.58% | M201: Successful | N201: 2017-05-09
A202: 83 | B202: 2017-02-20 | D202: SUBROS | E202: Accu | F202: 202.50 | H202: 234 | I202: 234.00 | J202: Target Achieved | K202: 31.50 | L202: 15.56% | M202: Successful | N202: 2017-04-11
A203: 84 | B203: 2017-03-24 | D203: VRLLOG | E203: Accu | F203: 300.50 | H203: 417.5 | I203: 420.00 | J203: Profit of Rs.117/- | K203: =H203-F203 -> 117.00 | L203: =K203/F203 -> 38.94% | M203: Successful | N203: 2017-12-01
A204: 85 | B204: 2017-03-24 | D204: FIEMIND | E204: Accu | F204: 850.00 | H204: 1042.5 | I204: 1023.00 | J204: Profit of Rs 192.50/- | K204: 192.50 | L204: 22.65% | M204: Successful | N204: 2017-04-05
A205: 86 | B205: 2017-04-05 | D205: RATNAMANI | E205: Accu | F205: 785.00 | H205: 930 | I205: 920.00 | J205: Profit of Rs.145/- | K205: =H205-F205 -> 145.00 | L205: =K205/F205 -> 18.47% | M205: Successful | N205: 2017-08-29
A206: 87 | B206: 2017-04-06 | D206: ZEEMEDIA | E206: Accu | F206: 40 | H206: 13.10 | I206: 60.00 | J206: Loss of Rs.26.9/- | K206: -26.90 | L206: -67.25% | M206: Unsuccessful | N206: 2018-02-07
A207: 88 | B207: 2017-04-12 | D207: DABUR | E207: Accu | F207: 289.50 | H207: 354 | I207: 360.00 | J207: Profit of Rs.64.5/- | K207: =H207-F207 -> 64.50 | L207: =K207/F207 -> 22.28% | M207: Successful | N207: 2017-11-01
A208: 89 | B208: 2017-04-20 | D208: KPRMILL | E208: Accu | F208: 700.00 | H208: 840 | I208: 840.00 | J208: Profit of Rs.140/- | K208: 140.00 | L208: 20.00% | M208: Successful | N208: 2017-06-07
A209: 90 | B209: 2017-06-01 | D209: ESSELPACK | E209: Accu | F209: 130.00 | H209: 144.25 | I209: 170.00 | J209: Profit of Rs.14.25/- | K209: 14.25 | L209: 10.96% | M209: Successful | N209: 2019-07-29
A210: 91 | B210: 2017-06-15 | D210: KEI | E210: Accu | F210: 214.50 | H210: 262 | I210: 262.00 | J210: Profit of Rs.47.5/- | K210: 47.50 | L210: 22.14% | M210: Successful | N210: 2017-08-30
A211: 92 | B211: 2017-07-17 | D211: MAYURUNIQ | E211: Accu | F211: 370.00 | H211: 447.5 | I211: 450.00 | J211: Target Achieved | K211: 77.50 | L211: 20.95% | M211: Successful | N211: 2017-10-27
A212: 93 | B212: 2017-07-27 | D212: RAMCOCEM | E212: Accu | F212: 657.50 | H212: 825 | I212: 820.00 | J212: Target Achieved | K212: 167.50 | L212: 25.48% | M212: Successful | N212: 2017-12-21
A213: 94 | B213: 2017-08-17 | D213: FINPIPE | E213: Accu | F213: 605.00 | H213: 750 | I213: 750.00 | J213: Profit of Rs.145/- | K213: 145.00 | L213: 23.97% | M213: Successful | N213: 2017-10-19
A214: 95 | B214: 2017-09-01 | D214: SHK | E214: Accu | F214: 255 | H214: 217.25 | I214: 320.00 | J214: Loss of Rs.37.75/- | K214: -37.75 | L214: -15% | M214: Unsuccessful | N214: 2019-07-15
A215: 96 | B215: 2017-09-19 | D215: SKIPPER | E215: Accu | F215: 215.00 | H215: 258 | I215: 258.00 | J215: Target Achieved | K215: 43.00 | L215: 20.00% | M215: Successful | N215: 2017-11-01
A216: 97 | B216: 2017-09-19 | D216: SKIPPER | E216: Accu | F216: 215.00 | H216: 258 | I216: 258.00 | J216: Target Achieved | K216: 43.00 | L216: 20.00% | M216: Successful | N216: 2017-11-01
A217: 98 | B217: 2017-09-20 | D217: CAMLINFINE$ | E217: Accu | F217: 75.00 | H217: 90 | I217: 90.00 | J217: Profit of Rs.15.00/- | K217: =H217-F217 -> 15.00 | L217: =K217/F217 -> 20.00% | M217: Successful | N217: 2017-10-11
A218: 99 | B218: 2017-10-03 | D218: GNA | E218: Accu | F218: 315.00 | H218: 392 | I218: 384.00 | J218: Profit of Rs.77/- | K218: 77.00 | L218: 24.44% | M218: Successful | N218: 2017-10-09
A219: 100 | B219: 2017-10-05 | D219: NOCIL | E219: Accu | F219: 145.00 | H219: 179 | I219: 180.00 | J219: Profit of Rs.34/- | K219: 34.00 | L219: 23.45% | M219: Successful | N219: 2017-10-17
A220: 101 | B220: 2017-10-06 | D220: CENTURYPLY | E220: Accu | F220: 256.00 | H220: 323 | I220: 320.00 | J220: Target Achieved | K220: 67.00 | L220: 26.17% | M220: Successful | N220: 2017-11-28
A221: 102 | B221: 2017-10-09 | D221: EIHOTEL | E221: Accu | F221: 137.50 | H221: 184 | I221: 183.00 | J221: Profit of Rs.46.5/- | K221: 46.50 | L221: 33.82% | M221: Successful | N221: 2018-01-08
A222: 103 | B222: 2017-10-10 | D222: NRBBEARING | E222: Accu | F222: 125.50 | H222: 158 | I222: 155.00 | J222: Profit of Rs.32.5/- | K222: 32.50 | L222: 25.90% | M222: Successful | N222: 2017-11-28
A223: 104 | B223: 2017-10-10 | D223: BOROSIL | E223: Accu | F223: 895.00 | H223: 1122.5 | I223: 1078.00 | J223: Profit of Rs.227.5/- | K223: 227.50 | L223: 25.42% | M223: Successful | N223: 2018-01-17
A224: 105 | B224: 2017-10-12 | D224: CYIENT | E224: Accu | F224: 525.00 | H224: 629 | I224: 629.00 | J224: Target Achieved | K224: 104.00 | L224: 19.81% | M224: Successful | N224: 2018-01-19
A225: 106 | B225: 2017-11-07 | D225: HATSUN | E225: Accu | F225: 740.00 | H225: 892.5 | I225: 900.00 | J225: Profit of Rs.152.5/- | K225: =H225-F225 -> 152.50 | L225: =K225/F225 -> 20.61% | M225: Successful | N225: 2017-11-13
A226: 107 | B226: 2017-12-04 | D226: SANGHIIND | E226: Accu | F226: 118.50 | H226: 143.5 | I226: 145.00 | J226: Profit of Rs.25/- | K226: =H226-F226 -> 25.00 | L226: =K226/F226 -> 21.10% | M226: Successful | N226: 2017-12-28
A227: 108 | B227: 2017-12-21 | D227: KAJARIACER | E227: Accu | F227: 715 | H227: 500.00 | I227: 872.00 | J227: Loss of Rs.215/- | K227: =H227-F227 -> -215.00 | L227: =K227/F227 -> -30.07% | M227: Unsuccessful | N227: 2019-07-24
A228: 109 | B228: 2017-12-29 | D228: GNA | E228: Accu | F228: 435.00 | H228: 542.5 | I228: 539.00 | J228: Target Achieved | K228: 107.50 | L228: 24.71% | M228: Successful | N228: 2018-04-16
A229: 110 | B229: 2017-12-29 | D229: ZENSARTECH | E229: Accu | F229: 885.00 | H229: 1090 | I229: 1084.00 | J229: Target Achieved | K229: 205.00 | L229: 23.16% | M229: Successful | N229: 2018-04-23
A230: 111 | B230: 2018-04-02 | D230: EVERESTIND | E230: Accu | F230: 478.50 | H230: 442 | I230: 613.00 | J230: Loss of Rs.36.50 /- | K230: =H230-F230 -> -36.50 | L230: =K230/F230 -> -7.63% | M230: Unsuccessful | N230: 2019-10-24
A231: 112 | B231: 2018-04-04 | D231: GPPL$ | E231: Accu | F231: =141.5-7.3 -> 134.2 | H231: 77.00 | I231: 180.00 | J231: Loss of Rs.57.2/- | K231: =H231-F231 -> -57.20 | L231: =K231/F231 -> -42.62% | M231: Unsuccessful | N231: 2019-02-26
A232: 113 | B232: 2018-04-19 | D232: MANPASAND | E232: Accu | F232: 430 | H232: 220.00 | I232: 537.00 | J232: Loss of Rs.210/- | K232: =H232-F232 -> -210.00 | L232: =K232/F232 -> -48.84% | M232: Unsuccessful | N232: 2018-06-01
A233: 114 | B233: 2018-04-30 | D233: HEIDELBERG | E233: Accu | F233: 153.50 | H233: 196.00 | I233: 196.00 | J233: Profit of Rs.42.50/- | K233: =H233-F233 -> 42.50 | L233: =K233/F233 -> 28% | M233: Successful | N233: 2019-05-20
A234: 115 | B234: 2018-07-25 | D234: ZEEMEDIA | E234: Accu | F234: 27.5 | H234: 13.10 | I234: 60.00 | J234: Loss of Rs.14.40/- | K234: -14.40 | L234: -52.36% | M234: Unsuccessful | N234: 2018-02-07
A235: 116 | B235: 2018-08-06 | D235: GABRIEL | E235: Accu | F235: 148.5 | H235: 102 | I235: 182.00 | J235: Loss of Rs.46.50/- | K235: =H235-F235 -> -46.50 | L235: =K235/F235 -> -31.31% | M235: Unsuccessful | N235: 2019-07-15
A236: 117 | B236: 2018-08-23 | D236: INDIANHUME | E236: Accu | F236: 285 | H236: 355 | I236: 364.00 | J236: Profit of Rs.70/- | K236: 70.00 | L236: 24.56% | M236: Successful | N236: 2018-12-21
A237: 118 | B237: 2018-08-29 | D237: GRINDWELL | E237: Accu | F237: 525 | H237: 585 | I237: 635.00 | J237: Profit of Rs.60- | K237: =H237-F237 -> 60.00 | L237: =K237/F237 -> 11.43% | M237: Successful | N237: 2019-07-16
... 37 more rows

Sheet Sheet2 (hidden)
A1: SYMBOL | B1: SERIES | C1: OPEN | D1: HIGH | E1: LOW | F1: CLOSE | G1: LAST | H1: PREVCLOSE | I1: TOTTRDQTY | J1: TOTTRDVAL | K1: TIMESTAMP | L1: TOTALTRADES | M1: ISIN | N1: ISIN
A2: 20MICRONS | B2: EQ | C2: 27.9 | D2: 29 | E2: 25.9 | F2: 26.2 | G2: 25.9 | H2: 27.5 | I2: 80527 | J2: 2193820.55 | K2: 2020-04-08 | L2: 1099 | M2: INE144J01027
A3: 21STCENMGM | B3: EQ | C3: 10.15 | D3: 10.5 | E3: 10.1 | F3: 10.4 | G3: 10.5 | H3: 10.3 | I3: 3205 | J3: 32728.25 | K3: 2020-04-08 | L3: 28 | M3: INE253B01015
A4: 3IINFOTECH | B4: EQ | C4: 1.35 | D4: 1.35 | E4: 1.2 | F4: 1.25 | G4: 1.25 | H4: 1.35 | I4: 2793301 | J4: 3578364.95 | K4: 2020-04-08 | L4: 46535 | M4: INE748C01020
A5: 3MINDIA | B5: EQ | C5: 18950 | D5: 19170 | E5: 18155.05 | F5: 18318.2 | G5: 18270 | H5: 18755.7 | I5: 9926 | J5: 183605811.2 | K5: 2020-04-08 | L5: 4453 | M5: INE470A01017
A6: 3PLAND | B6: EQ | C6: 3.7 | D6: 3.85 | E6: 3.7 | F6: 3.85 | G6: 3.85 | H6: 3.7 | I6: 406 | J6: 1557.85 | K6: 2020-04-08 | L6: 9 | M6: INE105C01023
A7: 5PAISA | B7: EQ | C7: 119.95 | D7: 134 | E7: 115 | F7: 123.35 | G7: 120.5 | H7: 116.4 | I7: 6500 | J7: 793277.05 | K7: 2020-04-08 | L7: 265 | M7: INE618L01018
A8: 63MOONS | B8: EQ | C8: 50.7 | D8: 55.45 | E8: 50.7 | F8: 53.7 | G8: 53.55 | H8: 50.7 | I8: 72221 | J8: 3890984.7 | K8: 2020-04-08 | L8: 3078 | M8: INE111B01023
A9: A2ZINFRA | B9: EQ | C9: 3.15 | D9: 3.25 | E9: 3.1 | F9: 3.15 | G9: 3.15 | H9: 3.15 | I9: 116011 | J9: 367778.85 | K9: 2020-04-08 | L9: 227 | M9: INE619I01012
A10: AARTIDRUGS | B10: EQ | C10: 627 | D10: 669.3 | E10: 605 | F10: 631.6 | G10: 625 | H10: 607.85 | I10: 75970 | J10: 48223549.15 | K10: 2020-04-08 | L10: 5720 | M10: INE767A01016
A11: AARTIIND | B11: EQ | C11: 839.95 | D11: 909.8 | E11: 818 | F11: 854.9 | G11: 864 | H11: 830.7 | I11: 477805 | J11: 419092386.9 | K11: 2020-04-08 | L11: 50045 | M11: INE769A01020
A12: AARVEEDEN | B12: EQ | C12: 8.95 | D12: 9.25 | E12: 7.85 | F12: 8.35 | G12: 8.45 | H12: 8.1 | I12: 9251 | J12: 77100.1 | K12: 2020-04-08 | L12: 94 | M12: INE273D01019
A13: AAVAS | B13: EQ | C13: 1101 | D13: 1183 | E13: 1101 | F13: 1135.2 | G13: 1137 | H13: 1142.35 | I13: 24179 | J13: 28073100.85 | K13: 2020-04-08 | L13: 3631 | M13: INE216P01012
A14: ABAN | B14: EQ | C14: 15.7 | D14: 16.2 | E14: 15.7 | F14: 16.2 | G14: 16.2 | H14: 15.45 | I14: 37609 | J14: 608439.6 | K14: 2020-04-08 | L14: 288 | M14: INE421A01028
A15: ABB | B15: EQ | C15: 935 | D15: 965 | E15: 910 | F15: 930.7 | G15: 928 | H15: 931.35 | I15: 87757 | J15: 82358527.9 | K15: 2020-04-08 | L15: 4699 | M15: INE117A01022
A16: ABBOTINDIA | B16: EQ | C16: 16799.45 | D16: 18250 | E16: 16750 | F16: 17481.1 | G16: 17488 | H16: 16699.7 | I16: 57991 | J16: 1023745502 | K16: 2020-04-08 | L16: 21022 | M16: INE358A01014
A17: ABCAPITAL | B17: EQ | C17: 45 | D17: 47.9 | E17: 44.25 | F17: 45.6 | G17: 45.7 | H17: 45.1 | I17: 1253267 | J17: 57952493.6 | K17: 2020-04-08 | L17: 7317 | M17: INE674K01013
A18: ABFRL | B18: EQ | C18: 148 | D18: 152.8 | E18: 146.75 | F18: 149 | G18: 148 | H18: 149.85 | I18: 416099 | J18: 62371769.1 | K18: 2020-04-08 | L18: 10148 | M18: INE647O01011
A19: ABSLNN50ET | B19: EQ | C19: 244 | D19: 248 | E19: 210 | F19: 235 | G19: 235 | H19: 244 | I19: 56 | J19: 12779.4 | K19: 2020-04-08 | L19: 13 | M19: INF209KB1B87
A20: ACC | B20: EQ | C20: 1000 | D20: 1029.9 | E20: 941.25 | F20: 956.05 | G20: 958 | H20: 1009.95 | I20: 2153627 | J20: 2101320389 | K20: 2020-04-08 | L20: 79728 | M20: INE012A01025
A21: ACCELYA | B21: EQ | C21: 874.3 | D21: 886 | E21: 862 | F21: 880.45 | G21: 879.95 | H21: 874.3 | I21: 10865 | J21: 9557704.55 | K21: 2020-04-08 | L21: 923 | M21: INE793A01012
A22: ACE | B22: EQ | C22: 32.75 | D22: 35.2 | E22: 32.55 | F22: 33.25 | G22: 33.35 | H22: 32.95 | I22: 244708 | J22: 8296578.4 | K22: 2020-04-08 | L22: 2925 | M22: INE731H01025
A23: ADANIENT | B23: EQ | C23: 136.85 | D23: 147.15 | E23: 134.9 | F23: 138.1 | G23: 137.5 | H23: 138.15 | I23: 3237290 | J23: 456492273.1 | K23: 2020-04-08 | L23: 23696 | M23: INE423A01024
A24: ADANIGAS | B24: EQ | C24: 93.9 | D24: 96.35 | E24: 90.5 | F24: 90.8 | G24: 90.65 | H24: 94 | I24: 1888606 | J24: 176837924.4 | K24: 2020-04-08 | L24: 14517 | M24: INE399L01023
A25: ADANIGREEN | B25: EQ | C25: 166.85 | D25: 166.85 | E25: 162 | F25: 166.45 | G25: 166.85 | H25: 158.95 | I25: 702014 | J25: 116248737 | K25: 2020-04-08 | L25: 10187 | M25: INE364U01010
A26: ADANIPORTS | B26: EQ | C26: 248 | D26: 255.85 | E26: 242.75 | F26: 250.85 | G26: 249.7 | H26: 248.1 | I26: 6897883 | J26: 1724830525 | K26: 2020-04-08 | L26: 81499 | M26: INE742F01042
A27: ADANIPOWER | B27: EQ | C27: 28.65 | D27: 31.15 | E27: 27.5 | F27: 28.95 | G27: 28.85 | H27: 28.8 | I27: 12308064 | J27: 361987996.9 | K27: 2020-04-08 | L27: 23153 | M27: INE814H01011
A28: ADANITRANS | B28: EQ | C28: 196.65 | D28: 202 | E28: 190 | F28: 193.65 | G28: 193.5 | H28: 198.3 | I28: 306320 | J28: 59783940.3 | K28: 2020-04-08 | L28: 4236 | M28: INE931S01010
A29: ADFFOODS | B29: EQ | C29: 187.85 | D29: 192.25 | E29: 184 | F29: 187.7 | G29: 187.3 | H29: 183.1 | I29: 22107 | J29: 4185556.05 | K29: 2020-04-08 | L29: 773 | M29: INE982B01019
A30: ADHUNIKIND | B30: EQ | C30: 13.3 | D30: 13.3 | E30: 13.3 | F30: 13.3 | G30: 13.3 | H30: 12.7 | I30: 5518 | J30: 73389.4 | K30: 2020-04-08 | L30: 21 | M30: INE452L01012
A31: ADLABS | B31: EQ | C31: 2.75 | D31: 2.85 | E31: 2.75 | F31: 2.85 | G31: 2.85 | H31: 2.75 | I31: 19360 | J31: 54965.35 | K31: 2020-04-08 | L31: 72 | M31: INE172N01012
A32: ADORWELD | B32: EQ | C32: 195.7 | D32: 201.9 | E32: 193.95 | F32: 195.1 | G32: 194.45 | H32: 196.75 | I32: 1438 | J32: 283768.75 | K32: 2020-04-08 | L32: 94 | M32: INE045A01017
A33: ADROITINFO | B33: EQ | C33: 5.5 | D33: 5.7 | E33: 5.45 | F33: 5.7 | G33: 5.7 | H33: 5.7 | I33: 691 | J33: 3857 | K33: 2020-04-08 | L33: 25 | M33: INE737B01033
A34: ADSL | B34: EQ | C34: 13.05 | D34: 13.2 | E34: 12.4 | F34: 12.5 | G34: 12.45 | H34: 12.7 | I34: 16203 | J34: 205559.25 | K34: 2020-04-08 | L34: 143 | M34: INE102I01027
A35: ADVANIHOTR | B35: EQ | C35: 30.1 | D35: 33 | E35: 30.1 | F35: 31.8 | G35: 31.5 | H35: 30.65 | I35: 5340 | J35: 169948.95 | K35: 2020-04-08 | L35: 193 | M35: INE199C01026
A36: ADVENZYMES | B36: EQ | C36: 140.2 | D36: 146.55 | E36: 137.95 | F36: 139.2 | G36: 139.75 | H36: 136.55 | I36: 77441 | J36: 11046136.15 | K36: 2020-04-08 | L36: 1990 | M36: INE837H01020
A37: AEGISCHEM | B37: EQ | C37: 150 | D37: 158.5 | E37: 147.1 | F37: 156.35 | G37: 156.05 | H37: 144.1 | I37: 175470 | J37: 27041093.9 | K37: 2020-04-08 | L37: 4268 | M37: INE208C01025
A38: AFFLE | B38: BE | C38: 1050 | D38: 1053.45 | E38: 1030 | F38: 1053.45 | G38: 1053.45 | H38: 1003.3 | I38: 8191 | J38: 8619737.5 | K38: 2020-04-08 | L38: 470 | M38: INE00WC01019
A39: AGARIND | B39: EQ | C39: 49.8 | D39: 52.85 | E39: 49.05 | F39: 52.25 | G39: 52.5 | H39: 49.95 | I39: 7826 | J39: 404450.25 | K39: 2020-04-08 | L39: 207 | M39: INE204E01012
A40: AGCNET | B40: BE | C40: 224.35 | D40: 235.55 | E40: 213.25 | F40: 234.7 | G40: 235.55 | H40: 224.35 | I40: 2524 | J40: 573063 | K40: 2020-04-08 | L40: 70 | M40: INE676A01019
A41: AGRITECH | B41: EQ | C41: 23.95 | D41: 23.95 | E41: 23.95 | F41: 23.95 | G41: 23.95 | H41: 22.85 | I41: 504 | J41: 12070.8 | K41: 2020-04-08 | L41: 18 | M41: INE449G01018
A42: AGROPHOS | B42: EQ | C42: 5.7 | D42: 5.7 | E42: 5.2 | F42: 5.7 | G42: 5.7 | H42: 5.45 | I42: 40596 | J42: 227201.55 | K42: 2020-04-08 | L42: 340 | M42: INE740V01019
A43: AHLEAST | B43: EQ | C43: 133.15 | D43: 141.85 | E43: 128.15 | F43: 131.55 | G43: 128.35 | H43: 131.5 | I43: 3303 | J43: 439718.1 | K43: 2020-04-08 | L43: 350 | M43: INE926K01017
A44: AHLUCONT | B44: EQ | C44: 145.95 | D44: 148 | E44: 136 | F44: 146.3 | G44: 148 | H44: 144.1 | I44: 153910 | J44: 21077811.2 | K44: 2020-04-08 | L44: 995 | M44: INE758C01029
A45: AHLWEST | B45: EQ | C45: 289.9 | D45: 289.9 | E45: 270.95 | F45: 275 | G45: 275 | H45: 277 | I45: 238 | J45: 67030 | K45: 2020-04-08 | L45: 91 | M45: INE915K01010
A46: AIAENG | B46: EQ | C46: 1259.45 | D46: 1291 | E46: 1229 | F46: 1255.85 | G46: 1268 | H46: 1249.9 | I46: 73842 | J46: 92756824.05 | K46: 2020-04-08 | L46: 10503 | M46: INE212H01026
A47: AIONJSW | B47: EQ | C47: 10.9 | D47: 11.1 | E47: 10.2 | F47: 11.1 | G47: 11.1 | H47: 10.6 | I47: 90347 | J47: 996144.95 | K47: 2020-04-08 | L47: 180 | M47: INE743C01021
A48: AIRAN | B48: EQ | C48: 9.8 | D48: 10.3 | E48: 9.75 | F48: 9.8 | G48: 9.75 | H48: 9.85 | I48: 1826 | J48: 18127.1 | K48: 2020-04-08 | L48: 25 | M48: INE645W01026
A49: AJANTPHARM | B49: EQ | C49: 1325.75 | D49: 1450 | E49: 1325 | F49: 1367.5 | G49: 1363 | H49: 1340.2 | I49: 166582 | J49: 233126032.5 | K49: 2020-04-08 | L49: 8748 | M49: INE031B01049
A50: AJMERA | B50: EQ | C50: 64.95 | D50: 70.5 | E50: 64.6 | F50: 68.4 | G50: 69.9 | H50: 64.65 | I50: 31766 | J50: 2167947.5 | K50: 2020-04-08 | L50: 909 | M50: INE298G01027
A51: AKASH | B51: BE | C51: 90 | D51: 90 | E51: 90 | F51: 90 | G51: 90 | H51: 90.95 | I51: 500 | J51: 45000 | K51: 2020-04-08 | L51: 1 | M51: INE737W01013
A52: AKSHARCHEM | B52: EQ | C52: 174.75 | D52: 177.6 | E52: 165.3 | F52: 169.7 | G52: 167.15 | H52: 165.25 | I52: 3130 | J52: 531878.25 | K52: 2020-04-08 | L52: 293 | M52: INE542B01011
A53: AKSHOPTFBR | B53: EQ | C53: 3.6 | D53: 3.6 | E53: 3.6 | F53: 3.6 | G53: 3.6 | H53: 3.45 | I53: 27750 | J53: 99900 | K53: 2020-04-08 | L53: 45 | M53: INE523B01011
A54: AKZOINDIA | B54: EQ | C54: 2084.95 | D54: 2133 | E54: 2030 | F54: 2047.9 | G54: 2040 | H54: 2086.75 | I54: 12835 | J54: 26789836.95 | K54: 2020-04-08 | L54: 2242 | M54: INE133A01011
A55: ALANKIT | B55: EQ | C55: 12.9 | D55: 12.9 | E55: 12.9 | F55: 12.9 | G55: 12.9 | H55: 12.3 | I55: 14247 | J55: 183786.3 | K55: 2020-04-08 | L55: 75 | M55: INE914E01040
A56: ALBERTDAVD | B56: EQ | C56: 338.8 | D56: 364.75 | E56: 338.8 | F56: 353.15 | G56: 352 | H56: 341.15 | I56: 24334 | J56: 8579416.55 | K56: 2020-04-08 | L56: 1220 | M56: INE155C01010
A57: ALCHEM | B57: BE | C57: 1.4 | D57: 1.4 | E57: 1.4 | F57: 1.4 | G57: 1.4 | H57: 1.35 | I57: 8608 | J57: 12051.2 | K57: 2020-04-08 | L57: 18 | M57: INE964B01033
A58: ALEMBICLTD | B58: EQ | C58: 43.7 | D58: 48.05 | E58: 39.7 | F58: 45.05 | G58: 45.5 | H58: 42.15 | I58: 695128 | J58: 31779132.75 | K58: 2020-04-08 | L58: 6991 | M58: INE426A01027
A59: ALICON | B59: EQ | C59: 195.95 | D59: 196 | E59: 181.05 | F59: 184.75 | G59: 184 | H59: 189.25 | I59: 3909 | J59: 722322.5 | K59: 2020-04-08 | L59: 123 | M59: INE062D01024
A60: ALKALI | B60: EQ | C60: 29.95 | D60: 31.75 | E60: 29.65 | F60: 31.75 | G60: 31.75 | H60: 28.9 | I60: 9346 | J60: 289594.95 | K60: 2020-04-08 | L60: 349 | M60: INE773I01017
A61: ALKEM | B61: EQ | C61: 2360 | D61: 2736.5 | E61: 2326.2 | F61: 2671.15 | G61: 2639 | H61: 2324.05 | I61: 371259 | J61: 967330461.6 | K61: 2020-04-08 | L61: 44106 | M61: INE540L01014
A62: ALKYLAMINE | B62: EQ | C62: 1236.6 | D62: 1398 | E62: 1222.2 | F62: 1334.05 | G62: 1334 | H62: 1232.45 | I62: 41501 | J62: 55061848.25 | K62: 2020-04-08 | L62: 3832 | M62: INE150B01021
A63: ALLCARGO | B63: EQ | C63: 63.05 | D63: 65.85 | E63: 63 | F63: 65.7 | G63: 65.85 | H63: 59.9 | I63: 300794 | J63: 19569467.05 | K63: 2020-04-08 | L63: 3098 | M63: INE418H01029
A64: ALLSEC | B64: EQ | C64: 131.7 | D64: 131.9 | E64: 129.35 | F64: 131.9 | G64: 131.9 | H64: 125.65 | I64: 1335 | J64: 175836.2 | K64: 2020-04-08 | L64: 37 | M64: INE835G01018
A65: ALOKINDS | B65: EQ | C65: 4.7 | D65: 4.7 | E65: 4.7 | F65: 4.7 | G65: 4.7 | H65: 4.5 | I65: 1698707 | J65: 7983922.9 | K65: 2020-04-08 | L65: 397 | M65: INE270A01029
A66: ALPA | B66: EQ | C66: 18.55 | D66: 20.15 | E66: 17.8 | F66: 20.15 | G66: 20.15 | H66: 16.8 | I66: 131233 | J66: 2593665.9 | K66: 2020-04-08 | L66: 858 | M66: INE385I01010
A67: ALPHAGEO | B67: EQ | C67: 126 | D67: 137.5 | E67: 126 | F67: 134.45 | G67: 133.3 | H67: 129.7 | I67: 22258 | J67: 2986986.5 | K67: 2020-04-08 | L67: 783 | M67: INE137C01018
A68: ALPSINDUS | B68: EQ | C68: 0.65 | D68: 0.75 | E68: 0.65 | F68: 0.75 | G68: 0.7 | H68: 0.7 | I68: 25369 | J68: 18108.8 | K68: 2020-04-08 | L68: 33 | M68: INE093B01015
A69: AMARAJABAT | B69: EQ | C69: 501.1 | D69: 513.65 | E69: 488.45 | F69: 502.05 | G69: 504.9 | H69: 501.1 | I69: 755312 | J69: 378881689.9 | K69: 2020-04-08 | L69: 18162 | M69: INE885A01032
A70: AMBER | B70: EQ | C70: 1189.9 | D70: 1199 | E70: 1072 | F70: 1108.05 | G70: 1109.25 | H70: 1189.9 | I70: 93512 | J70: 105805912.2 | K70: 2020-04-08 | L70: 14252 | M70: INE371P01015
A71: AMBIKCO | B71: EQ | C71: 539.25 | D71: 559 | E71: 531.05 | F71: 545.2 | G71: 536.4 | H71: 537.25 | I71: 3988 | J71: 2168349.4 | K71: 2020-04-08 | L71: 406 | M71: INE540G01014
A72: AMBUJACEM | B72: EQ | C72: 158.5 | D72: 159.5 | E72: 148.2 | F72: 149.7 | G72: 149.55 | H72: 159 | I72: 10421438 | J72: 1597618498 | K72: 2020-04-08 | L72: 84074 | M72: INE079A01024
A73: AMDIND | B73: EQ | C73: 9.9 | D73: 10.5 | E73: 9.5 | F73: 9.8 | G73: 9.55 | H73: 10 | I73: 17757 | J73: 177659.15 | K73: 2020-04-08 | L73: 707 | M73: INE005I01014
A74: AMJLAND | B74: EQ | C74: 14.3 | D74: 14.95 | E74: 13.7 | F74: 14 | G74: 14 | H74: 14.25 | I74: 12523 | J74: 176065.3 | K74: 2020-04-08 | L74: 106 | M74: INE606A01024
A75: AMRUTANJAN | B75: EQ | C75: 326 | D75: 352 | E75: 320.1 | F75: 345.45 | G75: 344.3 | H75: 324 | I75: 278725 | J75: 95586275.35 | K75: 2020-04-08 | L75: 9075 | M75: INE098F01031
A76: ANANTRAJ | B76: EQ | C76: 19.55 | D76: 20.15 | E76: 18.6 | F76: 18.75 | G76: 18.8 | H76: 19.55 | I76: 184694 | J76: 3509270.8 | K76: 2020-04-08 | L76: 1012 | M76: INE242C01024
A77: ANDHRACEMT | B77: EQ | C77: 1.8 | D77: 1.9 | E77: 1.7 | F77: 1.85 | G77: 1.9 | H77: 1.75 | I77: 105618 | J77: 196578.05 | K77: 2020-04-08 | L77: 227 | M77: INE666E01012
A78: ANDHRAPAP | B78: EQ | C78: 148.55 | D78: 148.55 | E78: 147 | F78: 148.55 | G78: 148.55 | H78: 141.5 | I78: 2622 | J78: 389210.05 | K78: 2020-04-08 | L78: 70 | M78: INE435A01028
A79: ANDHRSUGAR | B79: EQ | C79: 206.95 | D79: 212 | E79: 195 | F79: 206.05 | G79: 205.85 | H79: 203.55 | I79: 35494 | J79: 7286675.25 | K79: 2020-04-08 | L79: 1328 | M79: INE715B01013
A80: ANIKINDS | B80: EQ | C80: 7.25 | D80: 7.25 | E80: 6.65 | F80: 6.8 | G80: 6.8 | H80: 6.95 | I80: 4994 | J80: 34701.65 | K80: 2020-04-08 | L80: 35 | M80: INE087B01017
A81: ANKITMETAL | B81: EQ | C81: 0.4 | D81: 0.45 | E81: 0.35 | F81: 0.45 | G81: 0.45 | H81: 0.4 | I81: 64810 | J81: 27213.05 | K81: 2020-04-08 | L81: 29 | M81: INE106I01010
A82: ANSALAPI | B82: EQ | C82: 3.65 | D82: 3.8 | E82: 3.65 | F82: 3.8 | G82: 3.8 | H82: 3.65 | I82: 3974 | J82: 15023.75 | K82: 2020-04-08 | L82: 28 | M82: INE436A01026
A83: ANSALHSG | B83: EQ | C83: 3 | D83: 3 | E83: 2.8 | F83: 2.9 | G83: 2.9 | H83: 2.9 | I83: 31510 | J83: 91846.6 | K83: 2020-04-08 | L83: 64 | M83: INE880B01015
A84: ANUP | B84: EQ | C84: 304.75 | D84: 323.7 | E84: 303.1 | F84: 313.2 | G84: 313.05 | H84: 312.75 | I84: 11786 | J84: 3732090.6 | K84: 2020-04-08 | L84: 460 | M84: INE294Z01018
A85: APARINDS | B85: EQ | C85: 296.95 | D85: 300.35 | E85: 290.6 | F85: 295.85 | G85: 295.5 | H85: 296.05 | I85: 6051 | J85: 1806443.45 | K85: 2020-04-08 | L85: 427 | M85: INE372A01015
A86: APCL | B86: EQ | C86: 102.4 | D86: 102.4 | E86: 95.2 | F86: 97.35 | G86: 97 | H86: 98.5 | I86: 3739 | J86: 362867.6 | K86: 2020-04-08 | L86: 79 | M86: INE071F01012
A87: APCOTEXIND | B87: EQ | C87: 87.55 | D87: 94.85 | E87: 86 | F87: 87.5 | G87: 86.1 | H87: 87.45 | I87: 13115 | J87: 1175575.25 | K87: 2020-04-08 | L87: 323 | M87: INE116A01032
A88: APEX | B88: EQ | C88: 190 | D88: 201.65 | E88: 185.1 | F88: 201.65 | G88: 201.65 | H88: 183.35 | I88: 141806 | J88: 27768799.35 | K88: 2020-04-08 | L88: 3293 | M88: INE346W01013
A89: APLAPOLLO | B89: EQ | C89: 1245 | D89: 1274 | E89: 1220 | F89: 1259.5 | G89: 1258 | H89: 1231.75 | I89: 21152 | J89: 26442272.1 | K89: 2020-04-08 | L89: 3032 | M89: INE702C01019
A90: APLLTD | B90: EQ | C90: 630 | D90: 702.65 | E90: 615.5 | F90: 640.85 | G90: 626 | H90: 610.2 | I90: 540272 | J90: 353935242.1 | K90: 2020-04-08 | L90: 30323 | M90: INE901L01018
A91: APOLLO | B91: EQ | C91: 45.5 | D91: 56 | E91: 45.25 | F91: 54.3 | G91: 53.55 | H91: 46.7 | I91: 68951 | J91: 3631629.4 | K91: 2020-04-08 | L91: 1694 | M91: INE713T01010
A92: APOLLOHOSP | B92: EQ | C92: 1225.9 | D92: 1338.4 | E92: 1211 | F92: 1263.95 | G92: 1261 | H92: 1225.95 | I92: 2070270 | J92: 2654141027 | K92: 2020-04-08 | L92: 156926 | M92: INE437A01024
A93: APOLLOPIPE | B93: EQ | C93: 279.5 | D93: 304 | E93: 262.95 | F93: 281.3 | G93: 281 | H93: 280.1 | I93: 12940 | J93: 3607793.25 | K93: 2020-04-08 | L93: 543 | M93: INE126J01016
A94: APOLLOTYRE | B94: EQ | C94: 83.5 | D94: 87.15 | E94: 82 | F94: 83.4 | G94: 83.15 | H94: 83.5 | I94: 2950752 | J94: 248872037.1 | K94: 2020-04-08 | L94: 19408 | M94: INE438A01022
A95: APOLSINHOT | B95: EQ | C95: 460.35 | D95: 460.4 | E95: 421.1 | F95: 439.8 | G95: 436 | H95: 438.6 | I95: 694 | J95: 306874.65 | K95: 2020-04-08 | L95: 84 | M95: INE451F01024
A96: APTECHT | B96: EQ | C96: 85.3 | D96: 87.7 | E96: 83.55 | F96: 84.6 | G96: 84.3 | H96: 85.3 | I96: 106721 | J96: 9133416.7 | K96: 2020-04-08 | L96: 2385 | M96: INE266F01018
A97: ARCHIDPLY | B97: EQ | C97: 16.55 | D97: 17 | E97: 16.45 | F97: 16.85 | G97: 16.95 | H97: 16.75 | I97: 4083 | J97: 68300.2 | K97: 2020-04-08 | L97: 63 | M97: INE877I01016
A98: ARCHIES | B98: EQ | C98: 9.4 | D98: 9.5 | E98: 9 | F98: 9.05 | G98: 9.15 | H98: 9.45 | I98: 24343 | J98: 224667.6 | K98: 2020-04-08 | L98: 150 | M98: INE731A01020
A99: ARCOTECH | B99: EQ | C99: 0.9 | D99: 0.95 | E99: 0.85 | F99: 0.9 | G99: 0.9 | H99: 0.9 | I99: 51482 | J99: 47500.05 | K99: 2020-04-08 | L99: 77 | M99: INE574I01035
A100: ARENTERP | B100: EQ | C100: 12.65 | D100: 12.65 | E100: 12.05 | F100: 12.05 | G100: 12.05 | H100: 12.65 | I100: 63 | J100: 765.15 | K100: 2020-04-08 | L100: 4 | M100: INE610C01014
A101: ARIES | B101: EQ | C101: 44.4 | D101: 47.6 | E101: 42.65 | F101: 43.6 | G101: 44 | H101: 44.4 | I101: 50875 | J101: 2250478.25 | K101: 2020-04-08 | L101: 1080 | M101: INE298I01015
A102: ARIHANT | B102: EQ | C102: 12.05 | D102: 12.55 | E102: 11.6 | F102: 12.15 | G102: 12.5 | H102: 12.05 | I102: 964 | J102: 11418.15 | K102: 2020-04-08 | L102: 27 | M102: INE413D01011
A103: ARIHANTSUP | B103: EQ | C103: 21.4 | D103: 21.45 | E103: 19.45 | F103: 19.5 | G103: 21 | H103: 20.45 | I103: 4362 | J103: 85414.05 | K103: 2020-04-08 | L103: 80 | M103: INE643K01018
A104: ARMANFIN | B104: EQ | C104: 340 | D104: 373.2 | E104: 337.7 | F104: 373.05 | G104: 373.2 | H104: 355.45 | I104: 50867 | J104: 18465582.65 | K104: 2020-04-08 | L104: 911 | M104: INE109C01017
A105: AROGRANITE | B105: EQ | C105: 21.95 | D105: 24.5 | E105: 20.85 | F105: 24.2 | G105: 24.5 | H105: 22.35 | I105: 26052 | J105: 602565.3 | K105: 2020-04-08 | L105: 183 | M105: INE210C01013
A106: ARROWGREEN | B106: BE | C106: 33.55 | D106: 35 | E106: 33.45 | F106: 33.45 | G106: 33.45 | H106: 33.85 | I106: 5735 | J106: 195198.5 | K106: 2020-04-08 | L106: 32 | M106: INE570D01018
A107: ARSHIYA | B107: EQ | C107: 7.1 | D107: 7.6 | E107: 7.1 | F107: 7.6 | G107: 7.6 | H107: 7.25 | I107: 23178 | J107: 175819.45 | K107: 2020-04-08 | L107: 63 | M107: INE968D01022
A108: ARSSINFRA | B108: EQ | C108: 11.25 | D108: 12.3 | E108: 10.9 | F108: 11.8 | G108: 11.85 | H108: 11.15 | I108: 16388 | J108: 189874.85 | K108: 2020-04-08 | L108: 107 | M108: INE267I01010
A109: ARTEMISMED | B109: EQ | C109: 140 | D109: 147 | E109: 136.3 | F109: 138 | G109: 137 | H109: 139.15 | I109: 1729 | J109: 245138.4 | K109: 2020-04-08 | L109: 31 | M109: INE025R01013
A110: ARVIND | B110: EQ | C110: 23.5 | D110: 24.4 | E110: 22.45 | F110: 23.75 | G110: 23.75 | H110: 22.2 | I110: 2137547 | J110: 50521243.45 | K110: 2020-04-08 | L110: 7057 | M110: INE034A01011
A111: ARVINDFASN | B111: EQ | C111: 139.8 | D111: 141.9 | E111: 132.2 | F111: 133.8 | G111: 134.75 | H111: 139.85 | I111: 46445 | J111: 6387304.5 | K111: 2020-04-08 | L111: 1243 | M111: INE955V01021
A112: ARVSMART | B112: EQ | C112: 64.05 | D112: 67 | E112: 64 | F112: 65.4 | G112: 65.5 | H112: 65 | I112: 10000 | J112: 656036.65 | K112: 2020-04-08 | L112: 320 | M112: INE034S01021
A113: ASAHIINDIA | B113: EQ | C113: 152 | D113: 158 | E113: 147.05 | F113: 155.5 | G113: 152.35 | H113: 153.2 | I113: 5605 | J113: 858978.65 | K113: 2020-04-08 | L113: 218 | M113: INE439A01020
A114: ASAHISONG | B114: EQ | C114: 80.8 | D114: 88.95 | E114: 80.05 | F114: 85.25 | G114: 86 | H114: 80.9 | I114: 8055 | J114: 692533.2 | K114: 2020-04-08 | L114: 314 | M114: INE228I01012
A115: ASAL | B115: EQ | C115: 14.8 | D115: 14.9 | E115: 14.5 | F115: 14.5 | G115: 14.5 | H115: 14.25 | I115: 8037 | J115: 118819.3 | K115: 2020-04-08 | L115: 36 | M115: INE900C01027
A116: ASALCBR | B116: EQ | C116: 164.9 | D116: 175 | E116: 158 | F116: 165.7 | G116: 165 | H116: 162.9 | I116: 31033 | J116: 5116102.05 | K116: 2020-04-08 | L116: 970 | M116: INE073G01016
A117: ASHAPURMIN | B117: EQ | C117: 22.1 | D117: 22.1 | E117: 22.05 | F117: 22.1 | G117: 22.1 | H117: 21.05 | I117: 8770 | J117: 193792 | K117: 2020-04-08 | L117: 43 | M117: INE348A01023
A118: ASHIANA | B118: EQ | C118: 52.9 | D118: 52.9 | E118: 49.1 | F118: 49.95 | G118: 50 | H118: 50 | I118: 69042 | J118: 3480534.3 | K118: 2020-04-08 | L118: 621 | M118: INE365D01021
A119: ASHIMASYN | B119: EQ | C119: 3.9 | D119: 3.9 | E119: 3.9 | F119: 3.9 | G119: 3.9 | H119: 3.55 | I119: 28914 | J119: 112764.6 | K119: 2020-04-08 | L119: 46 | M119: INE440A01010
A120: ASHOKA | B120: EQ | C120: 38.35 | D120: 42.7 | E120: 37.8 | F120: 42.7 | G120: 42.7 | H120: 38.85 | I120: 1577514 | J120: 65134101.3 | K120: 2020-04-08 | L120: 8475 | M120: INE442H01029
A121: ASHOKLEY | B121: EQ | C121: 39.85 | D121: 47.8 | E121: 38.75 | F121: 43.85 | G121: 43.6 | H121: 39.85 | I121: 76817768 | J121: 3355417806 | K121: 2020-04-08 | L121: 169889 | M121: INE208A01029
A122: ASIANHOTNR | B122: EQ | C122: 70 | D122: 71.8 | E122: 66 | F122: 71.55 | G122: 71.5 | H122: 65.4 | I122: 4982 | J122: 349215.55 | K122: 2020-04-08 | L122: 198 | M122: INE363A01022
A123: ASIANPAINT | B123: EQ | C123: 1623.8 | D123: 1687.8 | E123: 1600 | F123: 1608.95 | G123: 1608 | H123: 1623.8 | I123: 2382216 | J123: 3911658954 | K123: 2020-04-08 | L123: 101146 | M123: INE021A01026
A124: ASIANTILES | B124: EQ | C124: 156 | D124: 162.9 | E124: 155 | F124: 157.6 | G124: 156.5 | H124: 157.65 | I124: 19917 | J124: 3151924.4 | K124: 2020-04-08 | L124: 431 | M124: INE022I01019
A125: ASPINWALL | B125: EQ | C125: 93 | D125: 98.7 | E125: 83.55 | F125: 93 | G125: 93 | H125: 90 | I125: 413 | J125: 38837.15 | K125: 2020-04-08 | L125: 20 | M125: INE991I01015
A126: ASTEC | B126: EQ | C126: 450.65 | D126: 465.05 | E126: 440 | F126: 460.05 | G126: 460.3 | H126: 443.9 | I126: 5283 | J126: 2392645.5 | K126: 2020-04-08 | L126: 494 | M126: INE563J01010
A127: ASTERDM | B127: EQ | C127: 96 | D127: 103.5 | E127: 93.8 | F127: 99.25 | G127: 99 | H127: 94.55 | I127: 996205 | J127: 98978623.7 | K127: 2020-04-08 | L127: 4570 | M127: INE914M01019
A128: ASTRAL | B128: EQ | C128: 962 | D128: 986 | E128: 952 | F128: 955.45 | G128: 954 | H128: 973.85 | I128: 59212 | J128: 57381672.65 | K128: 2020-04-08 | L128: 7623 | M128: INE006I01046
A129: ASTRAMICRO | B129: EQ | C129: 56.9 | D129: 62.55 | E129: 55.85 | F129: 61.7 | G129: 62.55 | H129: 56.9 | I129: 253097 | J129: 15146656.55 | K129: 2020-04-08 | L129: 1961 | M129: INE386C01029
A130: ASTRAZEN | B130: EQ | C130: 2700 | D130: 2830 | E130: 2544 | F130: 2561.6 | G130: 2549 | H130: 2693.65 | I130: 38510 | J130: 104113109 | K130: 2020-04-08 | L130: 6647 | M130: INE203A01020
A131: ASTRON | B131: EQ | C131: 26.15 | D131: 29.9 | E131: 25.3 | F131: 27.5 | G131: 27.8 | H131: 27.65 | I131: 61618 | J131: 1693449.45 | K131: 2020-04-08 | L131: 1743 | M131: INE646X01014
A132: ATFL | B132: EQ | C132: 479.65 | D132: 499 | E132: 475 | F132: 481.55 | G132: 475 | H132: 479.65 | I132: 6104 | J132: 2975754.9 | K132: 2020-04-08 | L132: 411 | M132: INE209A01019
A133: ATLANTA | B133: EQ | C133: 3 | D133: 3.15 | E133: 3 | F133: 3.15 | G133: 3.15 | H133: 3 | I133: 8624 | J133: 26936.35 | K133: 2020-04-08 | L133: 28 | M133: INE285H01022
A134: ATLASCYCLE | B134: BE | C134: 30 | D134: 31.5 | E134: 29.5 | F134: 30.7 | G134: 30.7 | H134: 30 | I134: 2000 | J134: 60118.65 | K134: 2020-04-08 | L134: 42 | M134: INE446A01025
A135: ATNINTER | B135: BE | C135: 0.1 | D135: 0.1 | E135: 0.1 | F135: 0.1 | G135: 0.1 | H135: 0.1 | I135: 12716 | J135: 1271.6 | K135: 2020-04-08 | L135: 5 | M135: INE803A01027
A136: ATUL | B136: EQ | C136: 3930 | D136: 4005 | E136: 3908.35 | F136: 3951.85 | G136: 3954.95 | H136: 3927.1 | I136: 76768 | J136: 304824820.4 | K136: 2020-04-08 | L136: 11635 | M136: INE100A01010
A137: ATULAUTO | B137: EQ | C137: 151.35 | D137: 154.05 | E137: 146.8 | F137: 153.45 | G137: 153.95 | H137: 146.75 | I137: 13699 | J137: 2093863.3 | K137: 2020-04-08 | L137: 810 | M137: INE951D01028
A138: AUBANK | B138: EQ | C138: 461.2 | D138: 490 | E138: 457 | F138: 480.3 | G138: 473 | H138: 478.4 | I138: 1791057 | J138: 837589012.6 | K138: 2020-04-08 | L138: 59410 | M138: INE949L01017
A139: AURIONPRO | B139: EQ | C139: 41.75 | D139: 43.7 | E139: 40 | F139: 42.9 | G139: 42.9 | H139: 40.95 | I139: 8828 | J139: 376649.05 | K139: 2020-04-08 | L139: 213 | M139: INE132H01018
A140: AUROPHARMA | B140: EQ | C140: 432.5 | D140: 476.3 | E140: 426.3 | F140: 438.15 | G140: 438.9 | H140: 445.7 | I140: 13186213 | J140: 5925576015 | K140: 2020-04-08 | L140: 205238 | M140: INE406A01037
A141: AUSOMENT | B141: EQ | C141: 26.1 | D141: 26.1 | E141: 26.1 | F141: 26.1 | G141: 26.1 | H141: 25 | I141: 100 | J141: 2610 | K141: 2020-04-08 | L141: 1 | M141: INE218C01016
A142: AUTOAXLES | B142: EQ | C142: 413 | D142: 423.5 | E142: 398.05 | F142: 413.45 | G142: 416 | H142: 399.3 | I142: 5448 | J142: 2244823.45 | K142: 2020-04-08 | L142: 638 | M142: INE449A01011
A143: AUTOIND | B143: EQ | C143: 11.3 | D143: 11.35 | E143: 11.1 | F143: 11.35 | G143: 11.35 | H143: 10.85 | I143: 9358 | J143: 105383.05 | K143: 2020-04-08 | L143: 68 | M143: INE718H01014
A144: AUTOLITIND | B144: EQ | C144: 13.2 | D144: 14.4 | E144: 13.2 | F144: 13.8 | G144: 13.9 | H144: 13.75 | I144: 4699 | J144: 65525.8 | K144: 2020-04-08 | L144: 68 | M144: INE448A01013
A145: AVADHSUGAR | B145: EQ | C145: 143.55 | D145: 143.55 | E145: 143.55 | F145: 143.55 | G145: 143.55 | H145: 136.75 | I145: 13174 | J145: 1891127.7 | K145: 2020-04-08 | L145: 157 | M145: INE349W01017
A146: AVANTIFEED | B146: EQ | C146: 311 | D146: 341.55 | E146: 310.5 | F146: 341.35 | G146: 341.55 | H146: 310.5 | I146: 748404 | J146: 246839085.1 | K146: 2020-04-08 | L146: 23272 | M146: INE871C01038
A147: AVTNPL | B147: EQ | C147: 25.45 | D147: 27.8 | E147: 24.25 | F147: 27.25 | G147: 27 | H147: 25.05 | I147: 213540 | J147: 5643644.4 | K147: 2020-04-08 | L147: 1601 | M147: INE488D01021
A148: AXISBANK | B148: EQ | C148: 383.75 | D148: 427.7 | E148: 373.5 | F148: 391.35 | G148: 391.4 | H148: 388.85 | I148: 64930772 | J148: 2.575974593e+10 | K148: 2020-04-08 | L148: 769506 | M148: INE238A01034
A149: AXISCADES | B149: EQ | C149: 30.9 | D149: 31.5 | E149: 28.65 | F149: 31.4 | G149: 31.5 | H149: 30 | I149: 39670 | J149: 1232336.75 | K149: 2020-04-08 | L149: 621 | M149: INE555B01013
A150: AXISGOLD | B150: EQ | C150: 3969.9 | D150: 3989 | E150: 3925 | F150: 3973.3 | G150: 3983 | H150: 3919.55 | I150: 701 | J150: 2769851.6 | K150: 2020-04-08 | L150: 206 | M150: INF846K01347
A151: AXISNIFTY | B151: EQ | C151: 1000.01 | D151: 1000.01 | E151: 1000.01 | F151: 1000.01 | G151: 1000.01 | H151: 1007 | I151: 2 | J151: 2000.02 | K151: 2020-04-08 | L151: 1 | M151: INF846K01ZL0
A152: AYMSYNTEX | B152: EQ | C152: 15.5 | D152: 16.8 | E152: 15.5 | F152: 16.5 | G152: 16.5 | H152: 16.1 | I152: 2637 | J152: 43548.55 | K152: 2020-04-08 | L152: 26 | M152: INE193B01039
A153: BAFNAPH | B153: EQ | C153: 16.05 | D153: 16.05 | E153: 16.05 | F153: 16.05 | G153: 16.05 | H153: 15.3 | I153: 272 | J153: 4365.6 | K153: 2020-04-08 | L153: 8 | M153: INE878I01022
A154: BAGFILMS | B154: BE | C154: 1.75 | D154: 1.8 | E154: 1.75 | F154: 1.8 | G154: 1.8 | H154: 1.75 | I154: 3861 | J154: 6912.3 | K154: 2020-04-08 | L154: 20 | M154: INE116D01028
A155: BAJAJ-AUTO | B155: EQ | C155: 2180 | D155: 2383.45 | E155: 2168.55 | F155: 2241.7 | G155: 2260 | H155: 2280.05 | I155: 840875 | J155: 1933266167 | K155: 2020-04-08 | L155: 59866 | M155: INE917I01010
A156: BAJAJCON | B156: EQ | C156: 136 | D156: 148.65 | E156: 135.1 | F156: 137.95 | G156: 138 | H156: 138.15 | I156: 1031633 | J156: 145711259.1 | K156: 2020-04-08 | L156: 26102 | M156: INE933K01021
A157: BAJAJELEC | B157: EQ | C157: 277.3 | D157: 294.5 | E157: 277.3 | F157: 287.8 | G157: 289 | H157: 277.3 | I157: 58251 | J157: 16797537.55 | K157: 2020-04-08 | L157: 3821 | M157: INE193E01025
A158: BAJAJFINSV | B158: EQ | C158: 4575 | D158: 4950 | E158: 4537.8 | F158: 4608.5 | G158: 4604 | H158: 4724.9 | I158: 1113057 | J158: 5259493342 | K158: 2020-04-08 | L158: 158158 | M158: INE918I01018
A159: BAJAJHIND | B159: EQ | C159: 3.05 | D159: 3.05 | E159: 3.05 | F159: 3.05 | G159: 3.05 | H159: 2.95 | I159: 80900 | J159: 246745 | K159: 2020-04-08 | L159: 110 | M159: INE306A01021
A160: BAJAJHLDNG | B160: EQ | C160: 2027.95 | D160: 2073.85 | E160: 1925 | F160: 2024.75 | G160: 2025 | H160: 1978.9 | I160: 25453 | J160: 51363834.45 | K160: 2020-04-08 | L160: 6198 | M160: INE118A01012
A161: BAJFINANCE | B161: EQ | C161: 2184 | D161: 2374 | E161: 2144.15 | F161: 2332.9 | G161: 2329 | H161: 2253.35 | I161: 9109346 | J161: 2.088826331e+10 | K161: 2020-04-08 | L161: 516967 | M161: INE296A01024
A162: BALAJITELE | B162: EQ | C162: 43 | D162: 45 | E162: 40.8 | F162: 41.9 | G162: 42.15 | H162: 43.75 | I162: 194912 | J162: 8414452.4 | K162: 2020-04-08 | L162: 1677 | M162: INE794B01026
A163: BALAMINES | B163: EQ | C163: 277 | D163: 296 | E163: 260.4 | F163: 283.65 | G163: 284.45 | H163: 271.2 | I163: 70594 | J163: 20058887.5 | K163: 2020-04-08 | L163: 2337 | M163: INE050E01027
A164: BALAXI | B164: BE | C164: 82.7 | D164: 82.7 | E164: 75.05 | F164: 79.9 | G164: 79.9 | H164: 79 | I164: 1047 | J164: 78761.9 | K164: 2020-04-08 | L164: 24 | M164: INE618N01014
A165: BALKRISHNA | B165: EQ | C165: 8.6 | D165: 8.8 | E165: 8.35 | F165: 8.8 | G165: 8.8 | H165: 8.4 | I165: 7860 | J165: 67624.35 | K165: 2020-04-08 | L165: 49 | M165: INE875R01011
A166: BALKRISIND | B166: EQ | C166: 822 | D166: 862 | E166: 815 | F166: 821.35 | G166: 818.3 | H166: 823.55 | I166: 444079 | J166: 371870250.3 | K166: 2020-04-08 | L166: 24462 | M166: INE787D01026
A167: BALLARPUR | B167: EQ | C167: 0.4 | D167: 0.4 | E167: 0.3 | F167: 0.35 | G167: 0.35 | H167: 0.35 | I167: 9769871 | J167: 3419941.15 | K167: 2020-04-08 | L167: 514 | M167: INE294A01037
A168: BALMLAWRIE | B168: EQ | C168: 84 | D168: 87.9 | E168: 81 | F168: 84.75 | G168: 85.65 | H168: 85.5 | I168: 202053 | J168: 17357055.25 | K168: 2020-04-08 | L168: 3105 | M168: INE164A01016
A169: BALPHARMA | B169: EQ | C169: 38.9 | D169: 41.7 | E169: 38.9 | F169: 41.7 | G169: 41.7 | H169: 37.95 | I169: 40933 | J169: 1688199.5 | K169: 2020-04-08 | L169: 518 | M169: INE083D01012
A170: BALRAMCHIN | B170: EQ | C170: 123.85 | D170: 126.4 | E170: 123 | F170: 126.4 | G170: 126.4 | H170: 120.4 | I170: 642515 | J170: 80884980.2 | K170: 2020-04-08 | L170: 7125 | M170: INE119A01028
A171: BANARBEADS | B171: EQ | C171: 30.25 | D171: 32.5 | E171: 29.6 | F171: 29.75 | G171: 29.75 | H171: 31.5 | I171: 160 | J171: 4873.85 | K171: 2020-04-08 | L171: 26 | M171: INE655B01011
A172: BANARISUG | B172: EQ | C172: 900 | D172: 925 | E172: 880 | F172: 886.1 | G172: 880 | H172: 893.1 | I172: 410 | J172: 368979.1 | K172: 2020-04-08 | L172: 94 | M172: INE459A01010
A173: BANCOINDIA | B173: EQ | C173: 65.45 | D173: 67.5 | E173: 64.1 | F173: 65.95 | G173: 66 | H173: 65.45 | I173: 40062 | J173: 2654130.6 | K173: 2020-04-08 | L173: 1013 | M173: INE213C01025
A174: BANDHANBNK | B174: EQ | C174: 167.95 | D174: 209.05 | E174: 167.5 | F174: 193.75 | G174: 195.25 | H174: 167.25 | I174: 30692919 | J174: 5833285762 | K174: 2020-04-08 | L174: 332020 | M174: INE545U01014
A175: BANG | B175: EQ | C175: 12.05 | D175: 13.1 | E175: 11.9 | F175: 13.1 | G175: 13.1 | H175: 12.5 | I175: 1590 | J175: 20489 | K175: 2020-04-08 | L175: 31 | M175: INE863I01016
A176: BANKBARODA | B176: EQ | C176: 48 | D176: 51.5 | E176: 47.3 | F176: 48.35 | G176: 48.45 | H176: 48.15 | I176: 27159204 | J176: 1340103716 | K176: 2020-04-08 | L176: 77070 | M176: INE028A01039
A177: BANKBEES | B177: EQ | C177: 190 | D177: 205.4 | E177: 186.06 | F177: 191.28 | G177: 191.4 | H177: 192.12 | I177: 676832 | J177: 131368353.2 | K177: 2020-04-08 | L177: 10023 | M177: INF204KB15I9
A178: BANKINDIA | B178: EQ | C178: 32.7 | D178: 34.75 | E178: 32.5 | F178: 33.35 | G178: 33.25 | H178: 32.95 | I178: 1236627 | J178: 41574499.75 | K178: 2020-04-08 | L178: 6257 | M178: INE084A01016
A179: BANSWRAS | B179: EQ | C179: 77.4 | D179: 77.4 | E179: 70.2 | F179: 71.15 | G179: 70.2 | H179: 73.75 | I179: 22922 | J179: 1667255.55 | K179: 2020-04-08 | L179: 137 | M179: INE629D01012
A180: BASF | B180: EQ | C180: 1154 | D180: 1154 | E180: 1105 | F180: 1119.95 | G180: 1120.5 | H180: 1138.25 | I180: 26139 | J180: 29425244.35 | K180: 2020-04-08 | L180: 2640 | M180: INE373A01013
A181: BASML | B181: EQ | C181: 74.05 | D181: 84 | E181: 74.05 | F181: 80 | G181: 80 | H181: 78.7 | I181: 1648 | J181: 135366.45 | K181: 2020-04-08 | L181: 154 | M181: INE186H01014
A182: BATAINDIA | B182: EQ | C182: 1246.5 | D182: 1339 | E182: 1228 | F182: 1240.05 | G182: 1238.95 | H182: 1246.4 | I182: 1346088 | J182: 1726485633 | K182: 2020-04-08 | L182: 66274 | M182: INE176A01028
A183: BAYERCROP | B183: EQ | C183: 3500 | D183: 3946.6 | E183: 3499.3 | F183: 3818.15 | G183: 3772.15 | H183: 3510 | I183: 32833 | J183: 125437264 | K183: 2020-04-08 | L183: 6737 | M183: INE462A01022
A184: BBL | B184: EQ | C184: 590 | D184: 621.25 | E184: 590 | F184: 613.05 | G184: 621.25 | H184: 589.55 | I184: 9335 | J184: 5684085.45 | K184: 2020-04-08 | L184: 804 | M184: INE464A01028
A185: BBTC | B185: EQ | C185: 810 | D185: 854.3 | E185: 774 | F185: 784.2 | G185: 787.95 | H185: 788.4 | I185: 76612 | J185: 62014517.65 | K185: 2020-04-08 | L185: 5281 | M185: INE050A01025
A186: BCG | B186: EQ | C186: 3.6 | D186: 3.65 | E186: 3.55 | F186: 3.65 | G186: 3.65 | H186: 3.5 | I186: 305718 | J186: 1113234.95 | K186: 2020-04-08 | L186: 149 | M186: INE425B01027
A187: BCP | B187: EQ | C187: 10.75 | D187: 10.75 | E187: 10.5 | F187: 10.75 | G187: 10.75 | H187: 10.25 | I187: 8192 | J187: 87934.6 | K187: 2020-04-08 | L187: 28 | M187: INE905P01028
A188: BDL | B188: EQ | C188: 191 | D188: 229 | E188: 188.2 | F188: 218.2 | G188: 216.4 | H188: 191.4 | I188: 448405 | J188: 97968192.25 | K188: 2020-04-08 | L188: 13672 | M188: INE171Z01018
A189: BEARDSELL | B189: EQ | C189: 6.7 | D189: 7.3 | E189: 6.7 | F189: 7.3 | G189: 7.3 | H189: 7.05 | I189: 1250 | J189: 8417 | K189: 2020-04-08 | L189: 4 | M189: INE520H01022
A190: BEDMUTHA | B190: EQ | C190: 12.8 | D190: 13.05 | E190: 12.45 | F190: 12.45 | G190: 12.45 | H190: 13.1 | I190: 19584 | J190: 245429.15 | K190: 2020-04-08 | L190: 32 | M190: INE844K01012
A191: BEL | B191: EQ | C191: 69 | D191: 71.3 | E191: 65.1 | F191: 66.4 | G191: 66.5 | H191: 69 | I191: 16699885 | J191: 1138705070 | K191: 2020-04-08 | L191: 69587 | M191: INE263A01024
A192: BEML | B192: EQ | C192: 492 | D192: 523.5 | E192: 492 | F192: 503.6 | G192: 503 | H192: 475.95 | I192: 890527 | J192: 458689246.6 | K192: 2020-04-08 | L192: 23670 | M192: INE258A01016
A193: BEPL | B193: EQ | C193: 31 | D193: 32.75 | E193: 30.3 | F193: 31.25 | G193: 31.6 | H193: 30.25 | I193: 333595 | J193: 10578641.1 | K193: 2020-04-08 | L193: 3321 | M193: INE922A01025
A194: BERGEPAINT | B194: EQ | C194: 479.9 | D194: 487.65 | E194: 460 | F194: 463.5 | G194: 462 | H194: 479.2 | I194: 1729062 | J194: 817908730.6 | K194: 2020-04-08 | L194: 32950 | M194: INE463A01038
A195: BFINVEST | B195: EQ | C195: 258 | D195: 268.8 | E195: 244.6 | F195: 246.3 | G195: 248.95 | H195: 257.45 | I195: 4938 | J195: 1236639.95 | K195: 2020-04-08 | L195: 244 | M195: INE878K01010
A196: BFUTILITIE | B196: EQ | C196: 158.35 | D196: 158.35 | E196: 151.05 | F196: 154.05 | G196: 153.7 | H196: 150.85 | I196: 138134 | J196: 21700813.75 | K196: 2020-04-08 | L196: 1649 | M196: INE243D01012
A197: BGRENERGY | B197: EQ | C197: 22.1 | D197: 22.85 | E197: 20.95 | F197: 21.1 | G197: 21.15 | H197: 22.2 | I197: 172282 | J197: 3763089.75 | K197: 2020-04-08 | L197: 1108 | M197: INE661I01014
A198: BHAGERIA | B198: EQ | C198: 85 | D198: 91.05 | E198: 80.65 | F198: 81.6 | G198: 82.3 | H198: 84.2 | I198: 34795 | J198: 2944870.7 | K198: 2020-04-08 | L198: 925 | M198: INE354C01027
A199: BHAGYANGR | B199: EQ | C199: 14.05 | D199: 15.2 | E199: 14 | F199: 14.4 | G199: 14.4 | H199: 14.4 | I199: 1338 | J199: 19622.25 | K199: 2020-04-08 | L199: 50 | M199: INE458B01036
A200: BHAGYAPROP | B200: EQ | C200: 18 | D200: 20 | E200: 18 | F200: 20 | G200: 20 | H200: 19 | I200: 999 | J200: 19011 | K200: 2020-04-08 | L200: 5 | M200: INE363W01018
... 1470 more rows

Sheet Sheet1 (hidden)

Sheet Sheet3 (hidden)

Sheet Sheet4 (hidden)

Sheet Sheet5 (hidden)
